Workbook

Sheet Foreword
A1: Project Risk Management Plan Workbook (RMP) – Foreword
A3: Project delivery success can be increased by establishing and maintaining a risk register over the project lifecycle. The risk register will document identified risks and provides an analysis of the risk impact. The register also serves as an active risk management tool that defines and tracks risk mitigation strategies and actions.
A5: It is the goal of MDT to intentionally manage risk on all design projects. Project Risk Management can be scaled to fit each project.
A7: This workbook contains many tools for performing risk management. Each tool is contained in a separate worksheet. The primary tools are the Project Level of Risk table and the RMP. The Project Level of Risk table is to be used for determining the potential for risk. The RMP is the risk register and management document for capturing potential risk and associated mitigation. The Risk Checklist is the risk register and tracking document for low risk projects.
A9: Please refer to the Project Risk Management Guidelines for more information on performing risk management and risk management requirements.
A11: Table of Contents
A12: Foreword
A13: Project Level of Risk table
A14: Project Risk Documentation form for LOW risk projects
A15: Risk Management Plan (RMP) worksheet
A16: RMP User's Guide
A17: Assumptions sheet
A18: Contingency
A19: Contingency ranges graph - all risk levels
A20: High Risk graph
A21: Medium Risk graph
A22: Low Risk graph
A23: Cost Ranges
A24: Risk Breakdown Structure table
A29: MDT would like to acknowledge WSDOT's efforts in Risk Management and extend our sincere appreciation for their willingness to share the knowledge, tools, and guidance used as the basis for this workbook.

Sheet Project Level of Risk
B2: Project Level of Risk
B4: Project Area | C4: LOW RISK | D4: MEDIUM RISK | E4: HIGH RISK
A5: 1 | B5: Proposed Scope of Work | C5: Preservation | D5: Rehabilitation or reconstruction work with no added capacity | E5: New highways; major relocations
A6: 2 | B6: Proposed Scope of Work | C6: Overlay, minor widening, mill/fill | D6: Minor roadway relocations | E6: New interchanges
A7: 3 | B7: Proposed Scope of Work | C7: Traffic signal rehabilitation | D7: Slides, subsidence | E7: Capacity adding/major widening
A8: 4 | B8: Proposed Scope of Work | C8: Minor spot safety improvement | D8: New facilities | E8: Major reconstruction
A9: 5 | B9: Proposed Scope of Work | C9: RR at grade crossings | D9: Intersection safety improvement | E9: New facilities
A10: 6 | B10: Proposed Scope of Work | D10: ADA work
A11: 7 | B11: Proposed Scope of Work | D11: New traffic signal installation
A12: 8 | B12: Proposed Scope of Work | D12: Experimental feature included that may cause design changes or project delay
A13: 9 | B13: Project Location and Local Coordination | C13: Rural | D13: Urban or rural | E13: Urban or rural
A14: 10 | B14: Project Location and Local Coordination | C14: Project included in local plan or Transportation Improvement Program (TIP) | D14: Reservation | E14: Controversial or complex City, County, or Tribal agreements needed
A15: 11 | B15: Project Location and Local Coordination | D15: City, County, or Tribal agreements needed | E15: TIP or local plan coordination anticipated
A16: 12 | B16: Project Location and Local Coordination | D16: TIP or local plan coordination needed to ensure consistency
A17: 13 | B17: Funding Considerations | C17: No unusual funding constraints or special funding attachments | D17: UPP | E17: NHPB
A18: 14 | B18: Funding Considerations | D18: STPB | E18: STPU
A19: 15 | B19: Funding Considerations | D19: STPU | E19: STPS – Reconstruction
A20: 16 | B20: Funding Considerations | D20: STPS – Pavement preservation only | E20: TA – Complex projects
A21: 17 | B21: Funding Considerations | D21: TA | E21: CMAQ – Reconstruction
A22: 18 | B22: Funding Considerations | D22: CMAQ | E22: NHFP
A23: 19 | B23: Funding Considerations | D23: NHFP | E23: Special funding (earmarks, program caps, discretionary)
A24: 20 | B24: Funding Considerations | D24: ER
A25: 21 | B25: Funding Considerations | D25: Special funding (includes local matching and multiple sources)
A26: 22 | B26: Work Zone Safety and Mobility | C26: Level 3 | D26: Level 1 or 2 | E26: Level 1 (Significant)
A27: 23 | B27: Work Zone Safety and Mobility | C27: Short construction duration | D27: Moderate construction duration | E27: Complex sequencing
A28: 24 | B28: Work Zone Safety and Mobility | C28: Minimal traffic disruptions | D28: Moderate traffic disruptions | E28: Significant traffic disruptions
A29: 25 | B29: Work Zone Safety and Mobility | E29: Long-term detours
A30: 26 | B30: Topography | C30: Flat terrain: | D30: Rolling terrain: | E30: Mountainous terrain:
A31: 27 | B31: Topography | C31: Generally flat, fairly flat | D31: Flat and rolling or gently rolling | E31: Gorges, steep terrain, confined area
A32: 28 | B32: Geotechnical Considerations | C32: Little or no involvement | D32: Geotechnical involvement: | E32: Heavy geotechnical involvement with possible:
A33: 29 | B33: Geotechnical Considerations | D33: Roadway projects will require digouts or alignment changes | E33: Retaining structures, complex bridge foundations, rock slopes, landslides, high seismic areas
A34: 30 | B34: Geotechnical Considerations | D34: Abutment work
A35: 31 | B35: Geotechnical Considerations | D35: No major geotechnical work, generally standard bridge foundations (driven piles)
A36: 32 | B36: Hydraulic Involvement | C36: Little or no involvement | D36: Location Hydraulics Study Report required | E36: Major culvert replacements
A37: 33 | B37: Hydraulic Involvement | D37: Curb & Gutter with sump work | E37: Bridge replacement – complex modelling
A38: 34 | B38: Hydraulic Involvement | D38: Culvert extensions or straightforward replacements | E38: Extensive reports anticipated
A39: 35 | B39: Hydraulic Involvement | D39: Bridge surface runoff | E39: Floodplain permits require additional mapping (CLOMR/LOMR)
A40: 36 | B40: Hydraulic Involvement | D40: Bridge replacement – not complex Floodplain permits may be required | E40: Significant irrigation design and coordination
A41: 37 | B41: Hydraulic Involvement | D41: Some irrigation involvement
A42: 38 | B42: Bridge Work | C42: No major bridge work | D42: Bridge replacement or major rehabilitation | E42: Complex bridge construction:
A43: 39 | B43: Bridge Work | C43: Minor rail upgrades or surfacing treatments | D43: Major deck rehabilitation | E43: Unusual or non-conventional design
A44: 40 | B44: Bridge Work | D44: Seismic retrofitting | E44: Complex superstructure
A45: 41 | B45: Bridge Work | D45: Generally standard foundation work | E45: Complex foundation work
A46: 42 | B46: Traffic Considerations | C46: Standard striping and signing | D46: Traffic or safety analysis needed | E46: New flashing signs or traffic signals
A47: 43 | B47: Traffic Considerations | D47: Signal replacements/upgrades | E47: Overhead signs
A48: 44 | B48: Traffic Considerations | D48: Lighting | E48: Substantial intersection re-design, e.g. roundabout
A49: 45 | B49: Traffic Considerations | D49: Electrical work
A50: 46 | B50: Traffic Considerations | D50: Geometric design
A51: 47 | B51: Right-of-Way Involvement | C51: Little or none | D51: Right-of-Way (R/W) plans needed | E51: Extensive R/W acquisition plans necessary
A52: 48 | B52: Right-of-Way Involvement | C52: Construction permits only | D52: R/W acquisition expected | E52: Potential for condemnations
A53: 49 | B53: Right-of-Way Involvement | C53: Notifications only | D53: No claims or condemnation expected | E53: Relocations or displacements
A54: 50 | B54: Right-of-Way Involvement | C54: Maintain existing access control | D54: Simple or no relocations or displacements | E54: Reservation/Tribal involvement
A55: 51 | B55: Right-of-Way Involvement | C55: Sidewalk or approach agreement | D55: Access Control changes | E55: New Access Control
A56: 52 | B56: Utilities Involvement | C56: Little or none | D56: Some utility relocations, most prior to construction | E56: Major utility relocations
A57: 53 | B57: Utilities Involvement | C57: Minor adjustments | D57: No major utility relocations | E57: Multiple utility coordination
A58: 54 | B58: Utilities Involvement | C58: No relocations
A59: 55 | B59: Railroad Involvement | C59: Low likelihood of requiring agreement | D59: Occasional flagger involvement | E59: RR flaggers at all times
A60: 56 | B60: Railroad Involvement | C60: >50ft from Railroad (RR) | D60: Project areas within 50ft of RR | E60: Major RR agreement
A61: 57 | B61: Railroad Involvement | D61: Minor R/W or RR agreements possible | E61: R/W acquisition and/or utility involvement with RR
A62: 58 | B62: Railroad Involvement | E62: Structure over RR facilities
A63: 59 | B63: Survey | C63: Very little or none required | D63: Design survey, control/or cadastral survey | E63: Complex design survey requirements
A64: 60 | B64: Public Involvement | C64: Level A | D64: Level B | E64: Level C
A65: 61 | B65: Public Involvement | C65: No public controversy | D65: Involvement of public, public officials, stakeholders and local agencies is moderate due to noncontroversial project type | E65: Controversial (lack of consensus) and high profile projects
A66: 62 | B66: Public Involvement | D66: General communication about project progress is required | E66: Local agency heavily involved
A67: 63 | B67: Public Involvement | E67: Major coordination among numerous stakeholders is required
A68: 64 | B68: Public Involvement | E68: Tribal involvement
A69: 65 | B69: Environmental Considerations | C69: Listed Categorical Exclusion covered under Programmatic Agreement with FHWA. (i.e., FHWA concurrence not required) | D69: Non-listed Categorical Exclusion, Listed Categorical Exclusion not covered under the Programmatic Agreement with FHWA, or Build/No-build Environmental Assessment | E69: Environmental Assessment with complex, multiple alternative analyses or Environment Impact Study
A70: 66 | B70: Environmental Considerations | C70: · Minimal oversight or regulation from external agencies | D70: · Cultural Resources (historical, archaeological) involvement | E70: · Full 4(f) Evaluation
A71: 67 | B71: Environmental Considerations | C71: · Minor environmental impacts | D71: · Section 106 determination of adverse effect | E71: · Individual Section 404 Permit
A72: 68 | B72: Environmental Considerations | D72: · De Minimis or Programmatic 4(f) Evaluation | E72: · Other agencies (such as FHWA, COE, EPA, USFWS, Fish, Wildlife & Parks, DEQ, DNRC) are heavily involved
A73: 69 | B73: Environmental Considerations | D73: · Acquisition of land under the protection of LWCF (Section 6(f)) | E73: · Traffic noise mitigation required
A74: 70 | B74: Environmental Considerations | D74: · Section 404 Nationwide permit required | E74: · Threatened and Endangered Species USFWS formal consultation
A75: 71 | B75: Environmental Considerations | D75: · May impact a designated or proposed Wild and Scenic River | E75: · Montana Sage Grouse Oversight Team approval or mitigation required
A76: 72 | B76: Environmental Considerations | D76: · Traffic noise analysis required | E76: · Remediation of hazardous materials required
A77: 73 | B77: Environmental Considerations | D77: · Threatened and Endangered Species USFWS informal consultation | E77: · Compensatory wetland or stream mitigation required but not available
A78: 74 | B78: Environmental Considerations | D78: · Bald and Golden Eagle Act conservation measures needed | E78: · Substantial Tribal involvement
A79: 75 | B79: Environmental Considerations | D79: · Does not conform to State Implementation Plan for air quality
A80: 76 | B80: Environmental Considerations | D80: · Compensatory wetland/stream mitigation required
A81: 77 | B81: Environmental Considerations | D81: · SPA 124 notification
A82: 78 | B82: Environmental Considerations | D82: · Likely presence of hazardous materials
A83: 79 | B83: Environmental Considerations | D83: · Coordination with other State Agency commissions (e.g. river closures)
A84: 80 | B84: Environmental Considerations | D84: · Migratory Bird Treaty Act conservation measures needed
A85: 81 | B85: Environmental Considerations | D85: · Montana Sage Grouse consultation letter needed
A86: 82 | B86: Environmental Considerations | D86: · Moderate Tribal involvement (e.g. ALCO permit)
A87: 83 | B87: Project Delivery | C87: No anticipated concerns meeting ready date | D87: Ready date is very close to planned finish date; project delivery could be delayed | E87: Politically important; construction date promises or expectations; schedule delays are a concern
A88: 84 | B88: Project Delivery | D88: Accelerated schedule

Sheet Project Risk Documentation
A1: Project Risk Documentation for Low Risk Projects
A3: Risk Review Participants:
A5: Risk Review Date(s):
A8: Project Area | B8: Potential High Risk Element from Risk Level Table | C8: Threat or Opportunity | D8: Risk Management Strategy | E8: Active or Resolved
A14: Project Area | B14: Potential Medium Risk Element from Risk Level Table | C14: Threat or Opportunity | D14: Risk Management Strategy | E14: Active or Resolved

Sheet RMP
B2: Project No. and Name | G2: STPP 99-1(29)5 NE of Montana Line - N. | K2: RISK MANAGEMENT SUMMARY RESULTS | R2: # Risks Identified | S2: RELATIVE RISK | T2: Proactive Risk Management: Develop an action response strategy; assign risk owners to implement action; monitor and record effectiveness of the risk response action. | AL2: Risk Breakdown Structure (functional assignment) | AM2: Planned Response Cost | AN2: Likely Cost Avoidance | AO2: Risk Breakdown Structure (functional assignment) | AP2: Planned Response Cost | AQ2: Likely Cost Avoidance
B3: Estimate Date | G3: 2008-09-23 | I3: Target letting date | J3: 2011-05-01 | K3: Planned and Actual | O3: MIN | P3: MAX | Q3: LIKELY | S3: =(R115+S115)/R3 ->  | AL3: Right-of-Way | AM3: =AX114 -> 0 | AN3: =AY114 -> 0 | AO3: Stakeholders | AP3: =BF114 -> 0 | AQ3: =BG114 -> 0
B4: Project UPN | G4: UPN | I4: Estimated Constr. Duration | J4: 1 | K4: Planned Cost to Respond | Q4: =AR116 -> 0 | AL4: Environmental | AM4: =AZ114 -> 0 | AN4: =BA114 -> 0 | AO4: Unforeseen Events | AP4: =BH114 -> 0 | AQ4: =BI114 -> 0
B5: Last Review Date | G5: =TODAY() -> 2018-07-06 | I5: Estimated PE Cost | J5: 1 | K5: Est. $ of Cost Avoided (via risk management) | O5: =AS114 -> 0 | P5: =AS115 -> 0 | Q5: =AS116 -> 0 | AL5: Engineering | AM5: =BB114 -> 0 | AN5: =BC114 -> 0 | AO5: Market Conditions | AP5: =BJ114 -> 0 | AQ5: =BK114 -> 0
B6: Project Manager | G6: Joe Designer | I6: Estimated R/W Cost | J6: 1 | K6: Actual Cost to Respond | Q6: =AT116 -> 0 | AL6: Traffic | AM6: =BD114 -> 0 | AN6: =BE114 -> 0 | AO6: Utilities | AP6: =BL114 -> 0 | AQ6: =BM114 -> 0
B7: NOTE: All costs in $ | H7: M | I7: Estimated CN Cost | J7: 1 | K7: Est. Actual $ Cost Avoided (via risk mgmt) | O7: =AU114 -> 0 | P7: =AU115 -> 0 | Q7: =AU116 -> 0 | AL7: Estimated Monetary Impact of Signficant Project Risks | AM7: =SUM(O34,O42,O50,O58,O66,O74,O82,O90,O98,O106) -> 0 | AO7: Estimated Time Impact of Signficant Project Risks | AP7: =SUM(O38,O46,O54,O62,O70,O78,O86,O94,O102,O110) -> 0 | AR7: Response Cost & Cost Avoidance (based on most likely values) | AX7: Filter
B8: Risk Identification | K8: Quantitative Analysis | P8: Qualitative Display of Most Likely Impact | AK8: Response | AM8: Monitoring and Control | AP8: Critical Issue | AR8: Estimated Response $ Entered | AS8: Calculated Est. Cost Avoidance | AT8: Actual Response $ Entered | AU8: Calculated Actual Cost Avoidance | AX8: =D10 -> ROW | AZ8: =D11 -> ENV | BB8: =D12 -> ENG | BD8: =D13 -> TRF | BF8: =D14 -> STK | BH8: =D15 -> UNF | BJ8: =D16 -> MKT | BL8: =D17 -> UTL
B9: Risk # | C9: Status | D9: RBS Group | E9: RBS Code Number | F9: Project Phase | Date Identified | G9: Functional Assignment | H9: Summary Description Threat and/or Opportunity | I9: Description of Risk Event (Cause-Risk-Impact) Clearly state the cause, the risk, and the impact. | J9: Risk Trigger | K9: Type | L9: Probability | M9: Risk Impact ($K or M) (Month) | O9: Expected Impact ($K) [most likely X probability] | P9: Probability | Q9: Impact | R9: Risk Matrix | Y9: relative impact of COSTS | AD9: SCHEDULES | AI9: Threats | AJ9: Opportunities | AK9: Priority | Strategy | AL9: Response Actions ACTION TO BE TAKEN including advantages and disadvantages include date | AM9: Risk Response Owner | AN9: Risk Review Dates | AO9: Date, Status, and Review Comments (Do not delete prior comments, therefore providing a history) | AP9: Near or Long Term? | AR9: Planned Cost to Respond [$K or M] (enter single number estimate) | AS9: Est Cost Avoided [$K/M] (Expected Value of Risk) - (Est. Cost to Respond) | AT9: Actual Cost to Respond [$K or M] | AU9: Est. Actual Costs Avoided [$K or M] | AW9: Project activitiy | AX9: Planned Response Cost | AY9: Est Cost Avoidance | AZ9: Planned Response Cost | BA9: Est Cost Avoidance | BB9: Planned Response Cost | BC9: Est Cost Avoidance | BD9: Planned Response Cost | BE9: Est Cost Avoidance | BF9: Planned Response Cost | BG9: Est Cost Avoidance | BH9: Planned Response Cost | BI9: Est Cost Avoidance | BJ9: Planned Response Cost | BK9: Est Cost Avoidance | BL9: Planned Response Cost | BM9: Est Cost Avoidance
C10: Active | D10: ROW | F10: Planning | G10: Bridge | H10: Threat | I10: Zero | J10: 0 | L10: 0.8 | M10: Positive correlation | O10: =0.1*$J$7 -> 0.1 | P10: Very High | Q10: Very High | S10: =0.3*(J$4+(J$3-G$3)/30.5) -> 9.644262295 | AK10: Avoid | AP10: NEAR | AW10: ENG Doc. Pkg
C11: Dormant | D11: ENV | F11: Survey | G11: Consult. | H11: Opportunity | I11: Positive | J11: 1 | K11: Schedule | L11: 0.6 | M11: Negative correlation | O11: =0.05*$J$7 -> 0.05 | P11: High | Q11: High | S11: =0.25*(J$4+(J$3-G$3)/30.5) -> 8.036885246 | AK11: Transfer | AP11: LONG | AW11: NEPA/SEPA Re-evaluation
C12: Retired | D12: ENG | F12: Design | G12: TA | I12: Negative | K12: Cost | L12: 0.4 | O12: =0.02*$J$7 -> 0.02 | P12: Medium | Q12: Medium | S12: =0.15*(J$4+(J$3-G$3)/30.5) -> 4.822131148 | AK12: Mitigate | AW12: ROW Plan and Approval
D13: TRF | F13: ROW | G13: District | L13: 0.2 | O13: =0.008*$J$7 -> 0.008 | P13: Low | Q13: Low | S13: =0.1*(J$4+(J$3-G$3)/30.5) -> 3.214754098 | AK13: Accept | AW13: Final Wetland Mit. Report
D14: STK | F14: Construction | G14: Environmental | I14: K | L14: 0 | O14: =0.005*$J$7 -> 0.005 | P14: Very Low | Q14: Very Low | S14: =0.05*(J$4+(J$3-G$3)/30.5) -> 1.607377049 | AK14: Exploit | AW14: Permitting
D15: UNF | G15: Helena | I15: M | AK15: Share
D16: MKT | G16: MSU | AK16: Enhance
D17: UTL | G17: Safety
G18: Traffic
G19: R/W
G20: Utilities
G21: Geotech
G22: Survey
G23: Construction
G24: Legal
B25: (1) | C25: (2) | D25: (3) | E25: (3a) | F25: (4) | G25: (5) | H25: (6) | I25: (7) | J25: (8) | K25: (9) | L25: (10) | M25: (11) | N25: (11a) | O25: (12) | P25: (13) | Q25: (14) | R25: (15) | AK25: (16) | AL25: (17) | AM25: (18) | AN25: (19) | AO25: (20) | AP25: (21) | AR25: (22) | AS25: (23) | AT25: (24) | AU25: (25) | AW25: PSE
B26: EXAMPLE | C26: Active | D26: ROW | E26: 3 | F26: 2010-02-13 | G26: Design | H26: Threat | I26: Because the mitigation ratio has not been finalized and there could be additional impacts to wetlands, the amount of R/W needed for the mitigation area may significantly increase, resulting in additional R/W costs and potential acquisition delays. | J26: If Wetland impact is larger than 1/2 acre and ratio exceeds 4:1. | K26: Cost | L26: 0.7 | M26: MIN | N26: 1 | O26: =IF(C26="Retired",0,L26*(N26+4*N28+N27)/6) -> 4.783333333 | P26: =IF(C26="Retired","NO RISK",IF(L26>(L$10-0.01),P$10,IF(L26>(L$11-0.01),P$11,IF(L26>(L$12-0.01),P$12,IF(L26>(L$13-0.01),P$13,IF(L26>(L$14),P$14,"NO RISK")))))) -> High | Q26: =IF(C26="Retired","NO RISK",IF(ABS(N28)>O$10,Q$10,IF(ABS(N28)>O$11,Q$11,IF(ABS(N28)>O$12,Q$12,IF(ABS(N28)>O$13,Q$13,IF(ABS(N28)>O$14,Q$14,"NO RISK")))))) -> Very High | R26: Probability | S26: VH | T26: =IF(AND(Q26="VERY LOW",Q30="very low",P26="VERY high"),"$,Mo",IF(AND(Q26="VERY LOW",P26="VERY high"),"$",IF(AND(Q30="very low",P26="VERY high"),"Mo",""))) ->  | U26: =IF(AND(Q26="LOW",Q30="low",P26="VERY high"),"$,Mo",IF(AND(Q26="LOW",P26="VERY high"),"$",IF(AND(Q30="low",P26="VERY high"),"Mo",""))) ->  | V26: =IF(AND(Q26="medium",Q30="medium",P26="VERY high"),"$,Mo",IF(AND(Q26="medium",P26="VERY high"),"$",IF(AND(Q30="medium",P26="VERY high"),"Mo",""))) ->  | W26: =IF(AND(Q26="high",Q30="high",P26="VERY high"),"$,Mo",IF(AND(Q26="high",P26="VERY high"),"$",IF(AND(Q30="high",P26="VERY high"),"Mo",""))) ->  | X26: =IF(AND(Q26="VERY high",Q30="VERY high",P26="VERY high"),"$,Mo",IF(AND(Q26="VERY high",P26="VERY high"),"$",IF(AND(Q30="VERY high",P26="VERY high"),"Mo",""))) ->  | Y26: =IF(OR(T26="$",(T26="$,Mo")),5,0) -> 0 | Z26: =IF(OR(U26="$",(U26="$,Mo")),10,0) -> 0 | AA26: =IF(OR(V26="$",(V26="$,Mo")),20,0) -> 0 | AB26: =IF(OR(W26="$",(W26="$,Mo")),40,0) -> 0 | AC26: =IF(OR(X26="$",(X26="$,Mo")),80,0) -> 0 | AD26: =IF(OR(T26="Mo",(T26="$,Mo")),5,0) -> 0 | AE26: =IF(OR(U26="Mo",(U26="$,Mo")),10,0) -> 0 | AF26: =IF(OR(V26="Mo",(V26="$,Mo")),20,0) -> 0 | AG26: =IF(OR(W26="Mo",(W26="$,Mo")),40,0) -> 0 | AH26: =IF(OR(X26="Mo",(X26="$,Mo")),60,0) -> 0 | AK26: Avoid | AL26: Finalize design to identify all wetlands that are impacted. Early coordination with the outside agencies to determine mitigation ratio. | AM26: Design Leader/Enviro. mgr | AN26: 2006-Dec-2 2007-Jan-2 | AO26: As of Nov. 15, 2005 there are only two potential areas where there could be additional wetland impacts. As of Dec. 2, 2005 agency has initially determined that mitigation ration would be 4:1. | AP26: NEAR | AQ26: EXAMPLE | AS26: =IF(AK26="Accept",0,(N26*L26)-AR28) -> 0.7 | AU26: =IF(AT28=0,0,(N26*L26)-AT28) -> 0 | AV26: =O26-AT28 -> 4.783333333 | AW26: PSE - Nooksack River Bridge | AX26: =IF($D26="ROW",$AR28," ") -> 0 | AY26: =IF($D26="ROW",$AS28," ") -> 4.9 | AZ26: =IF($D26="ENV",$AR28," ") ->  | BA26: =IF($D26="ENV",$AS28," ") ->  | BB26: =IF($D26="ENG",$AR28," ") ->  | BC26: =IF($D26="ENG",$AS28," ") ->  | BD26: =IF($D26="TRF",$AR28," ") ->  | BE26: =IF($D26="TRF",$AS28," ") ->  | BF26: =IF($D26="STK",$AR28," ") ->  | BG26: =IF($D26="STK",$AS28," ") ->  | BH26: =IF($D26="UNF",$AR28," ") ->  | BI26: =IF($D26="UNF",$AS28," ") ->  | BJ26: =IF($D26="MKT",$AR28," ") ->  | BK26: =IF($D26="MKT",$AS28," ") ->  | BL26: =IF($D26="UTL",$AR28," ") ->  | BM26: =IF($D26="UTL",$AS28," ") -> 
H27: Wetland mitigation may require additional R/W | M27: MAX | N27: 12 | S27: H | T27: =IF(AND(Q26="VERY LOW",Q30="very low",P26="high"),"$,Mo",IF(AND(Q26="VERY LOW",P26="high"),"$",IF(AND(Q30="very low",P26="high"),"Mo",""))) -> Mo | U27: =IF(AND(Q26="LOW",Q30="low",P26="high"),"$,Mo",IF(AND(Q26="LOW",P26="high"),"$",IF(AND(Q30="low",P26="high"),"Mo",""))) ->  | V27: =IF(AND(Q26="medium",Q30="medium",P26="high"),"$,Mo",IF(AND(Q26="medium",P26="high"),"$",IF(AND(Q30="medium",P26="high"),"Mo",""))) ->  | W27: =IF(AND(Q26="high",Q30="high",P26="high"),"$,Mo",IF(AND(Q26="high",P26="high"),"$",IF(AND(Q30="high",P26="high"),"Mo",""))) ->  | X27: =IF(AND(Q26="VERY high",Q30="VERY high",P26="high"),"$,Mo",IF(AND(Q26="VERY high",P26="high"),"$",IF(AND(Q30="VERY high",P26="high"),"Mo",""))) -> $ | Y27: =IF(OR(T27="$",(T27="$,Mo")),4,0) -> 0 | Z27: =IF(OR(U27="$",(U27="$,Mo")),8,0) -> 0 | AA27: =IF(OR(V27="$",(V27="$,Mo")),16,0) -> 0 | AB27: =IF(OR(W27="$",(W27="$,Mo")),32,0) -> 0 | AC27: =IF(OR(X27="$",(X27="$,Mo")),64,0) -> 64 | AD27: =IF(OR(T27="Mo",(T27="$,Mo")),4,0) -> 4 | AE27: =IF(OR(U27="Mo",(U27="$,Mo")),8,0) -> 0 | AF27: =IF(OR(V27="Mo",(V27="$,Mo")),16,0) -> 0 | AG27: =IF(OR(W27="Mo",(W27="$,Mo")),32,0) -> 0 | AH27: =IF(OR(X27="Mo",(X27="$,Mo")),64,0) -> 0 | AI27: =IF(O26>0,O26,0) -> 4.783333333 | AJ27: =IF(O26<0,O26,0) -> 0 | AS27: =IF(AK26="Accept",0,(N27*L26)-AR28) -> 8.4 | AU27: =IF(AT28=0,0,(N27*L26)-AT28) -> 0 | AW27: ROW Acquisition/Relocation - South section & Nooksack | AX27: EXAMPLE EXAMPLE EXAMPLE EXAMPLE
M28: Most Likely | N28: 7 | S28: M | T28: =IF(AND(Q26="VERY LOW",Q30="very low",P26="medium"),"$,Mo",IF(AND(Q26="VERY LOW",P26="medium"),"$",IF(AND(Q30="very low",P26="medium"),"Mo",""))) ->  | U28: =IF(AND(Q26="LOW",Q30="low",P26="medium"),"$,Mo",IF(AND(Q26="LOW",P26="medium"),"$",IF(AND(Q30="low",P26="medium"),"Mo",""))) ->  | V28: =IF(AND(Q26="medium",Q30="medium",P26="medium"),"$,Mo",IF(AND(Q26="medium",P26="medium"),"$",IF(AND(Q30="medium",P26="medium"),"Mo",""))) ->  | W28: =IF(AND(Q26="high",Q30="high",P26="medium"),"$,Mo",IF(AND(Q26="high",P26="medium"),"$",IF(AND(Q30="high",P26="medium"),"Mo",""))) ->  | X28: =IF(AND(Q26="VERY high",Q30="VERY high",P26="medium"),"$,Mo",IF(AND(Q26="VERY high",P26="medium"),"$",IF(AND(Q30="VERY high",P26="medium"),"Mo",""))) ->  | Y28: =IF(OR(T28="$",(T28="$,Mo")),3,0) -> 0 | Z28: =IF(OR(U28="$",(U28="$,Mo")),6,0) -> 0 | AA28: =IF(OR(V28="$",(V28="$,Mo")),12,0) -> 0 | AB28: =IF(OR(W28="$",(W28="$,Mo")),24,0) -> 0 | AC28: =IF(OR(X28="$",(X28="$,Mo")),48,0) -> 0 | AD28: =IF(OR(T28="Mo",(T28="$,Mo")),3,0) -> 0 | AE28: =IF(OR(U28="Mo",(U28="$,Mo")),6,0) -> 0 | AF28: =IF(OR(V28="Mo",(V28="$,Mo")),12,0) -> 0 | AG28: =IF(OR(W28="Mo",(W28="$,Mo")),24,0) -> 0 | AH28: =IF(OR(X28="Mo",(X28="$,Mo")),48,0) -> 0 | AS28: =IF(AK26="Accept",0,(N28*L26)-AR28) -> 4.9 | AU28: =IF(AT28=0,0,(N28*L26)-AT28) -> 0 | AW28: ROW Acquisition/Relocation - North section
S29: L | T29: =IF(AND(Q26="VERY LOW",Q30="very low",P26="LOW"),"$,Mo",IF(AND(Q26="VERY LOW",P26="LOW"),"$",IF(AND(Q30="very low",P26="LOW"),"Mo",""))) ->  | U29: =IF(AND(Q26="LOW",Q30="low",P26="LOW"),"$,Mo",IF(AND(Q26="LOW",P26="LOW"),"$",IF(AND(Q30="low",P26="LOW"),"Mo",""))) ->  | V29: =IF(AND(Q26="medium",Q30="medium",P26="LOW"),"$,Mo",IF(AND(Q26="medium",P26="LOW"),"$",IF(AND(Q30="medium",P26="LOW"),"Mo",""))) ->  | W29: =IF(AND(Q26="high",Q30="high",P26="LOW"),"$,Mo",IF(AND(Q26="high",P26="LOW"),"$",IF(AND(Q30="high",P26="LOW"),"Mo",""))) ->  | X29: =IF(AND(Q26="VERY high",Q30="VERY high",P26="low"),"$,Mo",IF(AND(Q26="VERY high",P26="low"),"$",IF(AND(Q30="VERY high",P26="low"),"Mo",""))) ->  | Y29: =IF(OR(T29="$",(T29="$,Mo")),2,0) -> 0 | Z29: =IF(OR(U29="$",(U29="$,Mo")),4,0) -> 0 | AA29: =IF(OR(V29="$",(V29="$,Mo")),8,0) -> 0 | AB29: =IF(OR(W29="$",(W29="$,Mo")),16,0) -> 0 | AC29: =IF(OR(X29="$",(X29="$,Mo")),32,0) -> 0 | AD29: =IF(OR(T29="Mo",(T29="$,Mo")),2,0) -> 0 | AE29: =IF(OR(U29="Mo",(U29="$,Mo")),4,0) -> 0 | AF29: =IF(OR(V29="Mo",(V29="$,Mo")),8,0) -> 0 | AG29: =IF(OR(W29="Mo",(W29="$,Mo")),16,0) -> 0 | AH29: =IF(OR(X29="Mo",(X29="$,Mo")),32,0) -> 0 | AW29: Ad / Bid / Award - South Section
F30: Design | K30: Schedule | M30: MIN | N30: 0 | O30: =IF(C26="Retired",0,L26*(N30+4*N32+N31)/6) -> 1.866666667 | Q30: =IF(C26="Retired","NO RISK",IF(ABS(N32)>S$10,Q$10,IF(ABS(N32)>S$11,Q$11,IF(ABS(N32)>S$12,Q$12,IF(ABS(N32)>S$13,Q$13,IF(ABS(N32)>S$14,Q$14,"NO RISK")))))) -> Very Low | S30: VL | T30: =IF(AND(Q26="VERY LOW",Q30="very low",P26="VERY LOW"),"$,Mo",IF(AND(Q26="VERY LOW",P26="VERY LOW"),"$",IF(AND(Q30="very low",P26="VERY LOW"),"Mo",""))) ->  | U30: =IF(AND(Q26="LOW",Q30="low",P26="VERY LOW"),"$,Mo",IF(AND(Q26="LOW",P26="VERY LOW"),"$",IF(AND(Q30="low",P26="VERY LOW"),"Mo",""))) ->  | V30: =IF(AND(Q26="medium",Q30="medium",P26="VERY LOW"),"$,Mo",IF(AND(Q26="medium",P26="VERY LOW"),"$",IF(AND(Q30="medium",P26="VERY LOW"),"Mo",""))) ->  | W30: =IF(AND(Q26="high",Q30="high",P26="VERY LOW"),"$,Mo",IF(AND(Q26="high",P26="VERY LOW"),"$",IF(AND(Q30="high",P26="VERY LOW"),"Mo",""))) ->  | X30: =IF(AND(Q26="VERY high",Q30="VERY high",P26="VERY LOW"),"$,Mo",IF(AND(Q26="VERY high",P26="VERY LOW"),"$",IF(AND(Q30="VERY high",P26="VERY LOW"),"Mo",""))) ->  | Y30: =IF(OR(T30="$",(T30="$,Mo")),1,0) -> 0 | Z30: =IF(OR(U30="$",(U30="$,Mo")),2,0) -> 0 | AA30: =IF(OR(V30="$",(V30="$,Mo")),4,0) -> 0 | AB30: =IF(OR(W30="$",(W30="$,Mo")),8,0) -> 0 | AC30: =IF(OR(X30="$",(X30="$,Mo")),16,0) -> 0 | AD30: =IF(OR(T30="Mo",(T30="$,Mo")),1,0) -> 0 | AE30: =IF(OR(U30="Mo",(U30="$,Mo")),2,0) -> 0 | AF30: =IF(OR(V30="Mo",(V30="$,Mo")),4,0) -> 0 | AG30: =IF(OR(W30="Mo",(W30="$,Mo")),8,0) -> 0 | AH30: =IF(OR(X30="Mo",(X30="$,Mo")),16,0) -> 0 | AW30: Ad / Bid / Award - North Section
M31: MAX | N31: 4 | R31: Relative risk | T31: VL | U31: L | V31: M | W31: H | X31: VH | AA31: =SUM(Y26:AC30) -> 64 | AF31: =SUM(AD26:AH30) -> 4 | AI31: =IF(O30>0,O30,0) -> 1.866666667 | AJ31: =IF(O30<0,O30,0) -> 0 | AW31: Utility Agreements & Relocation - South Section
H32: Threat | M32: Most Likely | N32: 3 | R32: =AA31 -> 64 | S32: =AF31 -> 4 | T32: Impact | AW32: Utility Agreements & Relocation - North Section
L33: 0.9
B34: 1 | C34: Active | G34: Design | H34: Threat | K34: Cost | M34: MIN | O34: =IF(C34="Retired",0,L34*(N36)) -> 0 | P34: =IF(C34="Retired","NO RISK",IF(L34>(L$10-0.01),P$10,IF(L34>(L$11-0.01),P$11,IF(L34>(L$12-0.01),P$12,IF(L34>(L$13-0.01),P$13,IF(L34>(L$14),P$14,"NO RISK")))))) -> NO RISK | Q34: =IF(C34="Retired","NO RISK",IF(ABS(N36)>O$10,Q$10,IF(ABS(N36)>O$11,Q$11,IF(ABS(N36)>O$12,Q$12,IF(ABS(N36)>O$13,Q$13,IF(ABS(N36)>O$14,Q$14,"NO RISK")))))) -> NO RISK | R34: Probability | S34: VH | T34: =IF(AND(Q34="VERY LOW",Q38="very low",P34="VERY high"),"$,Mo",IF(AND(Q34="VERY LOW",P34="VERY high"),"$",IF(AND(Q38="very low",P34="VERY high"),"Mo",""))) ->  | U34: =IF(AND(Q34="LOW",Q38="low",P34="VERY high"),"$,Mo",IF(AND(Q34="LOW",P34="VERY high"),"$",IF(AND(Q38="low",P34="VERY high"),"Mo",""))) ->  | V34: =IF(AND(Q34="medium",Q38="medium",P34="VERY high"),"$,Mo",IF(AND(Q34="medium",P34="VERY high"),"$",IF(AND(Q38="medium",P34="VERY high"),"Mo",""))) ->  | W34: =IF(AND(Q34="high",Q38="high",P34="VERY high"),"$,Mo",IF(AND(Q34="high",P34="VERY high"),"$",IF(AND(Q38="high",P34="VERY high"),"Mo",""))) ->  | X34: =IF(AND(Q34="VERY high",Q38="VERY high",P34="VERY high"),"$,Mo",IF(AND(Q34="VERY high",P34="VERY high"),"$",IF(AND(Q38="VERY high",P34="VERY high"),"Mo",""))) ->  | Y34: =IF(OR(T34="$",(T34="$,Mo")),5,0) -> 0 | Z34: =IF(OR(U34="$",(U34="$,Mo")),10,0) -> 0 | AA34: =IF(OR(V34="$",(V34="$,Mo")),20,0) -> 0 | AB34: =IF(OR(W34="$",(W34="$,Mo")),40,0) -> 0 | AC34: =IF(OR(X34="$",(X34="$,Mo")),80,0) -> 0 | AD34: =IF(OR(T34="Mo",(T34="$,Mo")),5,0) -> 0 | AE34: =IF(OR(U34="Mo",(U34="$,Mo")),10,0) -> 0 | AF34: =IF(OR(V34="Mo",(V34="$,Mo")),20,0) -> 0 | AG34: =IF(OR(W34="Mo",(W34="$,Mo")),40,0) -> 0 | AH34: =IF(OR(X34="Mo",(X34="$,Mo")),60,0) -> 0 | AP34: NEAR | AS34: =IF(AK34="Acceptance",0,(N34*L34)-AR36) -> 0 | AU34: =IF(AT36=0,0,(N34*L34)-AT36) -> 0 | AV34: =O34-AT34 -> 0 | AW34: Bridge Construction | AX34: =IF($D34="ROW",$AR36," ") ->  | AY34: =IF($D34="ROW",$AS36," ") ->  | AZ34: =IF($D34="ENV",$AR36," ") ->  | BA34: =IF($D34="ENV",$AS36," ") ->  | BB34: =IF($D34="ENG",$AR36," ") ->  | BC34: =IF($D34="ENG",$AS36," ") ->  | BD34: =IF($D34="TRF",$AR36," ") ->  | BE34: =IF($D34="TRF",$AS36," ") ->  | BF34: =IF($D34="STK",$AR36," ") ->  | BG34: =IF($D34="STK",$AS36," ") ->  | BH34: =IF($D34="UNF",$AR36," ") ->  | BI34: =IF($D34="UNF",$AS36," ") ->  | BJ34: =IF($D34="MKT",$AR36," ") ->  | BK34: =IF($D34="MKT",$AS36," ") ->  | BL34: =IF($D34="UTL",$AR36," ") ->  | BM34: =IF($D34="UTL",$AS36," ") -> 
M35: MAX | S35: H | T35: =IF(AND(Q34="VERY LOW",Q38="very low",P34="high"),"$,Mo",IF(AND(Q34="VERY LOW",P34="high"),"$",IF(AND(Q38="very low",P34="high"),"Mo",""))) ->  | U35: =IF(AND(Q34="LOW",Q38="low",P34="high"),"$,Mo",IF(AND(Q34="LOW",P34="high"),"$",IF(AND(Q38="low",P34="high"),"Mo",""))) ->  | V35: =IF(AND(Q34="medium",Q38="medium",P34="high"),"$,Mo",IF(AND(Q34="medium",P34="high"),"$",IF(AND(Q38="medium",P34="high"),"Mo",""))) ->  | W35: =IF(AND(Q34="high",Q38="high",P34="high"),"$,Mo",IF(AND(Q34="high",P34="high"),"$",IF(AND(Q38="high",P34="high"),"Mo",""))) ->  | X35: =IF(AND(Q34="VERY high",Q38="VERY high",P34="high"),"$,Mo",IF(AND(Q34="VERY high",P34="high"),"$",IF(AND(Q38="VERY high",P34="high"),"Mo",""))) ->  | Y35: =IF(OR(T35="$",(T35="$,Mo")),4,0) -> 0 | Z35: =IF(OR(U35="$",(U35="$,Mo")),8,0) -> 0 | AA35: =IF(OR(V35="$",(V35="$,Mo")),16,0) -> 0 | AB35: =IF(OR(W35="$",(W35="$,Mo")),32,0) -> 0 | AC35: =IF(OR(X35="$",(X35="$,Mo")),64,0) -> 0 | AD35: =IF(OR(T35="Mo",(T35="$,Mo")),4,0) -> 0 | AE35: =IF(OR(U35="Mo",(U35="$,Mo")),8,0) -> 0 | AF35: =IF(OR(V35="Mo",(V35="$,Mo")),16,0) -> 0 | AG35: =IF(OR(W35="Mo",(W35="$,Mo")),32,0) -> 0 | AH35: =IF(OR(X35="Mo",(X35="$,Mo")),64,0) -> 0 | AI35: =IF(O34>0,O34,0) -> 0 | AJ35: =IF(O34<0,O34,0) -> 0 | AS35: =IF(AK34="Acceptance",0,(N35*L34)-AR36) -> 0 | AU35: =IF(AT36=0,0,(N35*L34)-AT36) -> 0 | AW35: ROW Plan/Utility/Ad/Bid/Award/CN - Nooksack River Bridge | AX35: RISK 1 >>>>>>>>>>>>>>>>
M36: Most Likely | S36: M | T36: =IF(AND(Q34="VERY LOW",Q38="very low",P34="medium"),"$,Mo",IF(AND(Q34="VERY LOW",P34="medium"),"$",IF(AND(Q38="very low",P34="medium"),"Mo",""))) ->  | U36: =IF(AND(Q34="LOW",Q38="low",P34="medium"),"$,Mo",IF(AND(Q34="LOW",P34="medium"),"$",IF(AND(Q38="low",P34="medium"),"Mo",""))) ->  | V36: =IF(AND(Q34="medium",Q38="medium",P34="medium"),"$,Mo",IF(AND(Q34="medium",P34="medium"),"$",IF(AND(Q38="medium",P34="medium"),"Mo",""))) ->  | W36: =IF(AND(Q34="high",Q38="high",P34="medium"),"$,Mo",IF(AND(Q34="high",P34="medium"),"$",IF(AND(Q38="high",P34="medium"),"Mo",""))) ->  | X36: =IF(AND(Q34="VERY high",Q38="VERY high",P34="medium"),"$,Mo",IF(AND(Q34="VERY high",P34="medium"),"$",IF(AND(Q38="VERY high",P34="medium"),"Mo",""))) ->  | Y36: =IF(OR(T36="$",(T36="$,Mo")),3,0) -> 0 | Z36: =IF(OR(U36="$",(U36="$,Mo")),6,0) -> 0 | AA36: =IF(OR(V36="$",(V36="$,Mo")),12,0) -> 0 | AB36: =IF(OR(W36="$",(W36="$,Mo")),24,0) -> 0 | AC36: =IF(OR(X36="$",(X36="$,Mo")),48,0) -> 0 | AD36: =IF(OR(T36="Mo",(T36="$,Mo")),3,0) -> 0 | AE36: =IF(OR(U36="Mo",(U36="$,Mo")),6,0) -> 0 | AF36: =IF(OR(V36="Mo",(V36="$,Mo")),12,0) -> 0 | AG36: =IF(OR(W36="Mo",(W36="$,Mo")),24,0) -> 0 | AH36: =IF(OR(X36="Mo",(X36="$,Mo")),48,0) -> 0 | AR36: 0 | AS36: =IF(AK34="Acceptance",0,(N36*L34)-AR36) -> 0 | AU36: =IF(AT36=0,0,(N36*L34)-AT36) -> 0 | AW36: Roadway Construction - North Section
S37: L | T37: =IF(AND(Q34="VERY LOW",Q38="very low",P34="LOW"),"$,Mo",IF(AND(Q34="VERY LOW",P34="LOW"),"$",IF(AND(Q38="very low",P34="LOW"),"Mo",""))) ->  | U37: =IF(AND(Q34="LOW",Q38="low",P34="LOW"),"$,Mo",IF(AND(Q34="LOW",P34="LOW"),"$",IF(AND(Q38="low",P34="LOW"),"Mo",""))) ->  | V37: =IF(AND(Q34="medium",Q38="medium",P34="LOW"),"$,Mo",IF(AND(Q34="medium",P34="LOW"),"$",IF(AND(Q38="medium",P34="LOW"),"Mo",""))) ->  | W37: =IF(AND(Q34="high",Q38="high",P34="LOW"),"$,Mo",IF(AND(Q34="high",P34="LOW"),"$",IF(AND(Q38="high",P34="LOW"),"Mo",""))) ->  | X37: =IF(AND(Q34="VERY high",Q38="VERY high",P34="low"),"$,Mo",IF(AND(Q34="VERY high",P34="low"),"$",IF(AND(Q38="VERY high",P34="low"),"Mo",""))) ->  | Y37: =IF(OR(T37="$",(T37="$,Mo")),2,0) -> 0 | Z37: =IF(OR(U37="$",(U37="$,Mo")),4,0) -> 0 | AA37: =IF(OR(V37="$",(V37="$,Mo")),8,0) -> 0 | AB37: =IF(OR(W37="$",(W37="$,Mo")),16,0) -> 0 | AC37: =IF(OR(X37="$",(X37="$,Mo")),32,0) -> 0 | AD37: =IF(OR(T37="Mo",(T37="$,Mo")),2,0) -> 0 | AE37: =IF(OR(U37="Mo",(U37="$,Mo")),4,0) -> 0 | AF37: =IF(OR(V37="Mo",(V37="$,Mo")),8,0) -> 0 | AG37: =IF(OR(W37="Mo",(W37="$,Mo")),16,0) -> 0 | AH37: =IF(OR(X37="Mo",(X37="$,Mo")),32,0) -> 0 | AW37: Complete
K38: Schedule | M38: MIN | O38: =IF(C34="Retired",0,L34*(N40)) -> 0 | Q38: =IF(C34="Retired","NO RISK",IF(ABS(N40)>S$10,Q$10,IF(ABS(N40)>S$11,Q$11,IF(ABS(N40)>S$12,Q$12,IF(ABS(N40)>S$13,Q$13,IF(ABS(N40)>S$14,Q$14,"NO RISK")))))) -> NO RISK | S38: VL | T38: =IF(AND(Q34="VERY LOW",Q38="very low",P34="VERY LOW"),"$,Mo",IF(AND(Q34="VERY LOW",P34="VERY LOW"),"$",IF(AND(Q38="very low",P34="VERY LOW"),"Mo",""))) ->  | U38: =IF(AND(Q34="LOW",Q38="low",P34="VERY LOW"),"$,Mo",IF(AND(Q34="LOW",P34="VERY LOW"),"$",IF(AND(Q38="low",P34="VERY LOW"),"Mo",""))) ->  | V38: =IF(AND(Q34="medium",Q38="medium",P34="VERY LOW"),"$,Mo",IF(AND(Q34="medium",P34="VERY LOW"),"$",IF(AND(Q38="medium",P34="VERY LOW"),"Mo",""))) ->  | W38: =IF(AND(Q34="high",Q38="high",P34="VERY LOW"),"$,Mo",IF(AND(Q34="high",P34="VERY LOW"),"$",IF(AND(Q38="high",P34="VERY LOW"),"Mo",""))) ->  | X38: =IF(AND(Q34="VERY high",Q38="VERY high",P34="VERY LOW"),"$,Mo",IF(AND(Q34="VERY high",P34="VERY LOW"),"$",IF(AND(Q38="VERY high",P34="VERY LOW"),"Mo",""))) ->  | Y38: =IF(OR(T38="$",(T38="$,Mo")),1,0) -> 0 | Z38: =IF(OR(U38="$",(U38="$,Mo")),2,0) -> 0 | AA38: =IF(OR(V38="$",(V38="$,Mo")),4,0) -> 0 | AB38: =IF(OR(W38="$",(W38="$,Mo")),8,0) -> 0 | AC38: =IF(OR(X38="$",(X38="$,Mo")),16,0) -> 0 | AD38: =IF(OR(T38="Mo",(T38="$,Mo")),1,0) -> 0 | AE38: =IF(OR(U38="Mo",(U38="$,Mo")),2,0) -> 0 | AF38: =IF(OR(V38="Mo",(V38="$,Mo")),4,0) -> 0 | AG38: =IF(OR(W38="Mo",(W38="$,Mo")),8,0) -> 0 | AH38: =IF(OR(X38="Mo",(X38="$,Mo")),16,0) -> 0
M39: MAX | R39: Relative risk | T39: VL | U39: L | V39: M | W39: H | X39: VH | AA39: =SUM(Y34:AC38) -> 0 | AF39: =SUM(AD34:AH38) -> 0 | AI39: =IF(O38>0,O38,0) -> 0 | AJ39: =IF(O38<0,O38,0) -> 0
H40: Threat | M40: Most Likely | R40: =AA39 -> 0 | S40: =AF39 -> 0 | T40: Impact
B42: 2 | C42: Active | G42: Design | H42: Threat | K42: Cost | M42: MIN | O42: =IF(C42="Retired",0,L42*(N42+4*N44+N43)/6) -> 0 | P42: =IF(C42="Retired","NO RISK",IF(L42>(L$10-0.01),P$10,IF(L42>(L$11-0.01),P$11,IF(L42>(L$12-0.01),P$12,IF(L42>(L$13-0.01),P$13,IF(L42>(L$14),P$14,"NO RISK")))))) -> NO RISK | Q42: =IF(C42="Retired","NO RISK",IF(ABS(N44)>O$10,Q$10,IF(ABS(N44)>O$11,Q$11,IF(ABS(N44)>O$12,Q$12,IF(ABS(N44)>O$13,Q$13,IF(ABS(N44)>O$14,Q$14,"NO RISK")))))) -> NO RISK | R42: Probability | S42: VH | T42: =IF(AND(Q42="VERY LOW",Q46="very low",P42="VERY high"),"$,Mo",IF(AND(Q42="VERY LOW",P42="VERY high"),"$",IF(AND(Q46="very low",P42="VERY high"),"Mo",""))) ->  | U42: =IF(AND(Q42="LOW",Q46="low",P42="VERY high"),"$,Mo",IF(AND(Q42="LOW",P42="VERY high"),"$",IF(AND(Q46="low",P42="VERY high"),"Mo",""))) ->  | V42: =IF(AND(Q42="medium",Q46="medium",P42="VERY high"),"$,Mo",IF(AND(Q42="medium",P42="VERY high"),"$",IF(AND(Q46="medium",P42="VERY high"),"Mo",""))) ->  | W42: =IF(AND(Q42="high",Q46="high",P42="VERY high"),"$,Mo",IF(AND(Q42="high",P42="VERY high"),"$",IF(AND(Q46="high",P42="VERY high"),"Mo",""))) ->  | X42: =IF(AND(Q42="VERY high",Q46="VERY high",P42="VERY high"),"$,Mo",IF(AND(Q42="VERY high",P42="VERY high"),"$",IF(AND(Q46="VERY high",P42="VERY high"),"Mo",""))) ->  | Y42: =IF(OR(T42="$",(T42="$,Mo")),5,0) -> 0 | Z42: =IF(OR(U42="$",(U42="$,Mo")),10,0) -> 0 | AA42: =IF(OR(V42="$",(V42="$,Mo")),20,0) -> 0 | AB42: =IF(OR(W42="$",(W42="$,Mo")),40,0) -> 0 | AC42: =IF(OR(X42="$",(X42="$,Mo")),80,0) -> 0 | AD42: =IF(OR(T42="Mo",(T42="$,Mo")),5,0) -> 0 | AE42: =IF(OR(U42="Mo",(U42="$,Mo")),10,0) -> 0 | AF42: =IF(OR(V42="Mo",(V42="$,Mo")),20,0) -> 0 | AG42: =IF(OR(W42="Mo",(W42="$,Mo")),40,0) -> 0 | AH42: =IF(OR(X42="Mo",(X42="$,Mo")),60,0) -> 0 | AP42: NEAR | AS42: =IF(AK42="Accept",0,(N42*L42)-AR44) -> 0 | AU42: =IF(AT44=0,0,(N42*L42)-AT44) -> 0 | AV42: =O42-AT42 -> 0 | AW42: Bridge Construction | AX42: =IF($D42="ROW",$AR44," ") ->  | AY42: =IF($D42="ROW",$AS44," ") ->  | AZ42: =IF($D42="ENV",$AR44," ") ->  | BA42: =IF($D42="ENV",$AS44," ") ->  | BB42: =IF($D42="ENG",$AR44," ") ->  | BC42: =IF($D42="ENG",$AS44," ") ->  | BD42: =IF($D42="TRF",$AR44," ") ->  | BE42: =IF($D42="TRF",$AS44," ") ->  | BF42: =IF($D42="STK",$AR44," ") ->  | BG42: =IF($D42="STK",$AS44," ") ->  | BH42: =IF($D42="UNF",$AR44," ") ->  | BI42: =IF($D42="UNF",$AS44," ") ->  | BJ42: =IF($D42="MKT",$AR44," ") ->  | BK42: =IF($D42="MKT",$AS44," ") ->  | BL42: =IF($D42="UTL",$AR44," ") ->  | BM42: =IF($D42="UTL",$AS44," ") -> 
M43: MAX | S43: H | T43: =IF(AND(Q42="VERY LOW",Q46="very low",P42="high"),"$,Mo",IF(AND(Q42="VERY LOW",P42="high"),"$",IF(AND(Q46="very low",P42="high"),"Mo",""))) ->  | U43: =IF(AND(Q42="LOW",Q46="low",P42="high"),"$,Mo",IF(AND(Q42="LOW",P42="high"),"$",IF(AND(Q46="low",P42="high"),"Mo",""))) ->  | V43: =IF(AND(Q42="medium",Q46="medium",P42="high"),"$,Mo",IF(AND(Q42="medium",P42="high"),"$",IF(AND(Q46="medium",P42="high"),"Mo",""))) ->  | W43: =IF(AND(Q42="high",Q46="high",P42="high"),"$,Mo",IF(AND(Q42="high",P42="high"),"$",IF(AND(Q46="high",P42="high"),"Mo",""))) ->  | X43: =IF(AND(Q42="VERY high",Q46="VERY high",P42="high"),"$,Mo",IF(AND(Q42="VERY high",P42="high"),"$",IF(AND(Q46="VERY high",P42="high"),"Mo",""))) ->  | Y43: =IF(OR(T43="$",(T43="$,Mo")),4,0) -> 0 | Z43: =IF(OR(U43="$",(U43="$,Mo")),8,0) -> 0 | AA43: =IF(OR(V43="$",(V43="$,Mo")),16,0) -> 0 | AB43: =IF(OR(W43="$",(W43="$,Mo")),32,0) -> 0 | AC43: =IF(OR(X43="$",(X43="$,Mo")),64,0) -> 0 | AD43: =IF(OR(T43="Mo",(T43="$,Mo")),4,0) -> 0 | AE43: =IF(OR(U43="Mo",(U43="$,Mo")),8,0) -> 0 | AF43: =IF(OR(V43="Mo",(V43="$,Mo")),16,0) -> 0 | AG43: =IF(OR(W43="Mo",(W43="$,Mo")),32,0) -> 0 | AH43: =IF(OR(X43="Mo",(X43="$,Mo")),64,0) -> 0 | AI43: =IF(O42>0,O42,0) -> 0 | AJ43: =IF(O42<0,O42,0) -> 0 | AS43: =IF(AK42="Accept",0,(N43*L42)-AR44) -> 0 | AU43: =IF(AT44=0,0,(N43*L42)-AT44) -> 0 | AW43: ROW Plan/Utility/Ad/Bid/Award/CN - Nooksack River Bridge | AX43: RISK 2 >>>>>>>>>>>>>>>>
M44: Most Likely | S44: M | T44: =IF(AND(Q42="VERY LOW",Q46="very low",P42="medium"),"$,Mo",IF(AND(Q42="VERY LOW",P42="medium"),"$",IF(AND(Q46="very low",P42="medium"),"Mo",""))) ->  | U44: =IF(AND(Q42="LOW",Q46="low",P42="medium"),"$,Mo",IF(AND(Q42="LOW",P42="medium"),"$",IF(AND(Q46="low",P42="medium"),"Mo",""))) ->  | V44: =IF(AND(Q42="medium",Q46="medium",P42="medium"),"$,Mo",IF(AND(Q42="medium",P42="medium"),"$",IF(AND(Q46="medium",P42="medium"),"Mo",""))) ->  | W44: =IF(AND(Q42="high",Q46="high",P42="medium"),"$,Mo",IF(AND(Q42="high",P42="medium"),"$",IF(AND(Q46="high",P42="medium"),"Mo",""))) ->  | X44: =IF(AND(Q42="VERY high",Q46="VERY high",P42="medium"),"$,Mo",IF(AND(Q42="VERY high",P42="medium"),"$",IF(AND(Q46="VERY high",P42="medium"),"Mo",""))) ->  | Y44: =IF(OR(T44="$",(T44="$,Mo")),3,0) -> 0 | Z44: =IF(OR(U44="$",(U44="$,Mo")),6,0) -> 0 | AA44: =IF(OR(V44="$",(V44="$,Mo")),12,0) -> 0 | AB44: =IF(OR(W44="$",(W44="$,Mo")),24,0) -> 0 | AC44: =IF(OR(X44="$",(X44="$,Mo")),48,0) -> 0 | AD44: =IF(OR(T44="Mo",(T44="$,Mo")),3,0) -> 0 | AE44: =IF(OR(U44="Mo",(U44="$,Mo")),6,0) -> 0 | AF44: =IF(OR(V44="Mo",(V44="$,Mo")),12,0) -> 0 | AG44: =IF(OR(W44="Mo",(W44="$,Mo")),24,0) -> 0 | AH44: =IF(OR(X44="Mo",(X44="$,Mo")),48,0) -> 0 | AR44: 0 | AS44: =IF(AK42="Accept",0,(N44*L42)-AR44) -> 0 | AU44: =IF(AT44=0,0,(N44*L42)-AT44) -> 0 | AW44: Roadway Construction - North Section
S45: L | T45: =IF(AND(Q42="VERY LOW",Q46="very low",P42="LOW"),"$,Mo",IF(AND(Q42="VERY LOW",P42="LOW"),"$",IF(AND(Q46="very low",P42="LOW"),"Mo",""))) ->  | U45: =IF(AND(Q42="LOW",Q46="low",P42="LOW"),"$,Mo",IF(AND(Q42="LOW",P42="LOW"),"$",IF(AND(Q46="low",P42="LOW"),"Mo",""))) ->  | V45: =IF(AND(Q42="medium",Q46="medium",P42="LOW"),"$,Mo",IF(AND(Q42="medium",P42="LOW"),"$",IF(AND(Q46="medium",P42="LOW"),"Mo",""))) ->  | W45: =IF(AND(Q42="high",Q46="high",P42="LOW"),"$,Mo",IF(AND(Q42="high",P42="LOW"),"$",IF(AND(Q46="high",P42="LOW"),"Mo",""))) ->  | X45: =IF(AND(Q42="VERY high",Q46="VERY high",P42="low"),"$,Mo",IF(AND(Q42="VERY high",P42="low"),"$",IF(AND(Q46="VERY high",P42="low"),"Mo",""))) ->  | Y45: =IF(OR(T45="$",(T45="$,Mo")),2,0) -> 0 | Z45: =IF(OR(U45="$",(U45="$,Mo")),4,0) -> 0 | AA45: =IF(OR(V45="$",(V45="$,Mo")),8,0) -> 0 | AB45: =IF(OR(W45="$",(W45="$,Mo")),16,0) -> 0 | AC45: =IF(OR(X45="$",(X45="$,Mo")),32,0) -> 0 | AD45: =IF(OR(T45="Mo",(T45="$,Mo")),2,0) -> 0 | AE45: =IF(OR(U45="Mo",(U45="$,Mo")),4,0) -> 0 | AF45: =IF(OR(V45="Mo",(V45="$,Mo")),8,0) -> 0 | AG45: =IF(OR(W45="Mo",(W45="$,Mo")),16,0) -> 0 | AH45: =IF(OR(X45="Mo",(X45="$,Mo")),32,0) -> 0 | AW45: Complete
K46: Schedule | M46: MIN | O46: =IF(C42="Retired",0,L42*(N46+4*N48+N47)/6) -> 0 | Q46: =IF(C42="Retired","NO RISK",IF(ABS(N48)>S$10,Q$10,IF(ABS(N48)>S$11,Q$11,IF(ABS(N48)>S$12,Q$12,IF(ABS(N48)>S$13,Q$13,IF(ABS(N48)>S$14,Q$14,"NO RISK")))))) -> NO RISK | S46: VL | T46: =IF(AND(Q42="VERY LOW",Q46="very low",P42="VERY LOW"),"$,Mo",IF(AND(Q42="VERY LOW",P42="VERY LOW"),"$",IF(AND(Q46="very low",P42="VERY LOW"),"Mo",""))) ->  | U46: =IF(AND(Q42="LOW",Q46="low",P42="VERY LOW"),"$,Mo",IF(AND(Q42="LOW",P42="VERY LOW"),"$",IF(AND(Q46="low",P42="VERY LOW"),"Mo",""))) ->  | V46: =IF(AND(Q42="medium",Q46="medium",P42="VERY LOW"),"$,Mo",IF(AND(Q42="medium",P42="VERY LOW"),"$",IF(AND(Q46="medium",P42="VERY LOW"),"Mo",""))) ->  | W46: =IF(AND(Q42="high",Q46="high",P42="VERY LOW"),"$,Mo",IF(AND(Q42="high",P42="VERY LOW"),"$",IF(AND(Q46="high",P42="VERY LOW"),"Mo",""))) ->  | X46: =IF(AND(Q42="VERY high",Q46="VERY high",P42="VERY LOW"),"$,Mo",IF(AND(Q42="VERY high",P42="VERY LOW"),"$",IF(AND(Q46="VERY high",P42="VERY LOW"),"Mo",""))) ->  | Y46: =IF(OR(T46="$",(T46="$,Mo")),1,0) -> 0 | Z46: =IF(OR(U46="$",(U46="$,Mo")),2,0) -> 0 | AA46: =IF(OR(V46="$",(V46="$,Mo")),4,0) -> 0 | AB46: =IF(OR(W46="$",(W46="$,Mo")),8,0) -> 0 | AC46: =IF(OR(X46="$",(X46="$,Mo")),16,0) -> 0 | AD46: =IF(OR(T46="Mo",(T46="$,Mo")),1,0) -> 0 | AE46: =IF(OR(U46="Mo",(U46="$,Mo")),2,0) -> 0 | AF46: =IF(OR(V46="Mo",(V46="$,Mo")),4,0) -> 0 | AG46: =IF(OR(W46="Mo",(W46="$,Mo")),8,0) -> 0 | AH46: =IF(OR(X46="Mo",(X46="$,Mo")),16,0) -> 0
M47: MAX | R47: Relative risk | T47: VL | U47: L | V47: M | W47: H | X47: VH | AA47: =SUM(Y42:AC46) -> 0 | AF47: =SUM(AD42:AH46) -> 0 | AI47: =IF(O46>0,O46,0) -> 0 | AJ47: =IF(O46<0,O46,0) -> 0
H48: Threat | M48: Most Likely | R48: =AA47 -> 0 | S48: =AF47 -> 0 | T48: Impact
B50: 3 | C50: Active | G50: Design | H50: Threat | K50: Cost | M50: MIN | O50: =IF(C50="Retired",0,L50*(N50+4*N52+N51)/6) -> 0 | P50: =IF(C50="Retired","NO RISK",IF(L50>(L$10-0.01),P$10,IF(L50>(L$11-0.01),P$11,IF(L50>(L$12-0.01),P$12,IF(L50>(L$13-0.01),P$13,IF(L50>(L$14),P$14,"NO RISK")))))) -> NO RISK | Q50: =IF(C50="Retired","NO RISK",IF(ABS(N52)>O$10,Q$10,IF(ABS(N52)>O$11,Q$11,IF(ABS(N52)>O$12,Q$12,IF(ABS(N52)>O$13,Q$13,IF(ABS(N52)>O$14,Q$14,"NO RISK")))))) -> NO RISK | R50: Probability | S50: VH | T50: =IF(AND(Q50="VERY LOW",Q54="very low",P50="VERY high"),"$,Mo",IF(AND(Q50="VERY LOW",P50="VERY high"),"$",IF(AND(Q54="very low",P50="VERY high"),"Mo",""))) ->  | U50: =IF(AND(Q50="LOW",Q54="low",P50="VERY high"),"$,Mo",IF(AND(Q50="LOW",P50="VERY high"),"$",IF(AND(Q54="low",P50="VERY high"),"Mo",""))) ->  | V50: =IF(AND(Q50="medium",Q54="medium",P50="VERY high"),"$,Mo",IF(AND(Q50="medium",P50="VERY high"),"$",IF(AND(Q54="medium",P50="VERY high"),"Mo",""))) ->  | W50: =IF(AND(Q50="high",Q54="high",P50="VERY high"),"$,Mo",IF(AND(Q50="high",P50="VERY high"),"$",IF(AND(Q54="high",P50="VERY high"),"Mo",""))) ->  | X50: =IF(AND(Q50="VERY high",Q54="VERY high",P50="VERY high"),"$,Mo",IF(AND(Q50="VERY high",P50="VERY high"),"$",IF(AND(Q54="VERY high",P50="VERY high"),"Mo",""))) ->  | Y50: =IF(OR(T50="$",(T50="$,Mo")),5,0) -> 0 | Z50: =IF(OR(U50="$",(U50="$,Mo")),10,0) -> 0 | AA50: =IF(OR(V50="$",(V50="$,Mo")),20,0) -> 0 | AB50: =IF(OR(W50="$",(W50="$,Mo")),40,0) -> 0 | AC50: =IF(OR(X50="$",(X50="$,Mo")),80,0) -> 0 | AD50: =IF(OR(T50="Mo",(T50="$,Mo")),5,0) -> 0 | AE50: =IF(OR(U50="Mo",(U50="$,Mo")),10,0) -> 0 | AF50: =IF(OR(V50="Mo",(V50="$,Mo")),20,0) -> 0 | AG50: =IF(OR(W50="Mo",(W50="$,Mo")),40,0) -> 0 | AH50: =IF(OR(X50="Mo",(X50="$,Mo")),60,0) -> 0 | AP50: NEAR | AS50: =IF(AK50="Accept",0,(N50*L50)-AR52) -> 0 | AU50: =IF(AT52=0,0,(N50*L50)-AT52) -> 0 | AV50: =O50-AT50 -> 0 | AX50: =IF($D50="ROW",$AR52," ") ->  | AY50: =IF($D50="ROW",$AS52," ") ->  | AZ50: =IF($D50="ENV",$AR52," ") ->  | BA50: =IF($D50="ENV",$AS52," ") ->  | BB50: =IF($D50="ENG",$AR52," ") ->  | BC50: =IF($D50="ENG",$AS52," ") ->  | BD50: =IF($D50="TRF",$AR52," ") ->  | BE50: =IF($D50="TRF",$AS52," ") ->  | BF50: =IF($D50="STK",$AR52," ") ->  | BG50: =IF($D50="STK",$AS52," ") ->  | BH50: =IF($D50="UNF",$AR52," ") ->  | BI50: =IF($D50="UNF",$AS52," ") ->  | BJ50: =IF($D50="MKT",$AR52," ") ->  | BK50: =IF($D50="MKT",$AS52," ") ->  | BL50: =IF($D50="UTL",$AR52," ") ->  | BM50: =IF($D50="UTL",$AS52," ") -> 
M51: MAX | S51: H | T51: =IF(AND(Q50="VERY LOW",Q54="very low",P50="high"),"$,Mo",IF(AND(Q50="VERY LOW",P50="high"),"$",IF(AND(Q54="very low",P50="high"),"Mo",""))) ->  | U51: =IF(AND(Q50="LOW",Q54="low",P50="high"),"$,Mo",IF(AND(Q50="LOW",P50="high"),"$",IF(AND(Q54="low",P50="high"),"Mo",""))) ->  | V51: =IF(AND(Q50="medium",Q54="medium",P50="high"),"$,Mo",IF(AND(Q50="medium",P50="high"),"$",IF(AND(Q54="medium",P50="high"),"Mo",""))) ->  | W51: =IF(AND(Q50="high",Q54="high",P50="high"),"$,Mo",IF(AND(Q50="high",P50="high"),"$",IF(AND(Q54="high",P50="high"),"Mo",""))) ->  | X51: =IF(AND(Q50="VERY high",Q54="VERY high",P50="high"),"$,Mo",IF(AND(Q50="VERY high",P50="high"),"$",IF(AND(Q54="VERY high",P50="high"),"Mo",""))) ->  | Y51: =IF(OR(T51="$",(T51="$,Mo")),4,0) -> 0 | Z51: =IF(OR(U51="$",(U51="$,Mo")),8,0) -> 0 | AA51: =IF(OR(V51="$",(V51="$,Mo")),16,0) -> 0 | AB51: =IF(OR(W51="$",(W51="$,Mo")),32,0) -> 0 | AC51: =IF(OR(X51="$",(X51="$,Mo")),64,0) -> 0 | AD51: =IF(OR(T51="Mo",(T51="$,Mo")),4,0) -> 0 | AE51: =IF(OR(U51="Mo",(U51="$,Mo")),8,0) -> 0 | AF51: =IF(OR(V51="Mo",(V51="$,Mo")),16,0) -> 0 | AG51: =IF(OR(W51="Mo",(W51="$,Mo")),32,0) -> 0 | AH51: =IF(OR(X51="Mo",(X51="$,Mo")),64,0) -> 0 | AI51: =IF(O50>0,O50,0) -> 0 | AJ51: =IF(O50<0,O50,0) -> 0 | AS51: =IF(AK50="Accept",0,(N51*L50)-AR52) -> 0 | AU51: =IF(AT52=0,0,(N51*L50)-AT52) -> 0 | AX51: RISK 3 >>>>>>>>>>>>>>>>
M52: Most Likely | S52: M | T52: =IF(AND(Q50="VERY LOW",Q54="very low",P50="medium"),"$,Mo",IF(AND(Q50="VERY LOW",P50="medium"),"$",IF(AND(Q54="very low",P50="medium"),"Mo",""))) ->  | U52: =IF(AND(Q50="LOW",Q54="low",P50="medium"),"$,Mo",IF(AND(Q50="LOW",P50="medium"),"$",IF(AND(Q54="low",P50="medium"),"Mo",""))) ->  | V52: =IF(AND(Q50="medium",Q54="medium",P50="medium"),"$,Mo",IF(AND(Q50="medium",P50="medium"),"$",IF(AND(Q54="medium",P50="medium"),"Mo",""))) ->  | W52: =IF(AND(Q50="high",Q54="high",P50="medium"),"$,Mo",IF(AND(Q50="high",P50="medium"),"$",IF(AND(Q54="high",P50="medium"),"Mo",""))) ->  | X52: =IF(AND(Q50="VERY high",Q54="VERY high",P50="medium"),"$,Mo",IF(AND(Q50="VERY high",P50="medium"),"$",IF(AND(Q54="VERY high",P50="medium"),"Mo",""))) ->  | Y52: =IF(OR(T52="$",(T52="$,Mo")),3,0) -> 0 | Z52: =IF(OR(U52="$",(U52="$,Mo")),6,0) -> 0 | AA52: =IF(OR(V52="$",(V52="$,Mo")),12,0) -> 0 | AB52: =IF(OR(W52="$",(W52="$,Mo")),24,0) -> 0 | AC52: =IF(OR(X52="$",(X52="$,Mo")),48,0) -> 0 | AD52: =IF(OR(T52="Mo",(T52="$,Mo")),3,0) -> 0 | AE52: =IF(OR(U52="Mo",(U52="$,Mo")),6,0) -> 0 | AF52: =IF(OR(V52="Mo",(V52="$,Mo")),12,0) -> 0 | AG52: =IF(OR(W52="Mo",(W52="$,Mo")),24,0) -> 0 | AH52: =IF(OR(X52="Mo",(X52="$,Mo")),48,0) -> 0 | AR52: 0 | AS52: =IF(AK50="Accept",0,(N52*L50)-AR52) -> 0 | AU52: =IF(AT52=0,0,(N52*L50)-AT52) -> 0
S53: L | T53: =IF(AND(Q50="VERY LOW",Q54="very low",P50="LOW"),"$,Mo",IF(AND(Q50="VERY LOW",P50="LOW"),"$",IF(AND(Q54="very low",P50="LOW"),"Mo",""))) ->  | U53: =IF(AND(Q50="LOW",Q54="low",P50="LOW"),"$,Mo",IF(AND(Q50="LOW",P50="LOW"),"$",IF(AND(Q54="low",P50="LOW"),"Mo",""))) ->  | V53: =IF(AND(Q50="medium",Q54="medium",P50="LOW"),"$,Mo",IF(AND(Q50="medium",P50="LOW"),"$",IF(AND(Q54="medium",P50="LOW"),"Mo",""))) ->  | W53: =IF(AND(Q50="high",Q54="high",P50="LOW"),"$,Mo",IF(AND(Q50="high",P50="LOW"),"$",IF(AND(Q54="high",P50="LOW"),"Mo",""))) ->  | X53: =IF(AND(Q50="VERY high",Q54="VERY high",P50="low"),"$,Mo",IF(AND(Q50="VERY high",P50="low"),"$",IF(AND(Q54="VERY high",P50="low"),"Mo",""))) ->  | Y53: =IF(OR(T53="$",(T53="$,Mo")),2,0) -> 0 | Z53: =IF(OR(U53="$",(U53="$,Mo")),4,0) -> 0 | AA53: =IF(OR(V53="$",(V53="$,Mo")),8,0) -> 0 | AB53: =IF(OR(W53="$",(W53="$,Mo")),16,0) -> 0 | AC53: =IF(OR(X53="$",(X53="$,Mo")),32,0) -> 0 | AD53: =IF(OR(T53="Mo",(T53="$,Mo")),2,0) -> 0 | AE53: =IF(OR(U53="Mo",(U53="$,Mo")),4,0) -> 0 | AF53: =IF(OR(V53="Mo",(V53="$,Mo")),8,0) -> 0 | AG53: =IF(OR(W53="Mo",(W53="$,Mo")),16,0) -> 0 | AH53: =IF(OR(X53="Mo",(X53="$,Mo")),32,0) -> 0
K54: Schedule | M54: MIN | O54: =IF(C50="Retired",0,L50*(N54+4*N56+N55)/6) -> 0 | Q54: =IF(C50="Retired","NO RISK",IF(ABS(N56)>S$10,Q$10,IF(ABS(N56)>S$11,Q$11,IF(ABS(N56)>S$12,Q$12,IF(ABS(N56)>S$13,Q$13,IF(ABS(N56)>S$14,Q$14,"NO RISK")))))) -> NO RISK | S54: VL | T54: =IF(AND(Q50="VERY LOW",Q54="very low",P50="VERY LOW"),"$,Mo",IF(AND(Q50="VERY LOW",P50="VERY LOW"),"$",IF(AND(Q54="very low",P50="VERY LOW"),"Mo",""))) ->  | U54: =IF(AND(Q50="LOW",Q54="low",P50="VERY LOW"),"$,Mo",IF(AND(Q50="LOW",P50="VERY LOW"),"$",IF(AND(Q54="low",P50="VERY LOW"),"Mo",""))) ->  | V54: =IF(AND(Q50="medium",Q54="medium",P50="VERY LOW"),"$,Mo",IF(AND(Q50="medium",P50="VERY LOW"),"$",IF(AND(Q54="medium",P50="VERY LOW"),"Mo",""))) ->  | W54: =IF(AND(Q50="high",Q54="high",P50="VERY LOW"),"$,Mo",IF(AND(Q50="high",P50="VERY LOW"),"$",IF(AND(Q54="high",P50="VERY LOW"),"Mo",""))) ->  | X54: =IF(AND(Q50="VERY high",Q54="VERY high",P50="VERY LOW"),"$,Mo",IF(AND(Q50="VERY high",P50="VERY LOW"),"$",IF(AND(Q54="VERY high",P50="VERY LOW"),"Mo",""))) ->  | Y54: =IF(OR(T54="$",(T54="$,Mo")),1,0) -> 0 | Z54: =IF(OR(U54="$",(U54="$,Mo")),2,0) -> 0 | AA54: =IF(OR(V54="$",(V54="$,Mo")),4,0) -> 0 | AB54: =IF(OR(W54="$",(W54="$,Mo")),8,0) -> 0 | AC54: =IF(OR(X54="$",(X54="$,Mo")),16,0) -> 0 | AD54: =IF(OR(T54="Mo",(T54="$,Mo")),1,0) -> 0 | AE54: =IF(OR(U54="Mo",(U54="$,Mo")),2,0) -> 0 | AF54: =IF(OR(V54="Mo",(V54="$,Mo")),4,0) -> 0 | AG54: =IF(OR(W54="Mo",(W54="$,Mo")),8,0) -> 0 | AH54: =IF(OR(X54="Mo",(X54="$,Mo")),16,0) -> 0
M55: MAX | R55: Relative risk | T55: VL | U55: L | V55: M | W55: H | X55: VH | AA55: =SUM(Y50:AC54) -> 0 | AF55: =SUM(AD50:AH54) -> 0 | AI55: =IF(O54>0,O54,0) -> 0 | AJ55: =IF(O54<0,O54,0) -> 0
H56: Threat | M56: Most Likely | R56: =AA55 -> 0 | S56: =AF55 -> 0 | T56: Impact
B58: 4 | C58: Active | G58: Design | H58: Threat | K58: Cost | M58: MIN | O58: =IF(C58="Retired",0,L58*(N58+4*N60+N59)/6) -> 0 | P58: =IF(C58="Retired","NO RISK",IF(L58>(L$10-0.01),P$10,IF(L58>(L$11-0.01),P$11,IF(L58>(L$12-0.01),P$12,IF(L58>(L$13-0.01),P$13,IF(L58>(L$14),P$14,"NO RISK")))))) -> NO RISK | Q58: =IF(C58="Retired","NO RISK",IF(ABS(N60)>O$10,Q$10,IF(ABS(N60)>O$11,Q$11,IF(ABS(N60)>O$12,Q$12,IF(ABS(N60)>O$13,Q$13,IF(ABS(N60)>O$14,Q$14,"NO RISK")))))) -> NO RISK | R58: Probability | S58: VH | T58: =IF(AND(Q58="VERY LOW",Q62="very low",P58="VERY high"),"$,Mo",IF(AND(Q58="VERY LOW",P58="VERY high"),"$",IF(AND(Q62="very low",P58="VERY high"),"Mo",""))) ->  | U58: =IF(AND(Q58="LOW",Q62="low",P58="VERY high"),"$,Mo",IF(AND(Q58="LOW",P58="VERY high"),"$",IF(AND(Q62="low",P58="VERY high"),"Mo",""))) ->  | V58: =IF(AND(Q58="medium",Q62="medium",P58="VERY high"),"$,Mo",IF(AND(Q58="medium",P58="VERY high"),"$",IF(AND(Q62="medium",P58="VERY high"),"Mo",""))) ->  | W58: =IF(AND(Q58="high",Q62="high",P58="VERY high"),"$,Mo",IF(AND(Q58="high",P58="VERY high"),"$",IF(AND(Q62="high",P58="VERY high"),"Mo",""))) ->  | X58: =IF(AND(Q58="VERY high",Q62="VERY high",P58="VERY high"),"$,Mo",IF(AND(Q58="VERY high",P58="VERY high"),"$",IF(AND(Q62="VERY high",P58="VERY high"),"Mo",""))) ->  | Y58: =IF(OR(T58="$",(T58="$,Mo")),5,0) -> 0 | Z58: =IF(OR(U58="$",(U58="$,Mo")),10,0) -> 0 | AA58: =IF(OR(V58="$",(V58="$,Mo")),20,0) -> 0 | AB58: =IF(OR(W58="$",(W58="$,Mo")),40,0) -> 0 | AC58: =IF(OR(X58="$",(X58="$,Mo")),80,0) -> 0 | AD58: =IF(OR(T58="Mo",(T58="$,Mo")),5,0) -> 0 | AE58: =IF(OR(U58="Mo",(U58="$,Mo")),10,0) -> 0 | AF58: =IF(OR(V58="Mo",(V58="$,Mo")),20,0) -> 0 | AG58: =IF(OR(W58="Mo",(W58="$,Mo")),40,0) -> 0 | AH58: =IF(OR(X58="Mo",(X58="$,Mo")),60,0) -> 0 | AP58: NEAR | AS58: =IF(AK58="Accept",0,(N58*L58)-AR60) -> 0 | AU58: =IF(AT60=0,0,(N58*L58)-AT60) -> 0 | AV58: =O58-AT58 -> 0 | AX58: =IF($D58="ROW",$AR60," ") ->  | AY58: =IF($D58="ROW",$AS60," ") ->  | AZ58: =IF($D58="ENV",$AR60," ") ->  | BA58: =IF($D58="ENV",$AS60," ") ->  | BB58: =IF($D58="ENG",$AR60," ") ->  | BC58: =IF($D58="ENG",$AS60," ") ->  | BD58: =IF($D58="TRF",$AR60," ") ->  | BE58: =IF($D58="TRF",$AS60," ") ->  | BF58: =IF($D58="STK",$AR60," ") ->  | BG58: =IF($D58="STK",$AS60," ") ->  | BH58: =IF($D58="UNF",$AR60," ") ->  | BI58: =IF($D58="UNF",$AS60," ") ->  | BJ58: =IF($D58="MKT",$AR60," ") ->  | BK58: =IF($D58="MKT",$AS60," ") ->  | BL58: =IF($D58="UTL",$AR60," ") ->  | BM58: =IF($D58="UTL",$AS60," ") -> 
M59: MAX | S59: H | T59: =IF(AND(Q58="VERY LOW",Q62="very low",P58="high"),"$,Mo",IF(AND(Q58="VERY LOW",P58="high"),"$",IF(AND(Q62="very low",P58="high"),"Mo",""))) ->  | U59: =IF(AND(Q58="LOW",Q62="low",P58="high"),"$,Mo",IF(AND(Q58="LOW",P58="high"),"$",IF(AND(Q62="low",P58="high"),"Mo",""))) ->  | V59: =IF(AND(Q58="medium",Q62="medium",P58="high"),"$,Mo",IF(AND(Q58="medium",P58="high"),"$",IF(AND(Q62="medium",P58="high"),"Mo",""))) ->  | W59: =IF(AND(Q58="high",Q62="high",P58="high"),"$,Mo",IF(AND(Q58="high",P58="high"),"$",IF(AND(Q62="high",P58="high"),"Mo",""))) ->  | X59: =IF(AND(Q58="VERY high",Q62="VERY high",P58="high"),"$,Mo",IF(AND(Q58="VERY high",P58="high"),"$",IF(AND(Q62="VERY high",P58="high"),"Mo",""))) ->  | Y59: =IF(OR(T59="$",(T59="$,Mo")),4,0) -> 0 | Z59: =IF(OR(U59="$",(U59="$,Mo")),8,0) -> 0 | AA59: =IF(OR(V59="$",(V59="$,Mo")),16,0) -> 0 | AB59: =IF(OR(W59="$",(W59="$,Mo")),32,0) -> 0 | AC59: =IF(OR(X59="$",(X59="$,Mo")),64,0) -> 0 | AD59: =IF(OR(T59="Mo",(T59="$,Mo")),4,0) -> 0 | AE59: =IF(OR(U59="Mo",(U59="$,Mo")),8,0) -> 0 | AF59: =IF(OR(V59="Mo",(V59="$,Mo")),16,0) -> 0 | AG59: =IF(OR(W59="Mo",(W59="$,Mo")),32,0) -> 0 | AH59: =IF(OR(X59="Mo",(X59="$,Mo")),64,0) -> 0 | AI59: =IF(O58>0,O58,0) -> 0 | AJ59: =IF(O58<0,O58,0) -> 0 | AS59: =IF(AK58="Accept",0,(N59*L58)-AR60) -> 0 | AU59: =IF(AT60=0,0,(N59*L58)-AT60) -> 0 | AX59: RISK 4 >>>>>>>>>>>>>>>>
M60: Most Likely | S60: M | T60: =IF(AND(Q58="VERY LOW",Q62="very low",P58="medium"),"$,Mo",IF(AND(Q58="VERY LOW",P58="medium"),"$",IF(AND(Q62="very low",P58="medium"),"Mo",""))) ->  | U60: =IF(AND(Q58="LOW",Q62="low",P58="medium"),"$,Mo",IF(AND(Q58="LOW",P58="medium"),"$",IF(AND(Q62="low",P58="medium"),"Mo",""))) ->  | V60: =IF(AND(Q58="medium",Q62="medium",P58="medium"),"$,Mo",IF(AND(Q58="medium",P58="medium"),"$",IF(AND(Q62="medium",P58="medium"),"Mo",""))) ->  | W60: =IF(AND(Q58="high",Q62="high",P58="medium"),"$,Mo",IF(AND(Q58="high",P58="medium"),"$",IF(AND(Q62="high",P58="medium"),"Mo",""))) ->  | X60: =IF(AND(Q58="VERY high",Q62="VERY high",P58="medium"),"$,Mo",IF(AND(Q58="VERY high",P58="medium"),"$",IF(AND(Q62="VERY high",P58="medium"),"Mo",""))) ->  | Y60: =IF(OR(T60="$",(T60="$,Mo")),3,0) -> 0 | Z60: =IF(OR(U60="$",(U60="$,Mo")),6,0) -> 0 | AA60: =IF(OR(V60="$",(V60="$,Mo")),12,0) -> 0 | AB60: =IF(OR(W60="$",(W60="$,Mo")),24,0) -> 0 | AC60: =IF(OR(X60="$",(X60="$,Mo")),48,0) -> 0 | AD60: =IF(OR(T60="Mo",(T60="$,Mo")),3,0) -> 0 | AE60: =IF(OR(U60="Mo",(U60="$,Mo")),6,0) -> 0 | AF60: =IF(OR(V60="Mo",(V60="$,Mo")),12,0) -> 0 | AG60: =IF(OR(W60="Mo",(W60="$,Mo")),24,0) -> 0 | AH60: =IF(OR(X60="Mo",(X60="$,Mo")),48,0) -> 0 | AR60: 0 | AS60: =IF(AK58="Accept",0,(N60*L58)-AR60) -> 0 | AU60: =IF(AT60=0,0,(N60*L58)-AT60) -> 0
S61: L | T61: =IF(AND(Q58="VERY LOW",Q62="very low",P58="LOW"),"$,Mo",IF(AND(Q58="VERY LOW",P58="LOW"),"$",IF(AND(Q62="very low",P58="LOW"),"Mo",""))) ->  | U61: =IF(AND(Q58="LOW",Q62="low",P58="LOW"),"$,Mo",IF(AND(Q58="LOW",P58="LOW"),"$",IF(AND(Q62="low",P58="LOW"),"Mo",""))) ->  | V61: =IF(AND(Q58="medium",Q62="medium",P58="LOW"),"$,Mo",IF(AND(Q58="medium",P58="LOW"),"$",IF(AND(Q62="medium",P58="LOW"),"Mo",""))) ->  | W61: =IF(AND(Q58="high",Q62="high",P58="LOW"),"$,Mo",IF(AND(Q58="high",P58="LOW"),"$",IF(AND(Q62="high",P58="LOW"),"Mo",""))) ->  | X61: =IF(AND(Q58="VERY high",Q62="VERY high",P58="low"),"$,Mo",IF(AND(Q58="VERY high",P58="low"),"$",IF(AND(Q62="VERY high",P58="low"),"Mo",""))) ->  | Y61: =IF(OR(T61="$",(T61="$,Mo")),2,0) -> 0 | Z61: =IF(OR(U61="$",(U61="$,Mo")),4,0) -> 0 | AA61: =IF(OR(V61="$",(V61="$,Mo")),8,0) -> 0 | AB61: =IF(OR(W61="$",(W61="$,Mo")),16,0) -> 0 | AC61: =IF(OR(X61="$",(X61="$,Mo")),32,0) -> 0 | AD61: =IF(OR(T61="Mo",(T61="$,Mo")),2,0) -> 0 | AE61: =IF(OR(U61="Mo",(U61="$,Mo")),4,0) -> 0 | AF61: =IF(OR(V61="Mo",(V61="$,Mo")),8,0) -> 0 | AG61: =IF(OR(W61="Mo",(W61="$,Mo")),16,0) -> 0 | AH61: =IF(OR(X61="Mo",(X61="$,Mo")),32,0) -> 0
K62: Schedule | M62: MIN | O62: =IF(C58="Retired",0,L58*(N62+4*N64+N63)/6) -> 0 | Q62: =IF(C58="Retired","NO RISK",IF(ABS(N64)>S$10,Q$10,IF(ABS(N64)>S$11,Q$11,IF(ABS(N64)>S$12,Q$12,IF(ABS(N64)>S$13,Q$13,IF(ABS(N64)>S$14,Q$14,"NO RISK")))))) -> NO RISK | S62: VL | T62: =IF(AND(Q58="VERY LOW",Q62="very low",P58="VERY LOW"),"$,Mo",IF(AND(Q58="VERY LOW",P58="VERY LOW"),"$",IF(AND(Q62="very low",P58="VERY LOW"),"Mo",""))) ->  | U62: =IF(AND(Q58="LOW",Q62="low",P58="VERY LOW"),"$,Mo",IF(AND(Q58="LOW",P58="VERY LOW"),"$",IF(AND(Q62="low",P58="VERY LOW"),"Mo",""))) ->  | V62: =IF(AND(Q58="medium",Q62="medium",P58="VERY LOW"),"$,Mo",IF(AND(Q58="medium",P58="VERY LOW"),"$",IF(AND(Q62="medium",P58="VERY LOW"),"Mo",""))) ->  | W62: =IF(AND(Q58="high",Q62="high",P58="VERY LOW"),"$,Mo",IF(AND(Q58="high",P58="VERY LOW"),"$",IF(AND(Q62="high",P58="VERY LOW"),"Mo",""))) ->  | X62: =IF(AND(Q58="VERY high",Q62="VERY high",P58="VERY LOW"),"$,Mo",IF(AND(Q58="VERY high",P58="VERY LOW"),"$",IF(AND(Q62="VERY high",P58="VERY LOW"),"Mo",""))) ->  | Y62: =IF(OR(T62="$",(T62="$,Mo")),1,0) -> 0 | Z62: =IF(OR(U62="$",(U62="$,Mo")),2,0) -> 0 | AA62: =IF(OR(V62="$",(V62="$,Mo")),4,0) -> 0 | AB62: =IF(OR(W62="$",(W62="$,Mo")),8,0) -> 0 | AC62: =IF(OR(X62="$",(X62="$,Mo")),16,0) -> 0 | AD62: =IF(OR(T62="Mo",(T62="$,Mo")),1,0) -> 0 | AE62: =IF(OR(U62="Mo",(U62="$,Mo")),2,0) -> 0 | AF62: =IF(OR(V62="Mo",(V62="$,Mo")),4,0) -> 0 | AG62: =IF(OR(W62="Mo",(W62="$,Mo")),8,0) -> 0 | AH62: =IF(OR(X62="Mo",(X62="$,Mo")),16,0) -> 0
M63: MAX | R63: Relative risk | T63: VL | U63: L | V63: M | W63: H | X63: VH | AA63: =SUM(Y58:AC62) -> 0 | AF63: =SUM(AD58:AH62) -> 0 | AI63: =IF(O62>0,O62,0) -> 0 | AJ63: =IF(O62<0,O62,0) -> 0
H64: Threat | M64: Most Likely | R64: =AA63 -> 0 | S64: =AF63 -> 0 | T64: Impact
B66: 5 | C66: Active | G66: Design | H66: Threat | K66: Cost | M66: MIN | O66: =IF(C66="Retired",0,L66*(N66+4*N68+N67)/6) -> 0 | P66: =IF(C66="Retired","NO RISK",IF(L66>(L$10-0.01),P$10,IF(L66>(L$11-0.01),P$11,IF(L66>(L$12-0.01),P$12,IF(L66>(L$13-0.01),P$13,IF(L66>(L$14),P$14,"NO RISK")))))) -> NO RISK | Q66: =IF(C66="Retired","NO RISK",IF(ABS(N68)>O$10,Q$10,IF(ABS(N68)>O$11,Q$11,IF(ABS(N68)>O$12,Q$12,IF(ABS(N68)>O$13,Q$13,IF(ABS(N68)>O$14,Q$14,"NO RISK")))))) -> NO RISK | R66: Probability | S66: VH | T66: =IF(AND(Q66="VERY LOW",Q70="very low",P66="VERY high"),"$,Mo",IF(AND(Q66="VERY LOW",P66="VERY high"),"$",IF(AND(Q70="very low",P66="VERY high"),"Mo",""))) ->  | U66: =IF(AND(Q66="LOW",Q70="low",P66="VERY high"),"$,Mo",IF(AND(Q66="LOW",P66="VERY high"),"$",IF(AND(Q70="low",P66="VERY high"),"Mo",""))) ->  | V66: =IF(AND(Q66="medium",Q70="medium",P66="VERY high"),"$,Mo",IF(AND(Q66="medium",P66="VERY high"),"$",IF(AND(Q70="medium",P66="VERY high"),"Mo",""))) ->  | W66: =IF(AND(Q66="high",Q70="high",P66="VERY high"),"$,Mo",IF(AND(Q66="high",P66="VERY high"),"$",IF(AND(Q70="high",P66="VERY high"),"Mo",""))) ->  | X66: =IF(AND(Q66="VERY high",Q70="VERY high",P66="VERY high"),"$,Mo",IF(AND(Q66="VERY high",P66="VERY high"),"$",IF(AND(Q70="VERY high",P66="VERY high"),"Mo",""))) ->  | Y66: =IF(OR(T66="$",(T66="$,Mo")),5,0) -> 0 | Z66: =IF(OR(U66="$",(U66="$,Mo")),10,0) -> 0 | AA66: =IF(OR(V66="$",(V66="$,Mo")),20,0) -> 0 | AB66: =IF(OR(W66="$",(W66="$,Mo")),40,0) -> 0 | AC66: =IF(OR(X66="$",(X66="$,Mo")),80,0) -> 0 | AD66: =IF(OR(T66="Mo",(T66="$,Mo")),5,0) -> 0 | AE66: =IF(OR(U66="Mo",(U66="$,Mo")),10,0) -> 0 | AF66: =IF(OR(V66="Mo",(V66="$,Mo")),20,0) -> 0 | AG66: =IF(OR(W66="Mo",(W66="$,Mo")),40,0) -> 0 | AH66: =IF(OR(X66="Mo",(X66="$,Mo")),60,0) -> 0 | AP66: NEAR | AS66: =IF(AK66="Accept",0,(N66*L66)-AR68) -> 0 | AU66: =IF(AT68=0,0,(N66*L66)-AT68) -> 0 | AV66: =O66-AT66 -> 0 | AX66: =IF($D66="ROW",$AR68," ") ->  | AY66: =IF($D66="ROW",$AS68," ") ->  | AZ66: =IF($D66="ENV",$AR68," ") ->  | BA66: =IF($D66="ENV",$AS68," ") ->  | BB66: =IF($D66="ENG",$AR68," ") ->  | BC66: =IF($D66="ENG",$AS68," ") ->  | BD66: =IF($D66="TRF",$AR68," ") ->  | BE66: =IF($D66="TRF",$AS68," ") ->  | BF66: =IF($D66="STK",$AR68," ") ->  | BG66: =IF($D66="STK",$AS68," ") ->  | BH66: =IF($D66="UNF",$AR68," ") ->  | BI66: =IF($D66="UNF",$AS68," ") ->  | BJ66: =IF($D66="MKT",$AR68," ") ->  | BK66: =IF($D66="MKT",$AS68," ") ->  | BL66: =IF($D66="UTL",$AR68," ") ->  | BM66: =IF($D66="UTL",$AS68," ") -> 
M67: MAX | S67: H | T67: =IF(AND(Q66="VERY LOW",Q70="very low",P66="high"),"$,Mo",IF(AND(Q66="VERY LOW",P66="high"),"$",IF(AND(Q70="very low",P66="high"),"Mo",""))) ->  | U67: =IF(AND(Q66="LOW",Q70="low",P66="high"),"$,Mo",IF(AND(Q66="LOW",P66="high"),"$",IF(AND(Q70="low",P66="high"),"Mo",""))) ->  | V67: =IF(AND(Q66="medium",Q70="medium",P66="high"),"$,Mo",IF(AND(Q66="medium",P66="high"),"$",IF(AND(Q70="medium",P66="high"),"Mo",""))) ->  | W67: =IF(AND(Q66="high",Q70="high",P66="high"),"$,Mo",IF(AND(Q66="high",P66="high"),"$",IF(AND(Q70="high",P66="high"),"Mo",""))) ->  | X67: =IF(AND(Q66="VERY high",Q70="VERY high",P66="high"),"$,Mo",IF(AND(Q66="VERY high",P66="high"),"$",IF(AND(Q70="VERY high",P66="high"),"Mo",""))) ->  | Y67: =IF(OR(T67="$",(T67="$,Mo")),4,0) -> 0 | Z67: =IF(OR(U67="$",(U67="$,Mo")),8,0) -> 0 | AA67: =IF(OR(V67="$",(V67="$,Mo")),16,0) -> 0 | AB67: =IF(OR(W67="$",(W67="$,Mo")),32,0) -> 0 | AC67: =IF(OR(X67="$",(X67="$,Mo")),64,0) -> 0 | AD67: =IF(OR(T67="Mo",(T67="$,Mo")),4,0) -> 0 | AE67: =IF(OR(U67="Mo",(U67="$,Mo")),8,0) -> 0 | AF67: =IF(OR(V67="Mo",(V67="$,Mo")),16,0) -> 0 | AG67: =IF(OR(W67="Mo",(W67="$,Mo")),32,0) -> 0 | AH67: =IF(OR(X67="Mo",(X67="$,Mo")),64,0) -> 0 | AI67: =IF(O66>0,O66,0) -> 0 | AJ67: =IF(O66<0,O66,0) -> 0 | AS67: =IF(AK66="Accept",0,(N67*L66)-AR68) -> 0 | AU67: =IF(AT68=0,0,(N67*L66)-AT68) -> 0 | AX67: RISK 5 >>>>>>>>>>>>>>>>
M68: Most Likely | S68: M | T68: =IF(AND(Q66="VERY LOW",Q70="very low",P66="medium"),"$,Mo",IF(AND(Q66="VERY LOW",P66="medium"),"$",IF(AND(Q70="very low",P66="medium"),"Mo",""))) ->  | U68: =IF(AND(Q66="LOW",Q70="low",P66="medium"),"$,Mo",IF(AND(Q66="LOW",P66="medium"),"$",IF(AND(Q70="low",P66="medium"),"Mo",""))) ->  | V68: =IF(AND(Q66="medium",Q70="medium",P66="medium"),"$,Mo",IF(AND(Q66="medium",P66="medium"),"$",IF(AND(Q70="medium",P66="medium"),"Mo",""))) ->  | W68: =IF(AND(Q66="high",Q70="high",P66="medium"),"$,Mo",IF(AND(Q66="high",P66="medium"),"$",IF(AND(Q70="high",P66="medium"),"Mo",""))) ->  | X68: =IF(AND(Q66="VERY high",Q70="VERY high",P66="medium"),"$,Mo",IF(AND(Q66="VERY high",P66="medium"),"$",IF(AND(Q70="VERY high",P66="medium"),"Mo",""))) ->  | Y68: =IF(OR(T68="$",(T68="$,Mo")),3,0) -> 0 | Z68: =IF(OR(U68="$",(U68="$,Mo")),6,0) -> 0 | AA68: =IF(OR(V68="$",(V68="$,Mo")),12,0) -> 0 | AB68: =IF(OR(W68="$",(W68="$,Mo")),24,0) -> 0 | AC68: =IF(OR(X68="$",(X68="$,Mo")),48,0) -> 0 | AD68: =IF(OR(T68="Mo",(T68="$,Mo")),3,0) -> 0 | AE68: =IF(OR(U68="Mo",(U68="$,Mo")),6,0) -> 0 | AF68: =IF(OR(V68="Mo",(V68="$,Mo")),12,0) -> 0 | AG68: =IF(OR(W68="Mo",(W68="$,Mo")),24,0) -> 0 | AH68: =IF(OR(X68="Mo",(X68="$,Mo")),48,0) -> 0 | AR68: 0 | AS68: =IF(AK66="Accept",0,(N68*L66)-AR68) -> 0 | AU68: =IF(AT68=0,0,(N68*L66)-AT68) -> 0
S69: L | T69: =IF(AND(Q66="VERY LOW",Q70="very low",P66="LOW"),"$,Mo",IF(AND(Q66="VERY LOW",P66="LOW"),"$",IF(AND(Q70="very low",P66="LOW"),"Mo",""))) ->  | U69: =IF(AND(Q66="LOW",Q70="low",P66="LOW"),"$,Mo",IF(AND(Q66="LOW",P66="LOW"),"$",IF(AND(Q70="low",P66="LOW"),"Mo",""))) ->  | V69: =IF(AND(Q66="medium",Q70="medium",P66="LOW"),"$,Mo",IF(AND(Q66="medium",P66="LOW"),"$",IF(AND(Q70="medium",P66="LOW"),"Mo",""))) ->  | W69: =IF(AND(Q66="high",Q70="high",P66="LOW"),"$,Mo",IF(AND(Q66="high",P66="LOW"),"$",IF(AND(Q70="high",P66="LOW"),"Mo",""))) ->  | X69: =IF(AND(Q66="VERY high",Q70="VERY high",P66="low"),"$,Mo",IF(AND(Q66="VERY high",P66="low"),"$",IF(AND(Q70="VERY high",P66="low"),"Mo",""))) ->  | Y69: =IF(OR(T69="$",(T69="$,Mo")),2,0) -> 0 | Z69: =IF(OR(U69="$",(U69="$,Mo")),4,0) -> 0 | AA69: =IF(OR(V69="$",(V69="$,Mo")),8,0) -> 0 | AB69: =IF(OR(W69="$",(W69="$,Mo")),16,0) -> 0 | AC69: =IF(OR(X69="$",(X69="$,Mo")),32,0) -> 0 | AD69: =IF(OR(T69="Mo",(T69="$,Mo")),2,0) -> 0 | AE69: =IF(OR(U69="Mo",(U69="$,Mo")),4,0) -> 0 | AF69: =IF(OR(V69="Mo",(V69="$,Mo")),8,0) -> 0 | AG69: =IF(OR(W69="Mo",(W69="$,Mo")),16,0) -> 0 | AH69: =IF(OR(X69="Mo",(X69="$,Mo")),32,0) -> 0
K70: Schedule | M70: MIN | O70: =IF(C66="Retired",0,L66*(N70+4*N72+N71)/6) -> 0 | Q70: =IF(C66="Retired","NO RISK",IF(ABS(N72)>S$10,Q$10,IF(ABS(N72)>S$11,Q$11,IF(ABS(N72)>S$12,Q$12,IF(ABS(N72)>S$13,Q$13,IF(ABS(N72)>S$14,Q$14,"NO RISK")))))) -> NO RISK | S70: VL | T70: =IF(AND(Q66="VERY LOW",Q70="very low",P66="VERY LOW"),"$,Mo",IF(AND(Q66="VERY LOW",P66="VERY LOW"),"$",IF(AND(Q70="very low",P66="VERY LOW"),"Mo",""))) ->  | U70: =IF(AND(Q66="LOW",Q70="low",P66="VERY LOW"),"$,Mo",IF(AND(Q66="LOW",P66="VERY LOW"),"$",IF(AND(Q70="low",P66="VERY LOW"),"Mo",""))) ->  | V70: =IF(AND(Q66="medium",Q70="medium",P66="VERY LOW"),"$,Mo",IF(AND(Q66="medium",P66="VERY LOW"),"$",IF(AND(Q70="medium",P66="VERY LOW"),"Mo",""))) ->  | W70: =IF(AND(Q66="high",Q70="high",P66="VERY LOW"),"$,Mo",IF(AND(Q66="high",P66="VERY LOW"),"$",IF(AND(Q70="high",P66="VERY LOW"),"Mo",""))) ->  | X70: =IF(AND(Q66="VERY high",Q70="VERY high",P66="VERY LOW"),"$,Mo",IF(AND(Q66="VERY high",P66="VERY LOW"),"$",IF(AND(Q70="VERY high",P66="VERY LOW"),"Mo",""))) ->  | Y70: =IF(OR(T70="$",(T70="$,Mo")),1,0) -> 0 | Z70: =IF(OR(U70="$",(U70="$,Mo")),2,0) -> 0 | AA70: =IF(OR(V70="$",(V70="$,Mo")),4,0) -> 0 | AB70: =IF(OR(W70="$",(W70="$,Mo")),8,0) -> 0 | AC70: =IF(OR(X70="$",(X70="$,Mo")),16,0) -> 0 | AD70: =IF(OR(T70="Mo",(T70="$,Mo")),1,0) -> 0 | AE70: =IF(OR(U70="Mo",(U70="$,Mo")),2,0) -> 0 | AF70: =IF(OR(V70="Mo",(V70="$,Mo")),4,0) -> 0 | AG70: =IF(OR(W70="Mo",(W70="$,Mo")),8,0) -> 0 | AH70: =IF(OR(X70="Mo",(X70="$,Mo")),16,0) -> 0
M71: MAX | R71: Relative risk | T71: VL | U71: L | V71: M | W71: H | X71: VH | AA71: =SUM(Y66:AC70) -> 0 | AF71: =SUM(AD66:AH70) -> 0 | AI71: =IF(O70>0,O70,0) -> 0 | AJ71: =IF(O70<0,O70,0) -> 0
H72: Threat | M72: Most Likely | R72: =AA71 -> 0 | S72: =AF71 -> 0 | T72: Impact
B74: 6 | C74: Active | G74: Design | H74: Threat | K74: Cost | M74: MIN | O74: =IF(C74="Retired",0,L74*(N74+4*N76+N75)/6) -> 0 | P74: =IF(C74="Retired","NO RISK",IF(L74>(L$10-0.01),P$10,IF(L74>(L$11-0.01),P$11,IF(L74>(L$12-0.01),P$12,IF(L74>(L$13-0.01),P$13,IF(L74>(L$14),P$14,"NO RISK")))))) -> NO RISK | Q74: =IF(C74="Retired","NO RISK",IF(ABS(N76)>O$10,Q$10,IF(ABS(N76)>O$11,Q$11,IF(ABS(N76)>O$12,Q$12,IF(ABS(N76)>O$13,Q$13,IF(ABS(N76)>O$14,Q$14,"NO RISK")))))) -> NO RISK | R74: Probability | S74: VH | T74: =IF(AND(Q74="VERY LOW",Q78="very low",P74="VERY high"),"$,Mo",IF(AND(Q74="VERY LOW",P74="VERY high"),"$",IF(AND(Q78="very low",P74="VERY high"),"Mo",""))) ->  | U74: =IF(AND(Q74="LOW",Q78="low",P74="VERY high"),"$,Mo",IF(AND(Q74="LOW",P74="VERY high"),"$",IF(AND(Q78="low",P74="VERY high"),"Mo",""))) ->  | V74: =IF(AND(Q74="medium",Q78="medium",P74="VERY high"),"$,Mo",IF(AND(Q74="medium",P74="VERY high"),"$",IF(AND(Q78="medium",P74="VERY high"),"Mo",""))) ->  | W74: =IF(AND(Q74="high",Q78="high",P74="VERY high"),"$,Mo",IF(AND(Q74="high",P74="VERY high"),"$",IF(AND(Q78="high",P74="VERY high"),"Mo",""))) ->  | X74: =IF(AND(Q74="VERY high",Q78="VERY high",P74="VERY high"),"$,Mo",IF(AND(Q74="VERY high",P74="VERY high"),"$",IF(AND(Q78="VERY high",P74="VERY high"),"Mo",""))) ->  | Y74: =IF(OR(T74="$",(T74="$,Mo")),5,0) -> 0 | Z74: =IF(OR(U74="$",(U74="$,Mo")),10,0) -> 0 | AA74: =IF(OR(V74="$",(V74="$,Mo")),20,0) -> 0 | AB74: =IF(OR(W74="$",(W74="$,Mo")),40,0) -> 0 | AC74: =IF(OR(X74="$",(X74="$,Mo")),80,0) -> 0 | AD74: =IF(OR(T74="Mo",(T74="$,Mo")),5,0) -> 0 | AE74: =IF(OR(U74="Mo",(U74="$,Mo")),10,0) -> 0 | AF74: =IF(OR(V74="Mo",(V74="$,Mo")),20,0) -> 0 | AG74: =IF(OR(W74="Mo",(W74="$,Mo")),40,0) -> 0 | AH74: =IF(OR(X74="Mo",(X74="$,Mo")),60,0) -> 0 | AP74: NEAR | AS74: =IF(AK74="Accept",0,(N74*L74)-AR76) -> 0 | AU74: =IF(AT76=0,0,(N74*L74)-AT76) -> 0 | AV74: =O74-AT74 -> 0 | AW74: Functional Assignment | AX74: =IF($D74="ROW",$AR76," ") ->  | AY74: =IF($D74="ROW",$AS76," ") ->  | AZ74: =IF($D74="ENV",$AR76," ") ->  | BA74: =IF($D74="ENV",$AS76," ") ->  | BB74: =IF($D74="ENG",$AR76," ") ->  | BC74: =IF($D74="ENG",$AS76," ") ->  | BD74: =IF($D74="TRF",$AR76," ") ->  | BE74: =IF($D74="TRF",$AS76," ") ->  | BF74: =IF($D74="STK",$AR76," ") ->  | BG74: =IF($D74="STK",$AS76," ") ->  | BH74: =IF($D74="UNF",$AR76," ") ->  | BI74: =IF($D74="UNF",$AS76," ") ->  | BJ74: =IF($D74="MKT",$AR76," ") ->  | BK74: =IF($D74="MKT",$AS76," ") ->  | BL74: =IF($D74="UTL",$AR76," ") ->  | BM74: =IF($D74="UTL",$AS76," ") -> 
M75: MAX | S75: H | T75: =IF(AND(Q74="VERY LOW",Q78="very low",P74="high"),"$,Mo",IF(AND(Q74="VERY LOW",P74="high"),"$",IF(AND(Q78="very low",P74="high"),"Mo",""))) ->  | U75: =IF(AND(Q74="LOW",Q78="low",P74="high"),"$,Mo",IF(AND(Q74="LOW",P74="high"),"$",IF(AND(Q78="low",P74="high"),"Mo",""))) ->  | V75: =IF(AND(Q74="medium",Q78="medium",P74="high"),"$,Mo",IF(AND(Q74="medium",P74="high"),"$",IF(AND(Q78="medium",P74="high"),"Mo",""))) ->  | W75: =IF(AND(Q74="high",Q78="high",P74="high"),"$,Mo",IF(AND(Q74="high",P74="high"),"$",IF(AND(Q78="high",P74="high"),"Mo",""))) ->  | X75: =IF(AND(Q74="VERY high",Q78="VERY high",P74="high"),"$,Mo",IF(AND(Q74="VERY high",P74="high"),"$",IF(AND(Q78="VERY high",P74="high"),"Mo",""))) ->  | Y75: =IF(OR(T75="$",(T75="$,Mo")),4,0) -> 0 | Z75: =IF(OR(U75="$",(U75="$,Mo")),8,0) -> 0 | AA75: =IF(OR(V75="$",(V75="$,Mo")),16,0) -> 0 | AB75: =IF(OR(W75="$",(W75="$,Mo")),32,0) -> 0 | AC75: =IF(OR(X75="$",(X75="$,Mo")),64,0) -> 0 | AD75: =IF(OR(T75="Mo",(T75="$,Mo")),4,0) -> 0 | AE75: =IF(OR(U75="Mo",(U75="$,Mo")),8,0) -> 0 | AF75: =IF(OR(V75="Mo",(V75="$,Mo")),16,0) -> 0 | AG75: =IF(OR(W75="Mo",(W75="$,Mo")),32,0) -> 0 | AH75: =IF(OR(X75="Mo",(X75="$,Mo")),64,0) -> 0 | AI75: =IF(O74>0,O74,0) -> 0 | AJ75: =IF(O74<0,O74,0) -> 0 | AS75: =IF(AK74="Accept",0,(N75*L74)-AR76) -> 0 | AU75: =IF(AT76=0,0,(N75*L74)-AT76) -> 0 | AX75: RISK 6 >>>>>>>>>>>>>>>>
M76: Most Likely | S76: M | T76: =IF(AND(Q74="VERY LOW",Q78="very low",P74="medium"),"$,Mo",IF(AND(Q74="VERY LOW",P74="medium"),"$",IF(AND(Q78="very low",P74="medium"),"Mo",""))) ->  | U76: =IF(AND(Q74="LOW",Q78="low",P74="medium"),"$,Mo",IF(AND(Q74="LOW",P74="medium"),"$",IF(AND(Q78="low",P74="medium"),"Mo",""))) ->  | V76: =IF(AND(Q74="medium",Q78="medium",P74="medium"),"$,Mo",IF(AND(Q74="medium",P74="medium"),"$",IF(AND(Q78="medium",P74="medium"),"Mo",""))) ->  | W76: =IF(AND(Q74="high",Q78="high",P74="medium"),"$,Mo",IF(AND(Q74="high",P74="medium"),"$",IF(AND(Q78="high",P74="medium"),"Mo",""))) ->  | X76: =IF(AND(Q74="VERY high",Q78="VERY high",P74="medium"),"$,Mo",IF(AND(Q74="VERY high",P74="medium"),"$",IF(AND(Q78="VERY high",P74="medium"),"Mo",""))) ->  | Y76: =IF(OR(T76="$",(T76="$,Mo")),3,0) -> 0 | Z76: =IF(OR(U76="$",(U76="$,Mo")),6,0) -> 0 | AA76: =IF(OR(V76="$",(V76="$,Mo")),12,0) -> 0 | AB76: =IF(OR(W76="$",(W76="$,Mo")),24,0) -> 0 | AC76: =IF(OR(X76="$",(X76="$,Mo")),48,0) -> 0 | AD76: =IF(OR(T76="Mo",(T76="$,Mo")),3,0) -> 0 | AE76: =IF(OR(U76="Mo",(U76="$,Mo")),6,0) -> 0 | AF76: =IF(OR(V76="Mo",(V76="$,Mo")),12,0) -> 0 | AG76: =IF(OR(W76="Mo",(W76="$,Mo")),24,0) -> 0 | AH76: =IF(OR(X76="Mo",(X76="$,Mo")),48,0) -> 0 | AR76: 0 | AS76: =IF(AK74="Accept",0,(N76*L74)-AR76) -> 0 | AU76: =IF(AT76=0,0,(N76*L74)-AT76) -> 0 | AW76: ROW
S77: L | T77: =IF(AND(Q74="VERY LOW",Q78="very low",P74="LOW"),"$,Mo",IF(AND(Q74="VERY LOW",P74="LOW"),"$",IF(AND(Q78="very low",P74="LOW"),"Mo",""))) ->  | U77: =IF(AND(Q74="LOW",Q78="low",P74="LOW"),"$,Mo",IF(AND(Q74="LOW",P74="LOW"),"$",IF(AND(Q78="low",P74="LOW"),"Mo",""))) ->  | V77: =IF(AND(Q74="medium",Q78="medium",P74="LOW"),"$,Mo",IF(AND(Q74="medium",P74="LOW"),"$",IF(AND(Q78="medium",P74="LOW"),"Mo",""))) ->  | W77: =IF(AND(Q74="high",Q78="high",P74="LOW"),"$,Mo",IF(AND(Q74="high",P74="LOW"),"$",IF(AND(Q78="high",P74="LOW"),"Mo",""))) ->  | X77: =IF(AND(Q74="VERY high",Q78="VERY high",P74="low"),"$,Mo",IF(AND(Q74="VERY high",P74="low"),"$",IF(AND(Q78="VERY high",P74="low"),"Mo",""))) ->  | Y77: =IF(OR(T77="$",(T77="$,Mo")),2,0) -> 0 | Z77: =IF(OR(U77="$",(U77="$,Mo")),4,0) -> 0 | AA77: =IF(OR(V77="$",(V77="$,Mo")),8,0) -> 0 | AB77: =IF(OR(W77="$",(W77="$,Mo")),16,0) -> 0 | AC77: =IF(OR(X77="$",(X77="$,Mo")),32,0) -> 0 | AD77: =IF(OR(T77="Mo",(T77="$,Mo")),2,0) -> 0 | AE77: =IF(OR(U77="Mo",(U77="$,Mo")),4,0) -> 0 | AF77: =IF(OR(V77="Mo",(V77="$,Mo")),8,0) -> 0 | AG77: =IF(OR(W77="Mo",(W77="$,Mo")),16,0) -> 0 | AH77: =IF(OR(X77="Mo",(X77="$,Mo")),32,0) -> 0 | AW77: ENV
K78: Schedule | M78: MIN | O78: =IF(C74="Retired",0,L74*(N78+4*N80+N79)/6) -> 0 | Q78: =IF(C74="Retired","NO RISK",IF(ABS(N80)>S$10,Q$10,IF(ABS(N80)>S$11,Q$11,IF(ABS(N80)>S$12,Q$12,IF(ABS(N80)>S$13,Q$13,IF(ABS(N80)>S$14,Q$14,"NO RISK")))))) -> NO RISK | S78: VL | T78: =IF(AND(Q74="VERY LOW",Q78="very low",P74="VERY LOW"),"$,Mo",IF(AND(Q74="VERY LOW",P74="VERY LOW"),"$",IF(AND(Q78="very low",P74="VERY LOW"),"Mo",""))) ->  | U78: =IF(AND(Q74="LOW",Q78="low",P74="VERY LOW"),"$,Mo",IF(AND(Q74="LOW",P74="VERY LOW"),"$",IF(AND(Q78="low",P74="VERY LOW"),"Mo",""))) ->  | V78: =IF(AND(Q74="medium",Q78="medium",P74="VERY LOW"),"$,Mo",IF(AND(Q74="medium",P74="VERY LOW"),"$",IF(AND(Q78="medium",P74="VERY LOW"),"Mo",""))) ->  | W78: =IF(AND(Q74="high",Q78="high",P74="VERY LOW"),"$,Mo",IF(AND(Q74="high",P74="VERY LOW"),"$",IF(AND(Q78="high",P74="VERY LOW"),"Mo",""))) ->  | X78: =IF(AND(Q74="VERY high",Q78="VERY high",P74="VERY LOW"),"$,Mo",IF(AND(Q74="VERY high",P74="VERY LOW"),"$",IF(AND(Q78="VERY high",P74="VERY LOW"),"Mo",""))) ->  | Y78: =IF(OR(T78="$",(T78="$,Mo")),1,0) -> 0 | Z78: =IF(OR(U78="$",(U78="$,Mo")),2,0) -> 0 | AA78: =IF(OR(V78="$",(V78="$,Mo")),4,0) -> 0 | AB78: =IF(OR(W78="$",(W78="$,Mo")),8,0) -> 0 | AC78: =IF(OR(X78="$",(X78="$,Mo")),16,0) -> 0 | AD78: =IF(OR(T78="Mo",(T78="$,Mo")),1,0) -> 0 | AE78: =IF(OR(U78="Mo",(U78="$,Mo")),2,0) -> 0 | AF78: =IF(OR(V78="Mo",(V78="$,Mo")),4,0) -> 0 | AG78: =IF(OR(W78="Mo",(W78="$,Mo")),8,0) -> 0 | AH78: =IF(OR(X78="Mo",(X78="$,Mo")),16,0) -> 0 | AW78: ENG
M79: MAX | R79: Relative risk | T79: VL | U79: L | V79: M | W79: H | X79: VH | AA79: =SUM(Y74:AC78) -> 0 | AF79: =SUM(AD74:AH78) -> 0 | AI79: =IF(O78>0,O78,0) -> 0 | AJ79: =IF(O78<0,O78,0) -> 0 | AW79: TRF
H80: Threat | M80: Most Likely | R80: =AA79 -> 0 | S80: =AF79 -> 0 | T80: Impact | AW80: utility
AW81: STK
B82: 7 | C82: Active | G82: Design | H82: Threat | K82: Cost | M82: MIN | O82: =IF(C82="Retired",0,L82*(N82+4*N84+N83)/6) -> 0 | P82: =IF(C82="Retired","NO RISK",IF(L82>(L$10-0.01),P$10,IF(L82>(L$11-0.01),P$11,IF(L82>(L$12-0.01),P$12,IF(L82>(L$13-0.01),P$13,IF(L82>(L$14),P$14,"NO RISK")))))) -> NO RISK | Q82: =IF(C82="Retired","NO RISK",IF(ABS(N84)>O$10,Q$10,IF(ABS(N84)>O$11,Q$11,IF(ABS(N84)>O$12,Q$12,IF(ABS(N84)>O$13,Q$13,IF(ABS(N84)>O$14,Q$14,"NO RISK")))))) -> NO RISK | R82: Probability | S82: VH | T82: =IF(AND(Q82="VERY LOW",Q86="very low",P82="VERY high"),"$,Mo",IF(AND(Q82="VERY LOW",P82="VERY high"),"$",IF(AND(Q86="very low",P82="VERY high"),"Mo",""))) ->  | U82: =IF(AND(Q82="LOW",Q86="low",P82="VERY high"),"$,Mo",IF(AND(Q82="LOW",P82="VERY high"),"$",IF(AND(Q86="low",P82="VERY high"),"Mo",""))) ->  | V82: =IF(AND(Q82="medium",Q86="medium",P82="VERY high"),"$,Mo",IF(AND(Q82="medium",P82="VERY high"),"$",IF(AND(Q86="medium",P82="VERY high"),"Mo",""))) ->  | W82: =IF(AND(Q82="high",Q86="high",P82="VERY high"),"$,Mo",IF(AND(Q82="high",P82="VERY high"),"$",IF(AND(Q86="high",P82="VERY high"),"Mo",""))) ->  | X82: =IF(AND(Q82="VERY high",Q86="VERY high",P82="VERY high"),"$,Mo",IF(AND(Q82="VERY high",P82="VERY high"),"$",IF(AND(Q86="VERY high",P82="VERY high"),"Mo",""))) ->  | Y82: =IF(OR(T82="$",(T82="$,Mo")),5,0) -> 0 | Z82: =IF(OR(U82="$",(U82="$,Mo")),10,0) -> 0 | AA82: =IF(OR(V82="$",(V82="$,Mo")),20,0) -> 0 | AB82: =IF(OR(W82="$",(W82="$,Mo")),40,0) -> 0 | AC82: =IF(OR(X82="$",(X82="$,Mo")),80,0) -> 0 | AD82: =IF(OR(T82="Mo",(T82="$,Mo")),5,0) -> 0 | AE82: =IF(OR(U82="Mo",(U82="$,Mo")),10,0) -> 0 | AF82: =IF(OR(V82="Mo",(V82="$,Mo")),20,0) -> 0 | AG82: =IF(OR(W82="Mo",(W82="$,Mo")),40,0) -> 0 | AH82: =IF(OR(X82="Mo",(X82="$,Mo")),60,0) -> 0 | AP82: NEAR | AS82: =IF(AK82="Accept",0,(N82*L82)-AR84) -> 0 | AU82: =IF(AT84=0,0,(N82*L82)-AT84) -> 0 | AV82: =O82-AT82 -> 0 | AW82: UNF | AX82: =IF($D82="ROW",$AR84," ") ->  | AY82: =IF($D82="ROW",$AS84," ") ->  | AZ82: =IF($D82="ENV",$AR84," ") ->  | BA82: =IF($D82="ENV",$AS84," ") ->  | BB82: =IF($D82="ENG",$AR84," ") ->  | BC82: =IF($D82="ENG",$AS84," ") ->  | BD82: =IF($D82="TRF",$AR84," ") ->  | BE82: =IF($D82="TRF",$AS84," ") ->  | BF82: =IF($D82="STK",$AR84," ") ->  | BG82: =IF($D82="STK",$AS84," ") ->  | BH82: =IF($D82="UNF",$AR84," ") ->  | BI82: =IF($D82="UNF",$AS84," ") ->  | BJ82: =IF($D82="MKT",$AR84," ") ->  | BK82: =IF($D82="MKT",$AS84," ") ->  | BL82: =IF($D82="UTL",$AR84," ") ->  | BM82: =IF($D82="UTL",$AS84," ") -> 
M83: MAX | S83: H | T83: =IF(AND(Q82="VERY LOW",Q86="very low",P82="high"),"$,Mo",IF(AND(Q82="VERY LOW",P82="high"),"$",IF(AND(Q86="very low",P82="high"),"Mo",""))) ->  | U83: =IF(AND(Q82="LOW",Q86="low",P82="high"),"$,Mo",IF(AND(Q82="LOW",P82="high"),"$",IF(AND(Q86="low",P82="high"),"Mo",""))) ->  | V83: =IF(AND(Q82="medium",Q86="medium",P82="high"),"$,Mo",IF(AND(Q82="medium",P82="high"),"$",IF(AND(Q86="medium",P82="high"),"Mo",""))) ->  | W83: =IF(AND(Q82="high",Q86="high",P82="high"),"$,Mo",IF(AND(Q82="high",P82="high"),"$",IF(AND(Q86="high",P82="high"),"Mo",""))) ->  | X83: =IF(AND(Q82="VERY high",Q86="VERY high",P82="high"),"$,Mo",IF(AND(Q82="VERY high",P82="high"),"$",IF(AND(Q86="VERY high",P82="high"),"Mo",""))) ->  | Y83: =IF(OR(T83="$",(T83="$,Mo")),4,0) -> 0 | Z83: =IF(OR(U83="$",(U83="$,Mo")),8,0) -> 0 | AA83: =IF(OR(V83="$",(V83="$,Mo")),16,0) -> 0 | AB83: =IF(OR(W83="$",(W83="$,Mo")),32,0) -> 0 | AC83: =IF(OR(X83="$",(X83="$,Mo")),64,0) -> 0 | AD83: =IF(OR(T83="Mo",(T83="$,Mo")),4,0) -> 0 | AE83: =IF(OR(U83="Mo",(U83="$,Mo")),8,0) -> 0 | AF83: =IF(OR(V83="Mo",(V83="$,Mo")),16,0) -> 0 | AG83: =IF(OR(W83="Mo",(W83="$,Mo")),32,0) -> 0 | AH83: =IF(OR(X83="Mo",(X83="$,Mo")),64,0) -> 0 | AI83: =IF(O82>0,O82,0) -> 0 | AJ83: =IF(O82<0,O82,0) -> 0 | AS83: =IF(AK82="Accept",0,(N83*L82)-AR84) -> 0 | AU83: =IF(AT84=0,0,(N83*L82)-AT84) -> 0 | AW83: MKT | AX83: RISK 7 >>>>>>>>>>>>>>>>
M84: Most Likely | S84: M | T84: =IF(AND(Q82="VERY LOW",Q86="very low",P82="medium"),"$,Mo",IF(AND(Q82="VERY LOW",P82="medium"),"$",IF(AND(Q86="very low",P82="medium"),"Mo",""))) ->  | U84: =IF(AND(Q82="LOW",Q86="low",P82="medium"),"$,Mo",IF(AND(Q82="LOW",P82="medium"),"$",IF(AND(Q86="low",P82="medium"),"Mo",""))) ->  | V84: =IF(AND(Q82="medium",Q86="medium",P82="medium"),"$,Mo",IF(AND(Q82="medium",P82="medium"),"$",IF(AND(Q86="medium",P82="medium"),"Mo",""))) ->  | W84: =IF(AND(Q82="high",Q86="high",P82="medium"),"$,Mo",IF(AND(Q82="high",P82="medium"),"$",IF(AND(Q86="high",P82="medium"),"Mo",""))) ->  | X84: =IF(AND(Q82="VERY high",Q86="VERY high",P82="medium"),"$,Mo",IF(AND(Q82="VERY high",P82="medium"),"$",IF(AND(Q86="VERY high",P82="medium"),"Mo",""))) ->  | Y84: =IF(OR(T84="$",(T84="$,Mo")),3,0) -> 0 | Z84: =IF(OR(U84="$",(U84="$,Mo")),6,0) -> 0 | AA84: =IF(OR(V84="$",(V84="$,Mo")),12,0) -> 0 | AB84: =IF(OR(W84="$",(W84="$,Mo")),24,0) -> 0 | AC84: =IF(OR(X84="$",(X84="$,Mo")),48,0) -> 0 | AD84: =IF(OR(T84="Mo",(T84="$,Mo")),3,0) -> 0 | AE84: =IF(OR(U84="Mo",(U84="$,Mo")),6,0) -> 0 | AF84: =IF(OR(V84="Mo",(V84="$,Mo")),12,0) -> 0 | AG84: =IF(OR(W84="Mo",(W84="$,Mo")),24,0) -> 0 | AH84: =IF(OR(X84="Mo",(X84="$,Mo")),48,0) -> 0 | AR84: 0 | AS84: =IF(AK82="Accept",0,(N84*L82)-AR84) -> 0 | AU84: =IF(AT84=0,0,(N84*L82)-AT84) -> 0 | AW84: UTL
S85: L | T85: =IF(AND(Q82="VERY LOW",Q86="very low",P82="LOW"),"$,Mo",IF(AND(Q82="VERY LOW",P82="LOW"),"$",IF(AND(Q86="very low",P82="LOW"),"Mo",""))) ->  | U85: =IF(AND(Q82="LOW",Q86="low",P82="LOW"),"$,Mo",IF(AND(Q82="LOW",P82="LOW"),"$",IF(AND(Q86="low",P82="LOW"),"Mo",""))) ->  | V85: =IF(AND(Q82="medium",Q86="medium",P82="LOW"),"$,Mo",IF(AND(Q82="medium",P82="LOW"),"$",IF(AND(Q86="medium",P82="LOW"),"Mo",""))) ->  | W85: =IF(AND(Q82="high",Q86="high",P82="LOW"),"$,Mo",IF(AND(Q82="high",P82="LOW"),"$",IF(AND(Q86="high",P82="LOW"),"Mo",""))) ->  | X85: =IF(AND(Q82="VERY high",Q86="VERY high",P82="low"),"$,Mo",IF(AND(Q82="VERY high",P82="low"),"$",IF(AND(Q86="VERY high",P82="low"),"Mo",""))) ->  | Y85: =IF(OR(T85="$",(T85="$,Mo")),2,0) -> 0 | Z85: =IF(OR(U85="$",(U85="$,Mo")),4,0) -> 0 | AA85: =IF(OR(V85="$",(V85="$,Mo")),8,0) -> 0 | AB85: =IF(OR(W85="$",(W85="$,Mo")),16,0) -> 0 | AC85: =IF(OR(X85="$",(X85="$,Mo")),32,0) -> 0 | AD85: =IF(OR(T85="Mo",(T85="$,Mo")),2,0) -> 0 | AE85: =IF(OR(U85="Mo",(U85="$,Mo")),4,0) -> 0 | AF85: =IF(OR(V85="Mo",(V85="$,Mo")),8,0) -> 0 | AG85: =IF(OR(W85="Mo",(W85="$,Mo")),16,0) -> 0 | AH85: =IF(OR(X85="Mo",(X85="$,Mo")),32,0) -> 0 | AW85: construction
K86: Schedule | M86: MIN | O86: =IF(C82="Retired",0,L82*(N86+4*N88+N87)/6) -> 0 | Q86: =IF(C82="Retired","NO RISK",IF(ABS(N88)>S$10,Q$10,IF(ABS(N88)>S$11,Q$11,IF(ABS(N88)>S$12,Q$12,IF(ABS(N88)>S$13,Q$13,IF(ABS(N88)>S$14,Q$14,"NO RISK")))))) -> NO RISK | S86: VL | T86: =IF(AND(Q82="VERY LOW",Q86="very low",P82="VERY LOW"),"$,Mo",IF(AND(Q82="VERY LOW",P82="VERY LOW"),"$",IF(AND(Q86="very low",P82="VERY LOW"),"Mo",""))) ->  | U86: =IF(AND(Q82="LOW",Q86="low",P82="VERY LOW"),"$,Mo",IF(AND(Q82="LOW",P82="VERY LOW"),"$",IF(AND(Q86="low",P82="VERY LOW"),"Mo",""))) ->  | V86: =IF(AND(Q82="medium",Q86="medium",P82="VERY LOW"),"$,Mo",IF(AND(Q82="medium",P82="VERY LOW"),"$",IF(AND(Q86="medium",P82="VERY LOW"),"Mo",""))) ->  | W86: =IF(AND(Q82="high",Q86="high",P82="VERY LOW"),"$,Mo",IF(AND(Q82="high",P82="VERY LOW"),"$",IF(AND(Q86="high",P82="VERY LOW"),"Mo",""))) ->  | X86: =IF(AND(Q82="VERY high",Q86="VERY high",P82="VERY LOW"),"$,Mo",IF(AND(Q82="VERY high",P82="VERY LOW"),"$",IF(AND(Q86="VERY high",P82="VERY LOW"),"Mo",""))) ->  | Y86: =IF(OR(T86="$",(T86="$,Mo")),1,0) -> 0 | Z86: =IF(OR(U86="$",(U86="$,Mo")),2,0) -> 0 | AA86: =IF(OR(V86="$",(V86="$,Mo")),4,0) -> 0 | AB86: =IF(OR(W86="$",(W86="$,Mo")),8,0) -> 0 | AC86: =IF(OR(X86="$",(X86="$,Mo")),16,0) -> 0 | AD86: =IF(OR(T86="Mo",(T86="$,Mo")),1,0) -> 0 | AE86: =IF(OR(U86="Mo",(U86="$,Mo")),2,0) -> 0 | AF86: =IF(OR(V86="Mo",(V86="$,Mo")),4,0) -> 0 | AG86: =IF(OR(W86="Mo",(W86="$,Mo")),8,0) -> 0 | AH86: =IF(OR(X86="Mo",(X86="$,Mo")),16,0) -> 0
M87: MAX | R87: Relative risk | T87: VL | U87: L | V87: M | W87: H | X87: VH | AA87: =SUM(Y82:AC86) -> 0 | AF87: =SUM(AD82:AH86) -> 0 | AI87: =IF(O86>0,O86,0) -> 0 | AJ87: =IF(O86<0,O86,0) -> 0
H88: Threat | M88: Most Likely | R88: =AA87 -> 0 | S88: =AF87 -> 0 | T88: Impact
B90: 8 | C90: Active | G90: Design | H90: Threat | K90: Cost | M90: MIN | O90: =IF(C90="Retired",0,L90*(N90+4*N92+N91)/6) -> 0 | P90: =IF(C90="Retired","NO RISK",IF(L90>(L$10-0.01),P$10,IF(L90>(L$11-0.01),P$11,IF(L90>(L$12-0.01),P$12,IF(L90>(L$13-0.01),P$13,IF(L90>(L$14),P$14,"NO RISK")))))) -> NO RISK | Q90: =IF(C90="Retired","NO RISK",IF(ABS(N92)>O$10,Q$10,IF(ABS(N92)>O$11,Q$11,IF(ABS(N92)>O$12,Q$12,IF(ABS(N92)>O$13,Q$13,IF(ABS(N92)>O$14,Q$14,"NO RISK")))))) -> NO RISK | R90: Probability | S90: VH | T90: =IF(AND(Q90="VERY LOW",Q94="very low",P90="VERY high"),"$,Mo",IF(AND(Q90="VERY LOW",P90="VERY high"),"$",IF(AND(Q94="very low",P90="VERY high"),"Mo",""))) ->  | U90: =IF(AND(Q90="LOW",Q94="low",P90="VERY high"),"$,Mo",IF(AND(Q90="LOW",P90="VERY high"),"$",IF(AND(Q94="low",P90="VERY high"),"Mo",""))) ->  | V90: =IF(AND(Q90="medium",Q94="medium",P90="VERY high"),"$,Mo",IF(AND(Q90="medium",P90="VERY high"),"$",IF(AND(Q94="medium",P90="VERY high"),"Mo",""))) ->  | W90: =IF(AND(Q90="high",Q94="high",P90="VERY high"),"$,Mo",IF(AND(Q90="high",P90="VERY high"),"$",IF(AND(Q94="high",P90="VERY high"),"Mo",""))) ->  | X90: =IF(AND(Q90="VERY high",Q94="VERY high",P90="VERY high"),"$,Mo",IF(AND(Q90="VERY high",P90="VERY high"),"$",IF(AND(Q94="VERY high",P90="VERY high"),"Mo",""))) ->  | Y90: =IF(OR(T90="$",(T90="$,Mo")),5,0) -> 0 | Z90: =IF(OR(U90="$",(U90="$,Mo")),10,0) -> 0 | AA90: =IF(OR(V90="$",(V90="$,Mo")),20,0) -> 0 | AB90: =IF(OR(W90="$",(W90="$,Mo")),40,0) -> 0 | AC90: =IF(OR(X90="$",(X90="$,Mo")),80,0) -> 0 | AD90: =IF(OR(T90="Mo",(T90="$,Mo")),5,0) -> 0 | AE90: =IF(OR(U90="Mo",(U90="$,Mo")),10,0) -> 0 | AF90: =IF(OR(V90="Mo",(V90="$,Mo")),20,0) -> 0 | AG90: =IF(OR(W90="Mo",(W90="$,Mo")),40,0) -> 0 | AH90: =IF(OR(X90="Mo",(X90="$,Mo")),60,0) -> 0 | AP90: NEAR | AS90: =IF(AK90="Accept",0,(N90*L90)-AR92) -> 0 | AU90: =IF(AT92=0,0,(N90*L90)-AT92) -> 0 | AV90: =O90-AT90 -> 0 | AX90: =IF($D90="ROW",$AR92," ") ->  | AY90: =IF($D90="ROW",$AS92," ") ->  | AZ90: =IF($D90="ENV",$AR92," ") ->  | BA90: =IF($D90="ENV",$AS92," ") ->  | BB90: =IF($D90="ENG",$AR92," ") ->  | BC90: =IF($D90="ENG",$AS92," ") ->  | BD90: =IF($D90="TRF",$AR92," ") ->  | BE90: =IF($D90="TRF",$AS92," ") ->  | BF90: =IF($D90="STK",$AR92," ") ->  | BG90: =IF($D90="STK",$AS92," ") ->  | BH90: =IF($D90="UNF",$AR92," ") ->  | BI90: =IF($D90="UNF",$AS92," ") ->  | BJ90: =IF($D90="MKT",$AR92," ") ->  | BK90: =IF($D90="MKT",$AS92," ") ->  | BL90: =IF($D90="UTL",$AR92," ") ->  | BM90: =IF($D90="UTL",$AS92," ") -> 
M91: MAX | S91: H | T91: =IF(AND(Q90="VERY LOW",Q94="very low",P90="high"),"$,Mo",IF(AND(Q90="VERY LOW",P90="high"),"$",IF(AND(Q94="very low",P90="high"),"Mo",""))) ->  | U91: =IF(AND(Q90="LOW",Q94="low",P90="high"),"$,Mo",IF(AND(Q90="LOW",P90="high"),"$",IF(AND(Q94="low",P90="high"),"Mo",""))) ->  | V91: =IF(AND(Q90="medium",Q94="medium",P90="high"),"$,Mo",IF(AND(Q90="medium",P90="high"),"$",IF(AND(Q94="medium",P90="high"),"Mo",""))) ->  | W91: =IF(AND(Q90="high",Q94="high",P90="high"),"$,Mo",IF(AND(Q90="high",P90="high"),"$",IF(AND(Q94="high",P90="high"),"Mo",""))) ->  | X91: =IF(AND(Q90="VERY high",Q94="VERY high",P90="high"),"$,Mo",IF(AND(Q90="VERY high",P90="high"),"$",IF(AND(Q94="VERY high",P90="high"),"Mo",""))) ->  | Y91: =IF(OR(T91="$",(T91="$,Mo")),4,0) -> 0 | Z91: =IF(OR(U91="$",(U91="$,Mo")),8,0) -> 0 | AA91: =IF(OR(V91="$",(V91="$,Mo")),16,0) -> 0 | AB91: =IF(OR(W91="$",(W91="$,Mo")),32,0) -> 0 | AC91: =IF(OR(X91="$",(X91="$,Mo")),64,0) -> 0 | AD91: =IF(OR(T91="Mo",(T91="$,Mo")),4,0) -> 0 | AE91: =IF(OR(U91="Mo",(U91="$,Mo")),8,0) -> 0 | AF91: =IF(OR(V91="Mo",(V91="$,Mo")),16,0) -> 0 | AG91: =IF(OR(W91="Mo",(W91="$,Mo")),32,0) -> 0 | AH91: =IF(OR(X91="Mo",(X91="$,Mo")),64,0) -> 0 | AI91: =IF(O90>0,O90,0) -> 0 | AJ91: =IF(O90<0,O90,0) -> 0 | AS91: =IF(AK90="Accept",0,(N91*L90)-AR92) -> 0 | AU91: =IF(AT92=0,0,(N91*L90)-AT92) -> 0 | AX91: RISK 8 >>>>>>>>>>>>>>>>
M92: Most Likely | S92: M | T92: =IF(AND(Q90="VERY LOW",Q94="very low",P90="medium"),"$,Mo",IF(AND(Q90="VERY LOW",P90="medium"),"$",IF(AND(Q94="very low",P90="medium"),"Mo",""))) ->  | U92: =IF(AND(Q90="LOW",Q94="low",P90="medium"),"$,Mo",IF(AND(Q90="LOW",P90="medium"),"$",IF(AND(Q94="low",P90="medium"),"Mo",""))) ->  | V92: =IF(AND(Q90="medium",Q94="medium",P90="medium"),"$,Mo",IF(AND(Q90="medium",P90="medium"),"$",IF(AND(Q94="medium",P90="medium"),"Mo",""))) ->  | W92: =IF(AND(Q90="high",Q94="high",P90="medium"),"$,Mo",IF(AND(Q90="high",P90="medium"),"$",IF(AND(Q94="high",P90="medium"),"Mo",""))) ->  | X92: =IF(AND(Q90="VERY high",Q94="VERY high",P90="medium"),"$,Mo",IF(AND(Q90="VERY high",P90="medium"),"$",IF(AND(Q94="VERY high",P90="medium"),"Mo",""))) ->  | Y92: =IF(OR(T92="$",(T92="$,Mo")),3,0) -> 0 | Z92: =IF(OR(U92="$",(U92="$,Mo")),6,0) -> 0 | AA92: =IF(OR(V92="$",(V92="$,Mo")),12,0) -> 0 | AB92: =IF(OR(W92="$",(W92="$,Mo")),24,0) -> 0 | AC92: =IF(OR(X92="$",(X92="$,Mo")),48,0) -> 0 | AD92: =IF(OR(T92="Mo",(T92="$,Mo")),3,0) -> 0 | AE92: =IF(OR(U92="Mo",(U92="$,Mo")),6,0) -> 0 | AF92: =IF(OR(V92="Mo",(V92="$,Mo")),12,0) -> 0 | AG92: =IF(OR(W92="Mo",(W92="$,Mo")),24,0) -> 0 | AH92: =IF(OR(X92="Mo",(X92="$,Mo")),48,0) -> 0 | AR92: 0 | AS92: =IF(AK90="Accept",0,(N92*L90)-AR92) -> 0 | AU92: =IF(AT92=0,0,(N92*L90)-AT92) -> 0
S93: L | T93: =IF(AND(Q90="VERY LOW",Q94="very low",P90="LOW"),"$,Mo",IF(AND(Q90="VERY LOW",P90="LOW"),"$",IF(AND(Q94="very low",P90="LOW"),"Mo",""))) ->  | U93: =IF(AND(Q90="LOW",Q94="low",P90="LOW"),"$,Mo",IF(AND(Q90="LOW",P90="LOW"),"$",IF(AND(Q94="low",P90="LOW"),"Mo",""))) ->  | V93: =IF(AND(Q90="medium",Q94="medium",P90="LOW"),"$,Mo",IF(AND(Q90="medium",P90="LOW"),"$",IF(AND(Q94="medium",P90="LOW"),"Mo",""))) ->  | W93: =IF(AND(Q90="high",Q94="high",P90="LOW"),"$,Mo",IF(AND(Q90="high",P90="LOW"),"$",IF(AND(Q94="high",P90="LOW"),"Mo",""))) ->  | X93: =IF(AND(Q90="VERY high",Q94="VERY high",P90="low"),"$,Mo",IF(AND(Q90="VERY high",P90="low"),"$",IF(AND(Q94="VERY high",P90="low"),"Mo",""))) ->  | Y93: =IF(OR(T93="$",(T93="$,Mo")),2,0) -> 0 | Z93: =IF(OR(U93="$",(U93="$,Mo")),4,0) -> 0 | AA93: =IF(OR(V93="$",(V93="$,Mo")),8,0) -> 0 | AB93: =IF(OR(W93="$",(W93="$,Mo")),16,0) -> 0 | AC93: =IF(OR(X93="$",(X93="$,Mo")),32,0) -> 0 | AD93: =IF(OR(T93="Mo",(T93="$,Mo")),2,0) -> 0 | AE93: =IF(OR(U93="Mo",(U93="$,Mo")),4,0) -> 0 | AF93: =IF(OR(V93="Mo",(V93="$,Mo")),8,0) -> 0 | AG93: =IF(OR(W93="Mo",(W93="$,Mo")),16,0) -> 0 | AH93: =IF(OR(X93="Mo",(X93="$,Mo")),32,0) -> 0
K94: Schedule | M94: MIN | O94: =IF(C90="Retired",0,L90*(N94+4*N96+N95)/6) -> 0 | Q94: =IF(C90="Retired","NO RISK",IF(ABS(N96)>S$10,Q$10,IF(ABS(N96)>S$11,Q$11,IF(ABS(N96)>S$12,Q$12,IF(ABS(N96)>S$13,Q$13,IF(ABS(N96)>S$14,Q$14,"NO RISK")))))) -> NO RISK | S94: VL | T94: =IF(AND(Q90="VERY LOW",Q94="very low",P90="VERY LOW"),"$,Mo",IF(AND(Q90="VERY LOW",P90="VERY LOW"),"$",IF(AND(Q94="very low",P90="VERY LOW"),"Mo",""))) ->  | U94: =IF(AND(Q90="LOW",Q94="low",P90="VERY LOW"),"$,Mo",IF(AND(Q90="LOW",P90="VERY LOW"),"$",IF(AND(Q94="low",P90="VERY LOW"),"Mo",""))) ->  | V94: =IF(AND(Q90="medium",Q94="medium",P90="VERY LOW"),"$,Mo",IF(AND(Q90="medium",P90="VERY LOW"),"$",IF(AND(Q94="medium",P90="VERY LOW"),"Mo",""))) ->  | W94: =IF(AND(Q90="high",Q94="high",P90="VERY LOW"),"$,Mo",IF(AND(Q90="high",P90="VERY LOW"),"$",IF(AND(Q94="high",P90="VERY LOW"),"Mo",""))) ->  | X94: =IF(AND(Q90="VERY high",Q94="VERY high",P90="VERY LOW"),"$,Mo",IF(AND(Q90="VERY high",P90="VERY LOW"),"$",IF(AND(Q94="VERY high",P90="VERY LOW"),"Mo",""))) ->  | Y94: =IF(OR(T94="$",(T94="$,Mo")),1,0) -> 0 | Z94: =IF(OR(U94="$",(U94="$,Mo")),2,0) -> 0 | AA94: =IF(OR(V94="$",(V94="$,Mo")),4,0) -> 0 | AB94: =IF(OR(W94="$",(W94="$,Mo")),8,0) -> 0 | AC94: =IF(OR(X94="$",(X94="$,Mo")),16,0) -> 0 | AD94: =IF(OR(T94="Mo",(T94="$,Mo")),1,0) -> 0 | AE94: =IF(OR(U94="Mo",(U94="$,Mo")),2,0) -> 0 | AF94: =IF(OR(V94="Mo",(V94="$,Mo")),4,0) -> 0 | AG94: =IF(OR(W94="Mo",(W94="$,Mo")),8,0) -> 0 | AH94: =IF(OR(X94="Mo",(X94="$,Mo")),16,0) -> 0
M95: MAX | R95: Relative risk | T95: VL | U95: L | V95: M | W95: H | X95: VH | AA95: =SUM(Y90:AC94) -> 0 | AF95: =SUM(AD90:AH94) -> 0 | AI95: =IF(O94>0,O94,0) -> 0 | AJ95: =IF(O94<0,O94,0) -> 0
H96: Threat | M96: Most Likely | R96: =AA95 -> 0 | S96: =AF95 -> 0 | T96: Impact
B98: 9 | C98: Active | G98: Design | H98: Threat | K98: Cost | M98: MIN | O98: =IF(C98="Retired",0,L98*(N98+4*N100+N99)/6) -> 0 | P98: =IF(C98="Retired","NO RISK",IF(L98>(L$10-0.01),P$10,IF(L98>(L$11-0.01),P$11,IF(L98>(L$12-0.01),P$12,IF(L98>(L$13-0.01),P$13,IF(L98>(L$14),P$14,"NO RISK")))))) -> NO RISK | Q98: =IF(C98="Retired","NO RISK",IF(ABS(N100)>O$10,Q$10,IF(ABS(N100)>O$11,Q$11,IF(ABS(N100)>O$12,Q$12,IF(ABS(N100)>O$13,Q$13,IF(ABS(N100)>O$14,Q$14,"NO RISK")))))) -> NO RISK | R98: Probability | S98: VH | T98: =IF(AND(Q98="VERY LOW",Q102="very low",P98="VERY high"),"$,Mo",IF(AND(Q98="VERY LOW",P98="VERY high"),"$",IF(AND(Q102="very low",P98="VERY high"),"Mo",""))) ->  | U98: =IF(AND(Q98="LOW",Q102="low",P98="VERY high"),"$,Mo",IF(AND(Q98="LOW",P98="VERY high"),"$",IF(AND(Q102="low",P98="VERY high"),"Mo",""))) ->  | V98: =IF(AND(Q98="medium",Q102="medium",P98="VERY high"),"$,Mo",IF(AND(Q98="medium",P98="VERY high"),"$",IF(AND(Q102="medium",P98="VERY high"),"Mo",""))) ->  | W98: =IF(AND(Q98="high",Q102="high",P98="VERY high"),"$,Mo",IF(AND(Q98="high",P98="VERY high"),"$",IF(AND(Q102="high",P98="VERY high"),"Mo",""))) ->  | X98: =IF(AND(Q98="VERY high",Q102="VERY high",P98="VERY high"),"$,Mo",IF(AND(Q98="VERY high",P98="VERY high"),"$",IF(AND(Q102="VERY high",P98="VERY high"),"Mo",""))) ->  | Y98: =IF(OR(T98="$",(T98="$,Mo")),5,0) -> 0 | Z98: =IF(OR(U98="$",(U98="$,Mo")),10,0) -> 0 | AA98: =IF(OR(V98="$",(V98="$,Mo")),20,0) -> 0 | AB98: =IF(OR(W98="$",(W98="$,Mo")),40,0) -> 0 | AC98: =IF(OR(X98="$",(X98="$,Mo")),80,0) -> 0 | AD98: =IF(OR(T98="Mo",(T98="$,Mo")),5,0) -> 0 | AE98: =IF(OR(U98="Mo",(U98="$,Mo")),10,0) -> 0 | AF98: =IF(OR(V98="Mo",(V98="$,Mo")),20,0) -> 0 | AG98: =IF(OR(W98="Mo",(W98="$,Mo")),40,0) -> 0 | AH98: =IF(OR(X98="Mo",(X98="$,Mo")),60,0) -> 0 | AP98: NEAR | AS98: =IF(AK98="Accept",0,(N98*L98)-AR100) -> 0 | AU98: =IF(AT100=0,0,(N98*L98)-AT100) -> 0 | AV98: =O98-AT98 -> 0 | AX98: =IF($D98="ROW",$AR100," ") ->  | AY98: =IF($D98="ROW",$AS100," ") ->  | AZ98: =IF($D98="ENV",$AR100," ") ->  | BA98: =IF($D98="ENV",$AS100," ") ->  | BB98: =IF($D98="ENG",$AR100," ") ->  | BC98: =IF($D98="ENG",$AS100," ") ->  | BD98: =IF($D98="TRF",$AR100," ") ->  | BE98: =IF($D98="TRF",$AS100," ") ->  | BF98: =IF($D98="STK",$AR100," ") ->  | BG98: =IF($D98="STK",$AS100," ") ->  | BH98: =IF($D98="UNF",$AR100," ") ->  | BI98: =IF($D98="UNF",$AS100," ") ->  | BJ98: =IF($D98="MKT",$AR100," ") ->  | BK98: =IF($D98="MKT",$AS100," ") ->  | BL98: =IF($D98="UTL",$AR100," ") ->  | BM98: =IF($D98="UTL",$AS100," ") -> 
M99: MAX | S99: H | T99: =IF(AND(Q98="VERY LOW",Q102="very low",P98="high"),"$,Mo",IF(AND(Q98="VERY LOW",P98="high"),"$",IF(AND(Q102="very low",P98="high"),"Mo",""))) ->  | U99: =IF(AND(Q98="LOW",Q102="low",P98="high"),"$,Mo",IF(AND(Q98="LOW",P98="high"),"$",IF(AND(Q102="low",P98="high"),"Mo",""))) ->  | V99: =IF(AND(Q98="medium",Q102="medium",P98="high"),"$,Mo",IF(AND(Q98="medium",P98="high"),"$",IF(AND(Q102="medium",P98="high"),"Mo",""))) ->  | W99: =IF(AND(Q98="high",Q102="high",P98="high"),"$,Mo",IF(AND(Q98="high",P98="high"),"$",IF(AND(Q102="high",P98="high"),"Mo",""))) ->  | X99: =IF(AND(Q98="VERY high",Q102="VERY high",P98="high"),"$,Mo",IF(AND(Q98="VERY high",P98="high"),"$",IF(AND(Q102="VERY high",P98="high"),"Mo",""))) ->  | Y99: =IF(OR(T99="$",(T99="$,Mo")),4,0) -> 0 | Z99: =IF(OR(U99="$",(U99="$,Mo")),8,0) -> 0 | AA99: =IF(OR(V99="$",(V99="$,Mo")),16,0) -> 0 | AB99: =IF(OR(W99="$",(W99="$,Mo")),32,0) -> 0 | AC99: =IF(OR(X99="$",(X99="$,Mo")),64,0) -> 0 | AD99: =IF(OR(T99="Mo",(T99="$,Mo")),4,0) -> 0 | AE99: =IF(OR(U99="Mo",(U99="$,Mo")),8,0) -> 0 | AF99: =IF(OR(V99="Mo",(V99="$,Mo")),16,0) -> 0 | AG99: =IF(OR(W99="Mo",(W99="$,Mo")),32,0) -> 0 | AH99: =IF(OR(X99="Mo",(X99="$,Mo")),64,0) -> 0 | AI99: =IF(O98>0,O98,0) -> 0 | AJ99: =IF(O98<0,O98,0) -> 0 | AS99: =IF(AK98="Accept",0,(N99*L98)-AR100) -> 0 | AU99: =IF(AT100=0,0,(N99*L98)-AT100) -> 0 | AX99: RISK 9 >>>>>>>>>>>>>>>>
M100: Most Likely | S100: M | T100: =IF(AND(Q98="VERY LOW",Q102="very low",P98="medium"),"$,Mo",IF(AND(Q98="VERY LOW",P98="medium"),"$",IF(AND(Q102="very low",P98="medium"),"Mo",""))) ->  | U100: =IF(AND(Q98="LOW",Q102="low",P98="medium"),"$,Mo",IF(AND(Q98="LOW",P98="medium"),"$",IF(AND(Q102="low",P98="medium"),"Mo",""))) ->  | V100: =IF(AND(Q98="medium",Q102="medium",P98="medium"),"$,Mo",IF(AND(Q98="medium",P98="medium"),"$",IF(AND(Q102="medium",P98="medium"),"Mo",""))) ->  | W100: =IF(AND(Q98="high",Q102="high",P98="medium"),"$,Mo",IF(AND(Q98="high",P98="medium"),"$",IF(AND(Q102="high",P98="medium"),"Mo",""))) ->  | X100: =IF(AND(Q98="VERY high",Q102="VERY high",P98="medium"),"$,Mo",IF(AND(Q98="VERY high",P98="medium"),"$",IF(AND(Q102="VERY high",P98="medium"),"Mo",""))) ->  | Y100: =IF(OR(T100="$",(T100="$,Mo")),3,0) -> 0 | Z100: =IF(OR(U100="$",(U100="$,Mo")),6,0) -> 0 | AA100: =IF(OR(V100="$",(V100="$,Mo")),12,0) -> 0 | AB100: =IF(OR(W100="$",(W100="$,Mo")),24,0) -> 0 | AC100: =IF(OR(X100="$",(X100="$,Mo")),48,0) -> 0 | AD100: =IF(OR(T100="Mo",(T100="$,Mo")),3,0) -> 0 | AE100: =IF(OR(U100="Mo",(U100="$,Mo")),6,0) -> 0 | AF100: =IF(OR(V100="Mo",(V100="$,Mo")),12,0) -> 0 | AG100: =IF(OR(W100="Mo",(W100="$,Mo")),24,0) -> 0 | AH100: =IF(OR(X100="Mo",(X100="$,Mo")),48,0) -> 0 | AR100: 0 | AS100: =IF(AK98="Accept",0,(N100*L98)-AR100) -> 0 | AU100: =IF(AT100=0,0,(N100*L98)-AT100) -> 0
S101: L | T101: =IF(AND(Q98="VERY LOW",Q102="very low",P98="LOW"),"$,Mo",IF(AND(Q98="VERY LOW",P98="LOW"),"$",IF(AND(Q102="very low",P98="LOW"),"Mo",""))) ->  | U101: =IF(AND(Q98="LOW",Q102="low",P98="LOW"),"$,Mo",IF(AND(Q98="LOW",P98="LOW"),"$",IF(AND(Q102="low",P98="LOW"),"Mo",""))) ->  | V101: =IF(AND(Q98="medium",Q102="medium",P98="LOW"),"$,Mo",IF(AND(Q98="medium",P98="LOW"),"$",IF(AND(Q102="medium",P98="LOW"),"Mo",""))) ->  | W101: =IF(AND(Q98="high",Q102="high",P98="LOW"),"$,Mo",IF(AND(Q98="high",P98="LOW"),"$",IF(AND(Q102="high",P98="LOW"),"Mo",""))) ->  | X101: =IF(AND(Q98="VERY high",Q102="VERY high",P98="low"),"$,Mo",IF(AND(Q98="VERY high",P98="low"),"$",IF(AND(Q102="VERY high",P98="low"),"Mo",""))) ->  | Y101: =IF(OR(T101="$",(T101="$,Mo")),2,0) -> 0 | Z101: =IF(OR(U101="$",(U101="$,Mo")),4,0) -> 0 | AA101: =IF(OR(V101="$",(V101="$,Mo")),8,0) -> 0 | AB101: =IF(OR(W101="$",(W101="$,Mo")),16,0) -> 0 | AC101: =IF(OR(X101="$",(X101="$,Mo")),32,0) -> 0 | AD101: =IF(OR(T101="Mo",(T101="$,Mo")),2,0) -> 0 | AE101: =IF(OR(U101="Mo",(U101="$,Mo")),4,0) -> 0 | AF101: =IF(OR(V101="Mo",(V101="$,Mo")),8,0) -> 0 | AG101: =IF(OR(W101="Mo",(W101="$,Mo")),16,0) -> 0 | AH101: =IF(OR(X101="Mo",(X101="$,Mo")),32,0) -> 0
K102: Schedule | M102: MIN | O102: =IF(C98="Retired",0,L98*(N102+4*N104+N103)/6) -> 0 | Q102: =IF(C98="Retired","NO RISK",IF(ABS(N104)>S$10,Q$10,IF(ABS(N104)>S$11,Q$11,IF(ABS(N104)>S$12,Q$12,IF(ABS(N104)>S$13,Q$13,IF(ABS(N104)>S$14,Q$14,"NO RISK")))))) -> NO RISK | S102: VL | T102: =IF(AND(Q98="VERY LOW",Q102="very low",P98="VERY LOW"),"$,Mo",IF(AND(Q98="VERY LOW",P98="VERY LOW"),"$",IF(AND(Q102="very low",P98="VERY LOW"),"Mo",""))) ->  | U102: =IF(AND(Q98="LOW",Q102="low",P98="VERY LOW"),"$,Mo",IF(AND(Q98="LOW",P98="VERY LOW"),"$",IF(AND(Q102="low",P98="VERY LOW"),"Mo",""))) ->  | V102: =IF(AND(Q98="medium",Q102="medium",P98="VERY LOW"),"$,Mo",IF(AND(Q98="medium",P98="VERY LOW"),"$",IF(AND(Q102="medium",P98="VERY LOW"),"Mo",""))) ->  | W102: =IF(AND(Q98="high",Q102="high",P98="VERY LOW"),"$,Mo",IF(AND(Q98="high",P98="VERY LOW"),"$",IF(AND(Q102="high",P98="VERY LOW"),"Mo",""))) ->  | X102: =IF(AND(Q98="VERY high",Q102="VERY high",P98="VERY LOW"),"$,Mo",IF(AND(Q98="VERY high",P98="VERY LOW"),"$",IF(AND(Q102="VERY high",P98="VERY LOW"),"Mo",""))) ->  | Y102: =IF(OR(T102="$",(T102="$,Mo")),1,0) -> 0 | Z102: =IF(OR(U102="$",(U102="$,Mo")),2,0) -> 0 | AA102: =IF(OR(V102="$",(V102="$,Mo")),4,0) -> 0 | AB102: =IF(OR(W102="$",(W102="$,Mo")),8,0) -> 0 | AC102: =IF(OR(X102="$",(X102="$,Mo")),16,0) -> 0 | AD102: =IF(OR(T102="Mo",(T102="$,Mo")),1,0) -> 0 | AE102: =IF(OR(U102="Mo",(U102="$,Mo")),2,0) -> 0 | AF102: =IF(OR(V102="Mo",(V102="$,Mo")),4,0) -> 0 | AG102: =IF(OR(W102="Mo",(W102="$,Mo")),8,0) -> 0 | AH102: =IF(OR(X102="Mo",(X102="$,Mo")),16,0) -> 0
M103: MAX | R103: Relative risk | T103: VL | U103: L | V103: M | W103: H | X103: VH | AA103: =SUM(Y98:AC102) -> 0 | AF103: =SUM(AD98:AH102) -> 0 | AI103: =IF(O102>0,O102,0) -> 0 | AJ103: =IF(O102<0,O102,0) -> 0
H104: Threat | M104: Most Likely | R104: =AA103 -> 0 | S104: =AF103 -> 0 | T104: Impact
B106: 10 | C106: Active | G106: Design | H106: Threat | K106: Cost | M106: MIN | O106: =IF(C106="Retired",0,L106*(N106+4*N108+N107)/6) -> 0 | P106: =IF(C106="Retired","NO RISK",IF(L106>(L$10-0.01),P$10,IF(L106>(L$11-0.01),P$11,IF(L106>(L$12-0.01),P$12,IF(L106>(L$13-0.01),P$13,IF(L106>(L$14),P$14,"NO RISK")))))) -> NO RISK | Q106: =IF(C106="Retired","NO RISK",IF(ABS(N108)>O$10,Q$10,IF(ABS(N108)>O$11,Q$11,IF(ABS(N108)>O$12,Q$12,IF(ABS(N108)>O$13,Q$13,IF(ABS(N108)>O$14,Q$14,"NO RISK")))))) -> NO RISK | R106: Probability | S106: VH | T106: =IF(AND(Q106="VERY LOW",Q110="very low",P106="VERY high"),"$,Mo",IF(AND(Q106="VERY LOW",P106="VERY high"),"$",IF(AND(Q110="very low",P106="VERY high"),"Mo",""))) ->  | U106: =IF(AND(Q106="LOW",Q110="low",P106="VERY high"),"$,Mo",IF(AND(Q106="LOW",P106="VERY high"),"$",IF(AND(Q110="low",P106="VERY high"),"Mo",""))) ->  | V106: =IF(AND(Q106="medium",Q110="medium",P106="VERY high"),"$,Mo",IF(AND(Q106="medium",P106="VERY high"),"$",IF(AND(Q110="medium",P106="VERY high"),"Mo",""))) ->  | W106: =IF(AND(Q106="high",Q110="high",P106="VERY high"),"$,Mo",IF(AND(Q106="high",P106="VERY high"),"$",IF(AND(Q110="high",P106="VERY high"),"Mo",""))) ->  | X106: =IF(AND(Q106="VERY high",Q110="VERY high",P106="VERY high"),"$,Mo",IF(AND(Q106="VERY high",P106="VERY high"),"$",IF(AND(Q110="VERY high",P106="VERY high"),"Mo",""))) ->  | Y106: =IF(OR(T106="$",(T106="$,Mo")),5,0) -> 0 | Z106: =IF(OR(U106="$",(U106="$,Mo")),10,0) -> 0 | AA106: =IF(OR(V106="$",(V106="$,Mo")),20,0) -> 0 | AB106: =IF(OR(W106="$",(W106="$,Mo")),40,0) -> 0 | AC106: =IF(OR(X106="$",(X106="$,Mo")),80,0) -> 0 | AD106: =IF(OR(T106="Mo",(T106="$,Mo")),5,0) -> 0 | AE106: =IF(OR(U106="Mo",(U106="$,Mo")),10,0) -> 0 | AF106: =IF(OR(V106="Mo",(V106="$,Mo")),20,0) -> 0 | AG106: =IF(OR(W106="Mo",(W106="$,Mo")),40,0) -> 0 | AH106: =IF(OR(X106="Mo",(X106="$,Mo")),60,0) -> 0 | AP106: NEAR | AS106: =IF(AK106="Accept",0,(N106*L106)-AR108) -> 0 | AU106: =IF(AT108=0,0,(N106*L106)-AT108) -> 0 | AV106: =O106-AT106 -> 0 | AX106: =IF($D106="ROW",$AR108," ") ->  | AY106: =IF($D106="ROW",$AS108," ") ->  | AZ106: =IF($D106="ENV",$AR108," ") ->  | BA106: =IF($D106="ENV",$AS108," ") ->  | BB106: =IF($D106="ENG",$AR108," ") ->  | BC106: =IF($D106="ENG",$AS108," ") ->  | BD106: =IF($D106="TRF",$AR108," ") ->  | BE106: =IF($D106="TRF",$AS108," ") ->  | BF106: =IF($D106="STK",$AR108," ") ->  | BG106: =IF($D106="STK",$AS108," ") ->  | BH106: =IF($D106="UNF",$AR108," ") ->  | BI106: =IF($D106="UNF",$AS108," ") ->  | BJ106: =IF($D106="MKT",$AR108," ") ->  | BK106: =IF($D106="MKT",$AS108," ") ->  | BL106: =IF($D106="UTL",$AR108," ") ->  | BM106: =IF($D106="UTL",$AS108," ") -> 
M107: MAX | S107: H | T107: =IF(AND(Q106="VERY LOW",Q110="very low",P106="high"),"$,Mo",IF(AND(Q106="VERY LOW",P106="high"),"$",IF(AND(Q110="very low",P106="high"),"Mo",""))) ->  | U107: =IF(AND(Q106="LOW",Q110="low",P106="high"),"$,Mo",IF(AND(Q106="LOW",P106="high"),"$",IF(AND(Q110="low",P106="high"),"Mo",""))) ->  | V107: =IF(AND(Q106="medium",Q110="medium",P106="high"),"$,Mo",IF(AND(Q106="medium",P106="high"),"$",IF(AND(Q110="medium",P106="high"),"Mo",""))) ->  | W107: =IF(AND(Q106="high",Q110="high",P106="high"),"$,Mo",IF(AND(Q106="high",P106="high"),"$",IF(AND(Q110="high",P106="high"),"Mo",""))) ->  | X107: =IF(AND(Q106="VERY high",Q110="VERY high",P106="high"),"$,Mo",IF(AND(Q106="VERY high",P106="high"),"$",IF(AND(Q110="VERY high",P106="high"),"Mo",""))) ->  | Y107: =IF(OR(T107="$",(T107="$,Mo")),4,0) -> 0 | Z107: =IF(OR(U107="$",(U107="$,Mo")),8,0) -> 0 | AA107: =IF(OR(V107="$",(V107="$,Mo")),16,0) -> 0 | AB107: =IF(OR(W107="$",(W107="$,Mo")),32,0) -> 0 | AC107: =IF(OR(X107="$",(X107="$,Mo")),64,0) -> 0 | AD107: =IF(OR(T107="Mo",(T107="$,Mo")),4,0) -> 0 | AE107: =IF(OR(U107="Mo",(U107="$,Mo")),8,0) -> 0 | AF107: =IF(OR(V107="Mo",(V107="$,Mo")),16,0) -> 0 | AG107: =IF(OR(W107="Mo",(W107="$,Mo")),32,0) -> 0 | AH107: =IF(OR(X107="Mo",(X107="$,Mo")),64,0) -> 0 | AI107: =IF(O106>0,O106,0) -> 0 | AJ107: =IF(O106<0,O106,0) -> 0 | AS107: =IF(AK106="Accept",0,(N107*L106)-AR108) -> 0 | AU107: =IF(AT108=0,0,(N107*L106)-AT108) -> 0 | AX107: RISK 10 >>>>>>>>>>>>>>>>
M108: Most Likely | S108: M | T108: =IF(AND(Q106="VERY LOW",Q110="very low",P106="medium"),"$,Mo",IF(AND(Q106="VERY LOW",P106="medium"),"$",IF(AND(Q110="very low",P106="medium"),"Mo",""))) ->  | U108: =IF(AND(Q106="LOW",Q110="low",P106="medium"),"$,Mo",IF(AND(Q106="LOW",P106="medium"),"$",IF(AND(Q110="low",P106="medium"),"Mo",""))) ->  | V108: =IF(AND(Q106="medium",Q110="medium",P106="medium"),"$,Mo",IF(AND(Q106="medium",P106="medium"),"$",IF(AND(Q110="medium",P106="medium"),"Mo",""))) ->  | W108: =IF(AND(Q106="high",Q110="high",P106="medium"),"$,Mo",IF(AND(Q106="high",P106="medium"),"$",IF(AND(Q110="high",P106="medium"),"Mo",""))) ->  | X108: =IF(AND(Q106="VERY high",Q110="VERY high",P106="medium"),"$,Mo",IF(AND(Q106="VERY high",P106="medium"),"$",IF(AND(Q110="VERY high",P106="medium"),"Mo",""))) ->  | Y108: =IF(OR(T108="$",(T108="$,Mo")),3,0) -> 0 | Z108: =IF(OR(U108="$",(U108="$,Mo")),6,0) -> 0 | AA108: =IF(OR(V108="$",(V108="$,Mo")),12,0) -> 0 | AB108: =IF(OR(W108="$",(W108="$,Mo")),24,0) -> 0 | AC108: =IF(OR(X108="$",(X108="$,Mo")),48,0) -> 0 | AD108: =IF(OR(T108="Mo",(T108="$,Mo")),3,0) -> 0 | AE108: =IF(OR(U108="Mo",(U108="$,Mo")),6,0) -> 0 | AF108: =IF(OR(V108="Mo",(V108="$,Mo")),12,0) -> 0 | AG108: =IF(OR(W108="Mo",(W108="$,Mo")),24,0) -> 0 | AH108: =IF(OR(X108="Mo",(X108="$,Mo")),48,0) -> 0 | AR108: 0 | AS108: =IF(AK106="Accept",0,(N108*L106)-AR108) -> 0 | AU108: =IF(AT108=0,0,(N108*L106)-AT108) -> 0
S109: L | T109: =IF(AND(Q106="VERY LOW",Q110="very low",P106="LOW"),"$,Mo",IF(AND(Q106="VERY LOW",P106="LOW"),"$",IF(AND(Q110="very low",P106="LOW"),"Mo",""))) ->  | U109: =IF(AND(Q106="LOW",Q110="low",P106="LOW"),"$,Mo",IF(AND(Q106="LOW",P106="LOW"),"$",IF(AND(Q110="low",P106="LOW"),"Mo",""))) ->  | V109: =IF(AND(Q106="medium",Q110="medium",P106="LOW"),"$,Mo",IF(AND(Q106="medium",P106="LOW"),"$",IF(AND(Q110="medium",P106="LOW"),"Mo",""))) ->  | W109: =IF(AND(Q106="high",Q110="high",P106="LOW"),"$,Mo",IF(AND(Q106="high",P106="LOW"),"$",IF(AND(Q110="high",P106="LOW"),"Mo",""))) ->  | X109: =IF(AND(Q106="VERY high",Q110="VERY high",P106="low"),"$,Mo",IF(AND(Q106="VERY high",P106="low"),"$",IF(AND(Q110="VERY high",P106="low"),"Mo",""))) ->  | Y109: =IF(OR(T109="$",(T109="$,Mo")),2,0) -> 0 | Z109: =IF(OR(U109="$",(U109="$,Mo")),4,0) -> 0 | AA109: =IF(OR(V109="$",(V109="$,Mo")),8,0) -> 0 | AB109: =IF(OR(W109="$",(W109="$,Mo")),16,0) -> 0 | AC109: =IF(OR(X109="$",(X109="$,Mo")),32,0) -> 0 | AD109: =IF(OR(T109="Mo",(T109="$,Mo")),2,0) -> 0 | AE109: =IF(OR(U109="Mo",(U109="$,Mo")),4,0) -> 0 | AF109: =IF(OR(V109="Mo",(V109="$,Mo")),8,0) -> 0 | AG109: =IF(OR(W109="Mo",(W109="$,Mo")),16,0) -> 0 | AH109: =IF(OR(X109="Mo",(X109="$,Mo")),32,0) -> 0
K110: Schedule | M110: MIN | O110: =IF(C106="Retired",0,L106*(N110+4*N112+N111)/6) -> 0 | Q110: =IF(C106="Retired","NO RISK",IF(ABS(N112)>S$10,Q$10,IF(ABS(N112)>S$11,Q$11,IF(ABS(N112)>S$12,Q$12,IF(ABS(N112)>S$13,Q$13,IF(ABS(N112)>S$14,Q$14,"NO RISK")))))) -> NO RISK | S110: VL | T110: =IF(AND(Q106="VERY LOW",Q110="very low",P106="VERY LOW"),"$,Mo",IF(AND(Q106="VERY LOW",P106="VERY LOW"),"$",IF(AND(Q110="very low",P106="VERY LOW"),"Mo",""))) ->  | U110: =IF(AND(Q106="LOW",Q110="low",P106="VERY LOW"),"$,Mo",IF(AND(Q106="LOW",P106="VERY LOW"),"$",IF(AND(Q110="low",P106="VERY LOW"),"Mo",""))) ->  | V110: =IF(AND(Q106="medium",Q110="medium",P106="VERY LOW"),"$,Mo",IF(AND(Q106="medium",P106="VERY LOW"),"$",IF(AND(Q110="medium",P106="VERY LOW"),"Mo",""))) ->  | W110: =IF(AND(Q106="high",Q110="high",P106="VERY LOW"),"$,Mo",IF(AND(Q106="high",P106="VERY LOW"),"$",IF(AND(Q110="high",P106="VERY LOW"),"Mo",""))) ->  | X110: =IF(AND(Q106="VERY high",Q110="VERY high",P106="VERY LOW"),"$,Mo",IF(AND(Q106="VERY high",P106="VERY LOW"),"$",IF(AND(Q110="VERY high",P106="VERY LOW"),"Mo",""))) ->  | Y110: =IF(OR(T110="$",(T110="$,Mo")),1,0) -> 0 | Z110: =IF(OR(U110="$",(U110="$,Mo")),2,0) -> 0 | AA110: =IF(OR(V110="$",(V110="$,Mo")),4,0) -> 0 | AB110: =IF(OR(W110="$",(W110="$,Mo")),8,0) -> 0 | AC110: =IF(OR(X110="$",(X110="$,Mo")),16,0) -> 0 | AD110: =IF(OR(T110="Mo",(T110="$,Mo")),1,0) -> 0 | AE110: =IF(OR(U110="Mo",(U110="$,Mo")),2,0) -> 0 | AF110: =IF(OR(V110="Mo",(V110="$,Mo")),4,0) -> 0 | AG110: =IF(OR(W110="Mo",(W110="$,Mo")),8,0) -> 0 | AH110: =IF(OR(X110="Mo",(X110="$,Mo")),16,0) -> 0
M111: MAX | R111: Relative risk | T111: VL | U111: L | V111: M | W111: H | X111: VH | AA111: =SUM(Y106:AC110) -> 0 | AF111: =SUM(AD106:AH110) -> 0 | AI111: =IF(O110>0,O110,0) -> 0 | AJ111: =IF(O110<0,O110,0) -> 0
H112: Threat | M112: Most Likely | R112: =AA111 -> 0 | S112: =AF111 -> 0 | T112: Impact
L114: min | M114: =SUM(N34,N42,N50,N58,N66,N74,N82,N90,N98,N106) -> 0 | N114: Leverage | O114: =SUM(AJ35,AJ43,AJ51,AJ59,AJ67,AJ75,AJ83,AJ91,AJ99,AJ107) -> 0 | P114: =SUM(AJ39,AJ47,AJ55,AJ63,AJ71,AJ79,AJ87,AJ95,AJ103,AJ111) -> 0 | Q114: Months | R114: Relative risk | U114: Probability X Impact | Z114: Matrix to determine relative risk: Cost and Schedule: | AO114: Total | AS114: =SUM(AS106,AS98,AS90,AS82,AS74,AS66,AS58,AS50,AS42,AS34) -> 0 | AU114: =SUM(AU106,AU98,AU90,AU82,AU74,AU66,AU58,AU50,AU42,AU34) -> 0 | AX114: =SUM(AX34:AX73) -> 0 | AY114: =SUM(AY34:AY72) -> 0 | AZ114: =SUM(AZ34:AZ72) -> 0 | BA114: =SUM(BA34:BA72) -> 0 | BB114: =SUM(BB34:BB73) -> 0 | BC114: =SUM(BC34:BC72) -> 0 | BD114: =SUM(BD34:BD72) -> 0 | BE114: =SUM(BE34:BE72) -> 0 | BF114: =SUM(BF34:BF72) -> 0 | BG114: 0 | BH114: 0 | BI114: 0 | BJ114: 0 | BK114: 0 | BL114: 0 | BM114: 0
B115: Instructions for inserting additional risks: | L115: max | M115: =SUM(N35,N43,N51,N59,N67,N75,N83,N91,N99,N107) -> 0 | N115: Exposure | O115: =SUM(AI35,AI43,AI51,AI59,AI67,AI75,AI83,AI91,AI99,AI107) -> 0 | P115: =SUM(AI39,AI47,AI55,AI63,AI71,AI79,AI87,AI95,AI103,AI111) -> 0 | Q115: Months | R115: =R40+R48+R56+R64+R72+R80+R88+R96+R104+R112 -> 0 | S115: =S40+S48+S56+S64+S72+S80+S88+S96+S104+S112 -> 0 | U115: Probability factors = 1,2,3,4,5 (VL to VH) | AS115: =SUM(AS107,AS99,AS91,AS83,AS75,AS67,AS59,AS51,AS43,AS35) -> 0 | AU115: =SUM(AU107,AU99,AU91,AU83,AU75,AU67,AU59,AU51,AU43,AU35) -> 0 | AX115: =AW76 -> ROW | AZ115: =AW77 -> ENV | BB115: =AW78 -> ENG | BD115: =AW79 -> TRF | BF115: =AW81 -> STK | BH115: =AW82 -> UNF | BJ115: =AW83 -> MKT | BL115: =AW84 -> UTL
B116: 1 | D116: Save file | L116: most likely | M116: =SUM(N36,N44,N52,N60,N68,N76,N84,N92,N100,N108) -> 0 | N116: Most likely | O116: =SUM(O34, O42, O50, O58, O66,O74,O82,O90,O98,O106) -> 0 | P116: =SUM(O38,O46,O54,O62,O70,O78,O86,O94,O102,O110) -> 0 | Q116: Months | R116: cost | S116: schedule | U116: Impact factors = 1,2,4,8,16 (VL to VH) | AR116: =SUM(AR108,AR100,AR92,AR84,AR76,AR68,AR60,AR52,AR44,AR36) -> 0 | AS116: =SUM(AS108,AS100,AS92,AS84,AS76,AS68,AS60,AS52,AS44,AS36) -> 0 | AT116: =SUM(AT108,AT100,AT92,AT84,AT76,AT68,AT60,AT52,AT44,AT36) -> 0 | AU116: =SUM(AU108,AU100,AU92,AU84,AU76,AU68,AU60,AU52,AU44,AU36) -> 0
B117: 2 | D117: Go to "Review" menu tab at top of workbook | M117: ^ | O117: ^ | P117: ^ | AR117: ^ | AS117: ^ | AT117: ^ | AU117: ^
B118: 3 | D118: Click on Share Workbook | M118: Total | O118: Est | P118: Est | AR118: Total | AS118: Total | AT118: Total | AU118: Total
B119: 4 | D119: De-select the box to allow changes by other users. Click on OK. | M119: Est | O119: Exp Value | P119: Exp Value | AR119: Est | AS119: Calculated | AT119: Actual | AU119: Calculated
D120: Click on Yes in the dialog box. | M120: Cost | O120: of | P120: of | AR120: Cost | AS120: Est | AT120: Cost | AU120: Est
B121: 5 | D121: De-select the Show Ink and Show All Comments options on the menu bar | M121: Impacts | O121: Cost | P121: Time | AR121: to | AS121: Cost | AT121: to | AU121: Cost
B122: 6 | D122: Place the cursor over the group of rows to copy. | M122: (range) | O122: Impacts | P122: Impacts | AR122: Respond | AS122: Avoided | AT122: Respond | AU122: Avoided
D123: Include the narrow, shaded row at the top of the group. | AR123: most | AS123: (range) | AU123: (range)
D124: Don't include the narrow, shaded row at the bottom of the group. | AR124: likely
D125: For example, to add a blank row at the bottom, select rows 105-112 with the cursor on the row numbers.
D126: Eight rows should be highlighted to add one risk.
B127: 7 | D127: Use CTRL C to copy the rows
B128: 8 | D128: Hover over row number for the narrow, shaded row that will become the bottom of the new group.
D129: For example, hover over 105 to insert above risk element 10.
D130: Right click and select Insert Copied Rows.
B131: 9 | D131: Renumber the Risk Elements to include the added rows.
B132: 10 | D132: Update the summation cells at the bottom of the worksheet by adding in the appropriate columns from the new rows.
D133: Add the cells to the formula in increments of 8.
B134: 11 | D134: Go back to Share Workbook and select the option to allow changes
B135: 12 | D135: Click OK twice
B136: 13 | D136: Click on the options to Show All Comments and Show Ink
B137: 14 | D137: Save file
H196: ROW
H197: ENV
H198: ENG
H199: TRF
H200: STK
H201: UNF
H202: MKT
H203: UTL

Sheet RMP User's Guide
A1: Project Risk Management Plan Worksheet (RMP) – User’s Guide
A2: A convenient tool for tracking risk management of projects. | C2: Assumed risk tolerance levels in this model:
A3: The top part of the risk management plan spreadsheet (rows 1 thru 6) require the user to enter project information in boxes shaded yellow; information that must be entered includes: Project No. and Name, Estimate date, Project UPN, Last review date (will automatically call up today's date), Project Manager, Magnitude of project costs: All costs on spreadsheet will be reported in $ K or M, Target letting date, Estimated construction duration in months, Estimated PE Cost ($K or M), Estimated R/W Cost ($K or M), Estimated CN Cost ($K or M). | C3: Formulas that are built into the RMP worksheet assume a risk-averse position for focusing risk management. Risk impact is weighed heavier than the propability of that risk occurring.
A4: Risk Management is a key component of Project Management. | C4: Probability range definitions and relative risk factor
A5: Risk Management is comprised of the following steps: | C5: Very High: > 80% chance 5 rating
A6: 1) Risk Management Planning (this is a part of the project management plan) | C6: High: 60 - 80% chance 4 rating
A7: The remaining steps are captured in the RMP spreadsheet: | C7: Medium: 40 - 60% chance 3 rating
A8: 2) Risk Identification (this is the first column sections of the spreadsheet) | C8: Low: 20 - 40% chance 2 rating
A9: 3) Qualitative Risk Analysis (depicted with the risk matrix red-yellow-green chart) | C9: Very Low: < 20% chance 1 rating
A10: 4) Quantitative Risk Analysis (captured in four column sections following risk identification)
A11: 5) Risk Response (strategy: avoid/transfer/mitigate/accept) and (action to be taken) | C11: Potential impact definitions and relative risk factor
A12: 6) Risk Monitoring and Control (who owns the risk and will track the response to it?) | C12: Very High: > 80% chance 16 rating
A13: Risk Identification: focus on significant risks that affect project objectives. Risk identification occurs througout project development as old risks are successfully mitigated and retired new ones can emerge. | C13: High: 60 - 80% chance 8 rating Medium: 40 - 60% chance 4 rating
A14: The Risk Identification section includes: | C14: Low: 20 - 40% chance 2 rating
A15: (1) Risk # (the spreadsheet is setup for 10 - more can be added if desired) | C15: Very Low: < 20% chance 1 rating
A16: (2) Status of the risk event, there are three status scenarios to choose from:
A17: Active, when the risk is being actively monitored and controlled | C17: Definitions of Expected Impact on major project objectives
A18: Dormant, when the risk is low priority but may become high priority in the future | C18: Expected Impact = Probability x Impact
A19: Retired, when the risk is demised for any reason. | C19: Relative impact on COST
A20: (3) RBS Group = Risk Breakdown Structure category (the RBS is found in the Risk Management Guidance and on-line) (3a) RBS code number is in Appendix B of the Risk Management Guidelines | C20: Very High: > 10% increase/decrease in CN; High: 5 - 10% increase/decrease in CN Medium: 1 - 5% increase/decrease in CN
A21: (4) Date Identified and Project Phase, represents the date when the risk was first identified and the phase of the project when the risk was first identified. Valid entries for the project phase are: Planning, Survey, Design, ROW, and Construction. | C21: Low: 0.5 - 1% increase/decrease in CN Very Low: insignificant change to cost
A22: (5) Functional assignment: Bridge, Consulting, CTEP, District, Environmental, Helena, MSU, Safety, Traffic, R/W, Utilities, Geotech,Survey, Construction, Legal. | C22: Relative impact on SCHEDULE
A23: (6) Summary Description (threat/opportunity). | C23: Very High: Remaining schedule (including construction time) changes by 30%
A24: · Threat = if event occurs it negatively impacts objectives (increase cost or schedule) | C24: High: Remaining schedule extended or shortened by 20-30%
A25: · Opportunity = if event occurs it positively impacts objectives (decrease cost or schedule) | C25: Medium: Remaining schedule extended/shortened by 10-20%
A26: (7) Detailed Description of Risk Event presents a specific, detailed risk description. Take some time and thought to fill this out thoroughly - so that others reading it, who are not familiar with the project, can understand the risk event being described. Defining the cause, the risk, and the impact will assist with the response strategies. | C26: Low: Remaining schedule extended/shortened by 1-10% Very low: Insignificant change in remaining schedule
A27: (8) Risk Trigger presents symptoms and warning signs that a risk event is about to occur. This information is used to determine when to implement the Risk Response Strategies.
A28: Risk Analysis Strategy prioritizes risks based on the “Probability and Impact Risk Matrix.” The section has two major segments: Quantitative Analysis and Qualitative Display of Most Likely Impact.
A30: § (9) - (15) Includes Qualitative depiction of Quantitative Analysis of most likely impacts. The key features are: impact affects cost, schedule or both? Probability of occurrence and the impact range (min, max, most likely) if it does occur.
A31: § (9) Type of risk (does it affect cost and/or schedule?)
A32: § (10) Probability of Occurrence: Input the likelihood of this risk event occurring. | B32: High risk
A33: § (11) Risk Impact in $K or M and/or Months; (min, max, most likely). Note: use negative values for opportunities. Beware of optimistic bias when developing these values. It's okay to be wrong in the end, so don't dwell too long on the numbers. Most likely value will equal the mean in a normal distribution where there is a 50% chance of taking on a value that is greater and a 50% chance of a value that is less. However, it's more common that more will go wrong. In this case, you end up with a lognormal curve where the mode is less than the mean. | B33: High risk
A34: § (12) Expected value of impact: Calculated for you using most likely figure times the input probability. | B34: High risk
A35: § (13) Qualitative description of probability (automatically populated based on % that is entered) This can be hand-entered if numbers aren't entered in 11. Very High is >= 80% High is >= 60% Medium is >= 40% Low is >= 20% Very low is > 0% | B35: Medium risk
A36: § (14) Qualitative description of impact (based on figures for risk event and project cost) using most likely figure by comparing the absolute value of the input most likely cost to the construction estimate. Very High is > 10% of CN High is > 5% of CN Medium is > 2% of CN Low is > .8% of CN Very low is > .5% of CN | B36: Medium risk
A37: § (15) Qualitative graphic display of risk event (red/yellow/green risk matrix).
A39: Risk Response Strategy (16) - (18)
A40: (16) The project manager and Project Team identify which strategy is best for each risk, and then design specific actions to implement that strategy, and determine who owns the risk and will make sure risk response action is taken. These strategies and actions include:
A41: · Avoid: The team changes the project plan to eliminate the risk or to protect the project objectives from its impact. The team might achieve this by changing scope, adding time, or adding resources (thus relaxing the so-called “triple constraint”). These changes may require WSDOT upper management approval.
A42: · Transfer: The team transfers the financial impact of risk by contracting out some aspect of the work. Transference reduces the risk only if the contractor is more able to taking steps to reduce the risk and does so.
A43: · Mitigate: The team seeks to reduce the probability or consequences of a risk event to an acceptable threshold. They accomplish this via many different means that are specific to the project and the risk. Mitigation steps, although costly and time-consuming, may still be preferable to going forward with the unmitigated risk.
A44: · Accept: The project manager and the project team decide to accept certain risks. They do not change the project plan to deal with a risk, or identify any response strategy other than agreeing to address the risk if it occurs.
A45: After all risks are analyzed, use the matrix results to prioritize risk response. Risk events in the red will be top priority, yellow will be next, and green will be lowest. Risks with the highest probability of occurrence and highest impact should be top priority. The relative risk number can help with assigning priorities.
A46: (17) Describe specifically what action will be taken and by whom.
A47: (18) RISK OWNER Enter the name of the person responsbile for monitoring the risk event and insuring that the risk response action is effectively implemented.
A49: Risk Monitoring and Control Strategy (Columns 19-21) To ensure risk response actions are followed through and monitoring and reporting of the effect of the risk response action occurs, the Risk review dates should be identified as well as that status of each review. The list of project risks and the risk priorities change as the project matures, new risks develop, or anticipated risks disappear. Periodic project risk reviews repeat the tasks of identification, analysis, and response strategies. The project manager regularly schedules project risk reviews, and ensures that project risk is an agenda item at all Project Team meetings. Risk ratings and prioritization commonly change during the project lifecycle.
A50: If an unanticipated risk emerges, or a risk’s impact is greater than expected, the planned response strategy and actions may not be adequate. The project manager and the Project Team must perform additional response strategies and actions to control the risk.
A51: Risk control involves:
A52: q Choosing alternative response strategies
A53: q Implementing a contingency plan
A54: q Taking corrective actions
A55: q Re-planning the project
A56: The risk owner assigned to each risk reports periodically to the project manager on the effectiveness of the plan, any unanticipated effects, and any mid-course correction that the Project Team must take to mitigate the risk.
A58: Monitoring and Control - Risk Management Performance Measurements Response Cost and Cost Avoidance (Columns 22-25) provides a convenient and succinct record of risk management, monitoring and control. It is very important for project managers and project teams to understand that response to a risk is a pro-active endeavour. The primary benefit of risk management is to pre-empt the threat and/or maximize the opportunity by taking action as soon as possible after the risk event has been identified. Risk management is not a recovery plan that is implemented after a risk event occurs but is an action plan to be utilized long before the risk event occurs.
A60: (Column 22) Planned Cost to Respond – This is the amount the project manager plans to spend to respond to the risk. The action taken to minimize the threat or maximize the opportunity typically will have some dollar cost associated with it. The amount spent to respond should of course be less than the estimated value of the risk event.
A61: NOTE: Even if your response action is successful, in many cases a residual risk remains.
A63: (Column 23) Estimated Cost Avoided – (MIN.) – This is a calculated figure as follows:
A64: Cost is avoided by reducing/evading impact of a threat or exploiting an opportunity.
A65: Planned Cost Avoidance = (Risk Impact Value X Probability of Occurrence) – Planned Cost to Respond
A66: (Column 23) = (Column 10 X Column 11) – Column 22
A67: Note: For column 10 the figure used will be estimated from the workshop uncertainty forecasts.
A68: Note: For column 11 the figure used will be the most likely impact as identified in the workshop.
A69: The calculated planned cost avoidance figure represents an estimated amount of cost burden the project has successfully avoided by taking action to pro-actively respond to the risk event.
A70: AFTER THE PROJECT IS COMPLETED
A71: (Column 24) Actual Cost to Respond – This is the amount actually spent to respond to the risk. Once the project is complete, the actual cost to avoid, mitigate, or transfer the risk is known and can be entered.
A72: (Column 25) Estimated Actual Cost Avoidance – (MIN.) – calculated as follows:
A74: Actual Cost Avoidance = (Risk Impact Value X Probability of Occurrence) – Actual Cost to Respond
A75: (Column 23) = (Column 10 X Column 11) – Column 24
A76: Note: For column 10 the figure used will be estimated from the workshop uncertainty forecasts.
A77: Note: For column 11 the figure used will be the most likely impact as identified in the workshop.
A78: The actual cost avoidance figure represents an estimated amount of the actual cost savings based on the estimated cost of the risk minus the actual cost to avoid the risk.
A79: NOTE: Even if your response action is successful, in many cases a residual risk remains.
A81: GENERAL NOTES:
A82: · The RMP spreadsheet, for purposes of simplicity, assumes zero residual risk. As noted above in many cases there may be residual risk after the response and the project manager will need to insure the project team is aware of this.
A83: · The last four columns in the spreadsheet provide a metric of the effectiveness of the risk response efforts. This allows the project manager to monitor and control risk management throughout the life of the project.
A84: · The RMP spreadsheet also serves as a nice project performance measurement tool.

Sheet Assumptions
A1: Comments/Assumptions Tracking Page
A2: UPN: | B2: UPN
A3: Project: | B3: STPP 99-1(29)5 NE of Montana Line - N.
O4: Risk Identification
A5: Date | B5: Risk Management Step | C5: Comments/Assumptions | E5: Notes: | O5: Risk Analysis
E6: Comments box will expand as you type. | O6: Risk Response
E7: Page is preset to print one page wide. | O7: Risk Monitoring and Control

Sheet Contingency
A1: Steps for determining contingency
A3: STEP 1. | B3: Overall Project Risk | C3: Fill in yellow boxes.
B5: Project risk | C5: =RMP!R115+RMP!S115 -> 0
B6: Number of cost risks identified | D6: (Number of $ symbols on RMP tab)
B7: Number of schedule risks identified | D7: (Number of Mo symbols on RMP tab)
B8: Average relative cost risk | C8: =RMP!R115/C6 ->  | D8: =IF(C8>19,E12,IF(C8>8,E13,E14)) -> 
B9: Average relative schedule risk | C9: =RMP!S115/C7 ->  | D9: =IF(C9>19,E12,IF(C9>8,E13,E14)) -> 
B10: Overall risk level | C10: =C5/(C6+C7) ->  | D10: =IF(C10>19,E12,IF(C10>8,E13,E14)) -> 
B12: Number of symbols in red boxes | D12: =C12/(C6+C7) ->  | E12: HIGH risk
B13: Number of symbols in yellow boxes | D13: =C13/(C7+C8) ->  | E13: MEDIUM risk
B14: Number of symbols in green boxes | D14: =C14/(C8+C9) ->  | E14: LOW risk
A16: STEP 2. | B16: Determine Project Level of Risk | D16: Project Level of Risk table | F16: Low Risk Project | L16: LOW
F17: Medium Risk Project | L17: MEDIUM
F18: High Risk Project | L18: HIGH
A19: STEP 3. | B19: Determine Contingency
A20: A. | B20: Get an idea of a typical contingency range using the project stage and complexity level from the table below:
C22: % Contingency Range by Project Level of Risk (High, Medium, Low)
C23: High Risk | E23: Medium Risk | G23: Low Risk
B24: % Plan
A25: Project Stage | B25: Completion | C25: High Range | D25: Low Range | E25: High Range | F25: Low Range | G25: High Range | H25: Low Range
A26: Planning/Nom/OT | B26: 0-5% | C26: 110 | D26: 40 | E26: 80 | F26: 30 | G26: 45 | H26: 20
A27: PFR | B27: 0-15% | C27: 100 | D27: 40 | E27: 60 | F27: 25 | G27: 40 | H27: 15
A28: AGR | B28: 10-40% | C28: 80 | D28: 35 | E28: 40 | F28: 20 | G28: 40 | H28: 10
A29: SOW | B29: 30-70% | C29: 70 | D29: 30 | E29: 35 | F29: 15 | G29: 30 | H29: 10
A30: PIH | B30: 60-90% | C30: 55 | D30: 20 | E30: 25 | F30: 10 | G30: 20 | H30: 5
A31: FPR | B31: 85-100% | C31: 20 | D31: 5 | E31: 10 | F31: 3 | G31: 5 | H31: 0
A32: Construction | B32: (Misc. work) | C32: 20 | D32: 5 | E32: 10 | F32: 0 | G32: 5 | H32: 0
A34: B. | B34: Further refine the contingency factor by weighing the overall project risk and interpolating off the related linked chart:
B35: High Risk contingency ranges | L35: =CELL("filename") -> \\mdthq\mdtshares\WebAppData\External\CADD\report_templates_guidance\[RMP_MDT.XLSM]Contingency ranges
B38: Medium Risk contingency ranges
B41: Low Risk contingency ranges

Sheet High Risk
A2: High Risk Project Contingency Ranges
B5: % Plans complete | D5: High Range | E5: Low Range
A6: Planning | B6: 0-5% | C6: 0.05 | D6: 110 | E6: 40
A7: PFR | B7: 0-15% | C7: 0.1 | D7: 100 | E7: 40
A8: AGR | B8: 10-40% | C8: 0.3 | D8: 80 | E8: 35
A9: SOW | B9: 30-70% | C9: 0.6 | D9: 70 | E9: 30
A10: PIH | B10: 60-90% | C10: 0.85 | D10: 55 | E10: 20
A11: FPR | B11: 85-100% | C11: 0.95 | D11: 20 | E11: 5
A12: Construction | B12: (Misc. work) | C12: 1 | D12: 20 | E12: 5

Sheet Medium Risk
A2: Medium Risk Projects Contingency Ranges
B5: % Plans complete | D5: High Range | E5: Low Range
A6: Planning | B6: 0-5% | C6: 0.05 | D6: 80 | E6: 30
A7: PFR | B7: 0-15% | C7: 0.1 | D7: 60 | E7: 25
A8: AGR | B8: 10-40% | C8: 0.3 | D8: 40 | E8: 20
A9: SOW | B9: 30-70% | C9: 0.6 | D9: 35 | E9: 15
A10: PIH | B10: 60-90% | C10: 0.85 | D10: 25 | E10: 10
A11: FPR | B11: 85-100% | C11: 0.95 | D11: 10 | E11: 3
A12: Construction | B12: (Misc. work) | C12: 1 | D12: 10 | E12: 0

Sheet Low Risk
A2: Low Risk Projects Contingency Ranges
D4: Contingency Range (%)
B5: % Plans complete | D5: High Range | E5: Low Range
A6: Planning | B6: 0-5% | C6: 0.05 | D6: 45 | E6: 20
A7: PFR | B7: 0-15% | C7: 0.1 | D7: 40 | E7: 15
A8: AGR | B8: 10-40% | C8: 0.3 | D8: 40 | E8: 10
A9: SOW | B9: 30-70% | C9: 0.6 | D9: 30 | E9: 10
A10: PIH | B10: 60-90% | C10: 0.85 | D10: 20 | E10: 5
A11: FPR | B11: 85-100% | C11: 0.95 | D11: 5 | E11: 0
A12: Construction | B12: (Misc. work) | C12: 1 | D12: 5 | E12: 0

Sheet Cost Ranges
A1: Estimated Project Cost Range
C3: % Contingency Range by Project Level of Risk (High, Medium, Low)
C4: High Risk | E4: Medium Risk | G4: Low Risk
A6: Project Stage | B6: % Plan Completion | C6: High Range | D6: Low Range | E6: High Range | F6: Low Range | G6: High Range | H6: Low Range
A7: Planning/Nom/OT | B7: 0-5% | C7: 1.1 | D7: 0.4 | E7: 0.8 | F7: 0.3 | G7: 0.45 | H7: 0.2
A8: PFR | B8: 0-15% | C8: 1 | D8: 0.4 | E8: 0.6 | F8: 0.25 | G8: 0.4 | H8: 0.15
A9: AGR | B9: 10-40% | C9: 0.8 | D9: 0.35 | E9: 0.4 | F9: 0.2 | G9: 0.4 | H9: 0.1
A10: SOW | B10: 30-70% | C10: 0.7 | D10: 0.3 | E10: 0.35 | F10: 0.15 | G10: 0.3 | H10: 0.1
A11: PIH | B11: 60-90% | C11: 0.55 | D11: 0.2 | E11: 0.25 | F11: 0.1 | G11: 0.2 | H11: 0.05
A12: FPR | B12: 85-100% | C12: 0.2 | D12: 0.05 | E12: 0.1 | F12: 0.3 | G12: 0.05 | H12: 0
A13: Construction | B13: (Misc. work) | C13: 0.2 | D13: 0.05 | E13: 0.1 | F13: 0 | G13: 0.05 | H13: 0
A17: Date | C17: Enter today's date
A18: Project stage | C18: Pick stage from dropdown list
A19: Project Level of Risk | C19: Pick risk level from dropdown list
A20: Base Estimate ($) | C20: Enter base estimate (include allowances, remove contingency or risk factor)
A21: Contingency (%) | C21: Enter project-specific contingency or risk factor from risk analysis
A22: Estimate Range Low | C22: Enter value from table. If Contingency < table value for low range, use Contingency - 5%
A23: Estimate Range High | C23: Enter value from table. If Contingency > table value for high range, use Contingency + 10%
A25: Project cost range low amount | B25: =B20*(1+B22) -> 0
A26: Project cost range high amount | B26: =B20*(1+B23) -> 0
A27: TCP cost estimate amount | B27: =B20*(1+B21) -> 0
A28: Cost estimate range | B28: =ROUND(B25,4-(1+INT(LOG10(ABS(B25))))) ->  | C28: to | D28: =ROUND(B26,4-(1+INT(LOG10(ABS(B26))))) -> 

Sheet Contingency ranges
A1: STEP 3. | B1: Assign Contingency
D3: % Contingency Range by Project Level of Risk (High, Medium, Low) | J3: step 1 | K3: Average relative cost risk | L3: =Contingency!D8 -> 
D4: High Risk | F4: Medium Risk | H4: Low Risk | K4: Average relative schedule risk | L4: =Contingency!D9 -> 
B5: % Plan | C5: % Plan | K5: Overall risk level | L5: =Contingency!D10 -> 
A6: Project Stage | B6: Completion | C6: Completion | D6: High Range | E6: Low Range | F6: High Range | G6: Low Range | H6: High Range | I6: Low Range
A7: Planning | B7: 0-5% | C7: 0.05 | D7: 110 | E7: 40 | F7: 80 | G7: 30 | H7: 45 | I7: 20 | J7: step 2 | K7: Complexity Determination: | M7: (from previous worksheet)
A8: PFR | B8: 0-15% | C8: 0.1 | D8: 100 | E8: 40 | F8: 60 | G8: 25 | H8: 40 | I8: 15
A9: AGR | B9: 10-40% | C9: 0.3 | D9: 80 | E9: 35 | F9: 40 | G9: 20 | H9: 40 | I9: 10 | J9: step 3 | K9: Select the appropriate design stage and
A10: SOW | B10: 30-70% | C10: 0.6 | D10: 70 | E10: 30 | F10: 35 | G10: 15 | H10: 30 | I10: 10 | K10: corresponding level of plan completion from table.
A11: PIH | B11: 60-90% | C11: 0.85 | D11: 55 | E11: 20 | F11: 25 | G11: 10 | H11: 20 | I11: 5
A12: FPR | B12: 85-100% | C12: 0.95 | D12: 20 | E12: 5 | F12: 10 | G12: 3 | H12: 5 | I12: 0 | K12: Select the % contingency from table or graph.
A13: Construction | B13: (Misc. work) | C13: 1 | D13: 20 | E13: 5 | F13: 10 | G13: 0 | H13: 5 | I13: 0 | K13: Interpolate between the values based on
K14: risk level and project knowledge.

Sheet RBS
B2: Risk Breakdown Structure Categories | F2: Back to RMP
C4: ROW | D4: ENV | E4: ENG | F4: TRF | G4: STK | H4: UNF | I4: MKT | J4: UTL
C5: Right-of-Way | D5: Environmental | E5: Engineering/ Construction | F5: Traffic | G5: Stakeholders | H5: Unforeseen Events | I5: Market Conditions | J5: Utilities
B7: 1 | C7: Disagreement on highway access | D7: Permits /agency actions delayed | E7: Sufficiency of plans and specifications | F7: Design change | G7: Objections from local communities | H7: Forest fires | I7: Labor | J7: Coordination with local utilities efforts
B8: 2 | C8: Objections to R/W appraisal | D8: Agency disputes not resolved in a timely manner | E8: Change in seismic criteria | F8: Traffic growth | G8: Late changes requested by stakeholders | H8: Weather related incidents | I8: Fuel | J8: Utility negotiations
B9: 3 | C9: Acquisition issues | D9: New information required for permits | E9: Soil and other geotechnical conditions / mat’l availability | F9: Land use changes/ developments | G9: New stakeholders demanding new work | H9: Earthquake | I9: Materials | J9: Delay caused by utility conflict
B10: 4 | C10: Volatile real estate market | D10: Environmental regulations change | E10: Soil contamination | G10: Threats of lawsuit | H10: Man-made disasters | I10: Land | J10: Railroad involvement
B11: 5 | D11: Additional environmental analysis required | E11: Contractors / subcontractors capability | G11: Stakeholders choose time and/or cost over quality | H11: Economic changes / funding availability
B12: 6 | D12: Design changes initiated by Resource Agency | E12: Work zone safety and mobility | G12: Tribal Employment Rights Office (TERO) fee
B13: 7 | D13: Tribal issues | E13: Site specific requirements | G13: Overlapping Governmental Jurisdictions
B14: 8 | E14: Drainage / hydraulic issues
B15: 9 | C15: Staffing issues | D15: Staffing issues | E15: Staffing issues | F15: Staffing issues | J15: Staffing issues
B16: 10 | C16: Other | D16: Other | E16: Other | F16: Other | G16: Other | H16: Other | I16: Other | J16: Other
